Workbook

Sheet Main
B10: 2018-01-29
B12: Sheet No. | C12: Template Name | D12: Summary
B13: 1 | C13: Future Intra | D13: For Intraday trading in F&O segment
B14: 2 | C14: Cash Intra | D14: For Intraday trading in cash market segment
B15: 3 | C15: Mid-cap Intra | D15: For Intraday trading in Mid-cap stocks
B16: 4 | C16: Bulk Deals | D16: Reveals Bulk Deals carried on NSE & BSE
B17: 5 | C17: Call Tracker

Sheet Future Intra
M5: Back to Main Page
A6: FOR INTRA DAY TRADING | L6: =Main!B10 -> 2018-01-29
A9: Sr.no | B9: Sector | C9: Scrip | D9: CLOSE RATE | E9: Pivot Point | F9: Supports | I9: Resistances
B10: Sector | D10: Point | E10: Point | F10: S1 | G10: S2 | H10: S3 | I10: R1 | J10: R2 | K10: R3 | L10: HIGH | M10: LOW | N10: OI | O10: % Change in OI
A11: 1 | B11: Index | C11: BANKNIFTY | D11: 27374.25 | E11: 27393.87 | F11: 27150.38 | G11: 26926.52 | H11: 26683.03 | I11: 27617.73 | J11: 27861.22 | K11: 28085.08 | L11: 27637.35 | M11: 27170 | N11: 2320880 | O11: -31.64%
A12: 2 | B12: Index | C12: NIFTY | D12: 11062.60 | E12: 11071.22 | F12: 11016.38 | G12: 10970.17 | H12: 10915.33 | I12: 11117.43 | J12: 11172.27 | K12: 11218.48 | L12: 11126.05 | M12: 11025 | N12: 25926900 | O12: -29.62%
A13: 3 | B13: Index | C13: NIFTYCPSE | D13: 2661.05 | E13: 887.02 | F13: 1774.03 | G13: 887.02 | H13: 1774.03 | I13: 1774.03 | J13: 887.02 | K13: 1774.03 | L13: 0 | M13: 0 | N13: 0 | O13: 0.00%
A14: 4 | B14: Index | C14: NIFTYINFRA | D14: 3569.30 | E14: 1189.77 | F14: 2379.53 | G14: 1189.77 | H14: 2379.53 | I14: 2379.53 | J14: 1189.77 | K14: 2379.53 | L14: 0 | M14: 0 | N14: 0 | O14: 0.00%
A15: 5 | B15: Index | C15: NIFTYIT | D15: 13144.00 | E15: 13153.67 | F15: 13015.33 | G15: 12886.67 | H15: 12748.33 | I15: 13282.33 | J15: 13420.67 | K15: 13549.33 | L15: 13292 | M15: 13025 | N15: 29800 | O15: -42.58%
A16: 6 | B16: Index | C16: NIFTYMID50 | D16: 5289.30 | E16: 1763.10 | F16: 3526.20 | G16: 1763.10 | H16: 3526.20 | I16: 3526.20 | J16: 1763.10 | K16: 3526.20 | L16: 0 | M16: 0 | N16: 513600 | O16: 0.00%
A17: 7 | B17: Index | C17: NIFTYPSE | D17: 4297.00 | E17: 1432.33 | F17: 2864.67 | G17: 1432.33 | H17: 2864.67 | I17: 2864.67 | J17: 1432.33 | K17: 2864.67 | L17: 0 | M17: 0 | N17: 0 | O17: 0.00%
A18: 8 | B18: Cement | C18: ACC | D18: 1737.05 | E18: 1743.02 | F18: 1725.03 | G18: 1713.02 | H18: 1695.03 | I18: 1755.03 | J18: 1773.02 | K18: 1785.03 | L18: 1761 | M18: 1731 | N18: 1294400 | O18: -14.10%
A19: 9 | B19: Others | C19: ADANIENT | D19: 214.95 | E19: 211.22 | F19: 206.73 | G19: 198.52 | H19: 194.03 | I19: 219.43 | J19: 223.92 | K19: 232.13 | L19: 215.7 | M19: 203 | N19: 17944000 | O19: -7.89%
A20: 10 | B20: Others | C20: ADANIPORTS | D20: 439.25 | E20: 442.80 | F20: 434.10 | G20: 428.95 | H20: 420.25 | I20: 447.95 | J20: 456.65 | K20: 461.80 | L20: 451.5 | M20: 437.65 | N20: 10407500 | O20: -22.89%
A21: 11 | B21: Power | C21: ADANIPOWER | D21: 38.35 | E21: 38.00 | F21: 37.20 | G21: 36.05 | H21: 35.25 | I21: 39.15 | J21: 39.95 | K21: 41.10 | L21: 38.8 | M21: 36.85 | N21: 118320000 | O21: -18.32%
A22: 12 | B22: Pharma | C22: AJANTPHARM | D22: 1503.55 | E22: 1525.53 | F22: 1461.12 | G22: 1418.68 | H22: 1354.27 | I22: 1567.97 | J22: 1632.38 | K22: 1674.82 | L22: 1589.95 | M22: 1483.1 | N22: 950000 | O22: -8.61%
A23: 13 | B23: Banking | C23: ALBK | D23: 70.60 | E23: 71.75 | F23: 69.15 | G23: 67.70 | H23: 65.10 | I23: 73.20 | J23: 75.80 | K23: 77.25 | L23: 74.35 | M23: 70.3 | N23: 17080000 | O23: -11.04%
A24: 14 | B24: Automobile | C24: AMARAJABAT | D24: 846.35 | E24: 861.78 | F24: 826.57 | G24: 806.78 | H24: 771.57 | I24: 881.57 | J24: 916.78 | K24: 936.57 | L24: 897 | M24: 842 | N24: 1908200 | O24: -19.52%
A25: 15 | B25: Cement | C25: AMBUJACEM | D25: 262.65 | E25: 262.48 | F25: 260.92 | G25: 259.18 | H25: 257.62 | I25: 264.22 | J25: 265.78 | K25: 267.52 | L25: 264.05 | M25: 260.75 | N25: 12760000 | O25: -18.23%
A26: 16 | B26: Banking | C26: ANDHRABANK | D26: 56.35 | E26: 57.32 | F26: 55.13 | G26: 53.92 | H26: 51.73 | I26: 58.53 | J26: 60.72 | K26: 61.93 | L26: 59.5 | M26: 56.1 | N26: 21120000 | O26: -8.29%
A27: 17 | B27: Others | C27: APOLLOHOSP | D27: 1133.70 | E27: 1128.75 | F27: 1116.05 | G27: 1098.40 | H27: 1085.70 | I27: 1146.40 | J27: 1159.10 | K27: 1176.75 | L27: 1141.45 | M27: 1111.1 | N27: 612500 | O27: -26.60%
A28: 18 | B28: Automobile | C28: APOLLOTYRE | D28: 262.75 | E28: 264.18 | F28: 260.02 | G28: 257.28 | H28: 253.12 | I28: 266.92 | J28: 271.08 | K28: 273.82 | L28: 268.35 | M28: 261.45 | N28: 10272000 | O28: -18.82%
A29: 19 | B29: Textile | C29: ARVIND | D29: 446.80 | E29: 448.18 | F29: 443.27 | G29: 439.73 | H29: 434.82 | I29: 451.72 | J29: 456.63 | K29: 460.17 | L29: 453.1 | M29: 444.65 | N29: 4862000 | O29: -13.36%
A30: 20 | B30: Automobile | C30: ASHOKLEY | D30: 122.95 | E30: 123.40 | F30: 122.00 | G30: 121.05 | H30: 119.65 | I30: 124.35 | J30: 125.75 | K30: 126.70 | L30: 124.8 | M30: 122.45 | N30: 53914000 | O30: -7.99%
A31: 21 | B31: FMCG | C31: ASIANPAINT | D31: 1156.60 | E31: 1157.17 | F31: 1148.48 | G31: 1140.37 | H31: 1131.68 | I31: 1165.28 | J31: 1173.97 | K31: 1182.08 | L31: 1165.85 | M31: 1149.05 | N31: 3896400 | O31: -15.99%
A32: 22 | B32: Pharma | C32: AUROPHARMA | D32: 643.50 | E32: 649.55 | F32: 635.95 | G32: 628.40 | H32: 614.80 | I32: 657.10 | J32: 670.70 | K32: 678.25 | L32: 663.15 | M32: 642 | N32: 24688800 | O32: -3.42%
A33: 23 | B33: Banking | C33: AXISBANK | D33: 617.15 | E33: 613.97 | F33: 607.18 | G33: 597.22 | H33: 590.43 | I33: 623.93 | J33: 630.72 | K33: 640.68 | L33: 620.75 | M33: 604 | N33: 45766800 | O33: -10.89%
A34: 24 | B34: Automobile | C34: BAJAJ-AUTO | D34: 3316.60 | E34: 3326.15 | F34: 3296.60 | G34: 3276.60 | H34: 3247.05 | I34: 3346.15 | J34: 3375.70 | K34: 3395.70 | L34: 3355.7 | M34: 3306.15 | N34: 2048250 | O34: -10.24%
A35: 25 | B35: Others | C35: BAJAJFINSV | D35: 4951.85 | E35: 4990.62 | F35: 4891.23 | G35: 4830.62 | H35: 4731.23 | I35: 5051.23 | J35: 5150.62 | K35: 5211.23 | L35: 5090 | M35: 4930 | N35: 800750 | O35: -3.28%
A36: 26 | B36: Finance | C36: BAJFINANCE | D36: 1718.85 | E36: 1726.78 | F36: 1707.07 | G36: 1695.28 | H36: 1675.57 | I36: 1738.57 | J36: 1758.28 | K36: 1770.07 | L36: 1746.5 | M36: 1715 | N36: 5825500 | O36: -9.50%
A37: 27 | B37: Others | C37: BALKRISIND | D37: 1127.35 | E37: 1133.10 | F37: 1119.25 | G37: 1111.15 | H37: 1097.30 | I37: 1141.20 | J37: 1155.05 | K37: 1163.15 | L37: 1146.95 | M37: 1125 | N37: 1268800 | O37: -14.50%
A38: 28 | B38: Others | C38: BALRAMCHIN | D38: 122.75 | E38: 123.22 | F38: 120.53 | G38: 118.32 | H38: 115.63 | I38: 125.43 | J38: 128.12 | K38: 130.33 | L38: 125.9 | M38: 121 | N38: 17937500 | O38: -7.21%
A39: 29 | B39: Banking | C39: BANKBARODA | D39: 168.05 | E39: 171.62 | F39: 163.63 | G39: 159.22 | H39: 151.23 | I39: 176.03 | J39: 184.02 | K39: 188.43 | L39: 179.6 | M39: 167.2 | N39: 52180000 | O39: -7.70%
A40: 30 | B40: Banking | C40: BANKINDIA | D40: 170.10 | E40: 174.62 | F40: 164.13 | G40: 158.17 | H40: 147.68 | I40: 180.58 | J40: 191.07 | K40: 197.03 | L40: 185.1 | M40: 168.65 | N40: 15726000 | O40: -13.33%
A41: 31 | B41: FMCG | C41: BATAINDIA | D41: 710.95 | E41: 715.78 | F41: 702.82 | G41: 694.68 | H41: 681.72 | I41: 723.92 | J41: 736.88 | K41: 745.02 | L41: 728.75 | M41: 707.65 | N41: 2295700 | O41: -14.71%
A42: 32 | B42: Capital_Goods | C42: BEL | D42: 177.65 | E42: 177.77 | F42: 175.48 | G42: 173.32 | H42: 171.03 | I42: 179.93 | J42: 182.22 | K42: 184.38 | L42: 180.05 | M42: 175.6 | N42: 26848800 | O42: -24.96%
A43: 33 | B43: Infrastructure | C43: BEML | D43: 1489.25 | E43: 1496.92 | F43: 1473.83 | G43: 1458.42 | H43: 1435.33 | I43: 1512.33 | J43: 1535.42 | K43: 1550.83 | L43: 1520 | M43: 1481.5 | N43: 2256900 | O43: -7.32%
A44: 34 | B44: Others | C44: BERGEPAINT | D44: 253.80 | E44: 253.88 | F44: 250.87 | G44: 247.93 | H44: 244.92 | I44: 256.82 | J44: 259.83 | K44: 262.77 | L44: 256.9 | M44: 250.95 | N44: 1485000 | O44: -35.71%
A45: 35 | B45: Finance | C45: BHARATFIN | D45: 1027.95 | E45: 1027.83 | F45: 1020.77 | G45: 1013.58 | H45: 1006.52 | I45: 1035.02 | J45: 1042.08 | K45: 1049.27 | L45: 1034.9 | M45: 1020.65 | N45: 7658000 | O45: -7.22%
A46: 36 | B46: Automobile | C46: BHARATFORG | D46: 724.45 | E46: 732.98 | F46: 712.77 | G46: 701.08 | H46: 680.87 | I46: 744.67 | J46: 764.88 | K46: 776.57 | L46: 753.2 | M46: 721.3 | N46: 5797200 | O46: -12.26%
A47: 37 | B47: Telecom | C47: BHARTIARTL | D47: 452.00 | E47: 453.25 | F47: 443.05 | G47: 434.10 | H47: 423.90 | I47: 462.20 | J47: 472.40 | K47: 481.35 | L47: 463.45 | M47: 444.3 | N47: 51039100 | O47: -4.66%
A48: 38 | B48: Capital_Goods | C48: BHEL | D48: 103.20 | E48: 104.25 | F48: 101.70 | G48: 100.20 | H48: 97.65 | I48: 105.75 | J48: 108.30 | K48: 109.80 | L48: 106.8 | M48: 102.75 | N48: 43717500 | O48: -26.38%
A49: 39 | B49: Pharma | C49: BIOCON | D49: 609.95 | E49: 608.38 | F49: 600.77 | G49: 591.58 | H49: 583.97 | I49: 617.57 | J49: 625.18 | K49: 634.37 | L49: 616 | M49: 599.2 | N49: 7588800 | O49: -20.15%
A50: 40 | B50: Automobile | C50: BOSCHLTD | D50: 19594.45 | E50: 19678.47 | F50: 19366.93 | G50: 19139.42 | H50: 18827.88 | I50: 19905.98 | J50: 20217.52 | K50: 20445.03 | L50: 19990 | M50: 19450.95 | N50: 133775 | O50: -9.00%
A51: 41 | B51: Oil_Gas | C51: BPCL | D51: 472.80 | E51: 472.25 | F51: 468.00 | G51: 463.20 | H51: 458.95 | I51: 477.05 | J51: 481.30 | K51: 486.10 | L51: 476.5 | M51: 467.45 | N51: 7567200 | O51: -34.78%
A52: 42 | B52: FMCG | C52: BRITANNIA | D52: 4643.20 | E52: 4662.20 | F52: 4609.15 | G52: 4575.10 | H52: 4522.05 | I52: 4696.25 | J52: 4749.30 | K52: 4783.35 | L52: 4715.25 | M52: 4628.15 | N52: 866600 | O52: -23.39%
A53: 43 | B53: Pharma | C53: CADILAHC | D53: 420.70 | E53: 423.32 | F53: 415.38 | G53: 410.07 | H53: 402.13 | I53: 428.63 | J53: 436.57 | K53: 441.88 | L53: 431.25 | M53: 418 | N53: 6312000 | O53: -3.69%
A54: 44 | B54: Banking | C54: CANBK | D54: 363.35 | E54: 369.77 | F54: 354.03 | G54: 344.72 | H54: 328.98 | I54: 379.08 | J54: 394.82 | K54: 404.13 | L54: 385.5 | M54: 360.45 | N54: 10884800 | O54: -3.15%
A55: 45 | B55: Others | C55: CANFINHOME | D55: 445.25 | E55: 446.55 | F55: 438.70 | G55: 432.15 | H55: 424.30 | I55: 453.10 | J55: 460.95 | K55: 467.50 | L55: 454.4 | M55: 440 | N55: 6291250 | O55: -9.84%
A56: 46 | B56: Finance | C56: CAPF | D56: 764.25 | E56: 769.75 | F56: 756.50 | G56: 748.75 | H56: 735.50 | I56: 777.50 | J56: 790.75 | K56: 798.50 | L56: 783 | M56: 762 | N56: 6700000 | O56: -6.52%
A57: 47 | B57: Oil_Gas | C57: CASTROLIND | D57: 184.10 | E57: 185.32 | F57: 181.98 | G57: 179.87 | H57: 176.53 | I57: 187.43 | J57: 190.77 | K57: 192.88 | L57: 188.65 | M57: 183.2 | N57: 20753600 | O57: -7.86%
A58: 48 | B58: Automobile | C58: CEATLTD | D58: 1844.10 | E58: 1860.52 | F58: 1822.08 | G58: 1800.07 | H58: 1761.63 | I58: 1882.53 | J58: 1920.97 | K58: 1942.98 | L58: 1898.95 | M58: 1838.5 | N58: 921900 | O58: -20.33%
A59: 49 | B59: Textile | C59: CENTURYTEX | D59: 1404.55 | E59: 1412.17 | F59: 1384.53 | G59: 1364.52 | H59: 1336.88 | I59: 1432.18 | J59: 1459.82 | K59: 1479.83 | L59: 1439.8 | M59: 1392.15 | N59: 7342500 | O59: -8.22%
A60: 50 | B60: Power | C60: CESC | D60: 1076.80 | E60: 1086.15 | F60: 1062.70 | G60: 1048.60 | H60: 1025.15 | I60: 1100.25 | J60: 1123.70 | K60: 1137.80 | L60: 1109.6 | M60: 1072.05 | N60: 6662150 | O60: -3.97%
A61: 51 | B61: Power | C61: CGPOWER | D61: 92.65 | E61: 93.58 | F61: 91.42 | G61: 90.18 | H61: 88.02 | I61: 94.82 | J61: 96.98 | K61: 98.22 | L61: 95.75 | M61: 92.35 | N61: 24888000 | O61: -5.34%
A62: 52 | B62: Others | C62: CHENNPETRO | D62: 422.15 | E62: 425.07 | F62: 416.33 | G62: 410.52 | H62: 401.78 | I62: 430.88 | J62: 439.62 | K62: 445.43 | L62: 433.8 | M62: 419.25 | N62: 2893500 | O62: -12.32%
A63: 53 | B63: Others | C63: CHOLAFIN | D63: 1315.50 | E63: 1317.40 | F63: 1303.80 | G63: 1292.10 | H63: 1278.50 | I63: 1329.10 | J63: 1342.70 | K63: 1354.40 | L63: 1331 | M63: 1305.7 | N63: 1134000 | O63: -6.78%
A64: 54 | B64: Pharma | C64: CIPLA | D64: 624.15 | E64: 625.33 | F64: 615.97 | G64: 607.78 | H64: 598.42 | I64: 633.52 | J64: 642.88 | K64: 651.07 | L64: 634.7 | M64: 617.15 | N64: 8326000 | O64: -8.66%
A65: 55 | B65: Others | C65: COALINDIA | D65: 291.55 | E65: 292.70 | F65: 289.40 | G65: 287.25 | H65: 283.95 | I65: 294.85 | J65: 298.15 | K65: 300.30 | L65: 296 | M65: 290.55 | N65: 16425200 | O65: -25.38%
A66: 56 | B66: FMCG | C66: COLPAL | D66: 1145.20 | E66: 1150.25 | F66: 1135.50 | G66: 1125.80 | H66: 1111.05 | I66: 1159.95 | J66: 1174.70 | K66: 1184.40 | L66: 1165 | M66: 1140.55 | N66: 1064700 | O66: -4.52%
A67: 57 | B67: Others | C67: CONCOR | D67: 1433.85 | E67: 1450.67 | F67: 1411.13 | G67: 1388.42 | H67: 1348.88 | I67: 1473.38 | J67: 1512.92 | K67: 1535.63 | L67: 1490.2 | M67: 1427.95 | N67: 1061250 | O67: -22.68%
A68: 58 | B68: Capital_Goods | C68: CUMMINSIND | D68: 915.75 | E68: 919.15 | F68: 909.30 | G68: 902.85 | H68: 893.00 | I68: 925.60 | J68: 935.45 | K68: 941.90 | L68: 929 | M68: 912.7 | N68: 573000 | O68: -18.45%
A69: 59 | B69: FMCG | C69: DABUR | D69: 356.05 | E69: 358.50 | F69: 351.40 | G69: 346.75 | H69: 339.65 | I69: 363.15 | J69: 370.25 | K69: 374.90 | L69: 365.6 | M69: 353.85 | N69: 10210000 | O69: -3.72%
A70: 60 | B70: Cement | C70: DALMIABHA | D70: 3021.60 | E70: 3020.30 | F70: 2996.90 | G70: 2972.20 | H70: 2948.80 | I70: 3045.00 | J70: 3068.40 | K70: 3093.10 | L70: 3043.7 | M70: 2995.6 | N70: 538200 | O70: -26.05%
A71: 61 | B71: Banking | C71: DCBBANK | D71: 183.75 | E71: 183.38 | F71: 181.07 | G71: 178.38 | H71: 176.07 | I71: 186.07 | J71: 188.38 | K71: 191.07 | L71: 185.7 | M71: 180.7 | N71: 7132500 | O71: -13.20%
A72: 62 | B72: Finance | C72: DHFL | D72: 598.60 | E72: 593.70 | F72: 581.40 | G72: 564.20 | H72: 551.90 | I72: 610.90 | J72: 623.20 | K72: 640.40 | L72: 606 | M72: 576.5 | N72: 25773000 | O72: 0.69%
A73: 63 | B73: Media | C73: DISHTV | D73: 73.95 | E73: 73.40 | F73: 72.45 | G73: 70.95 | H73: 70.00 | I73: 74.90 | J73: 75.85 | K73: 77.35 | L73: 74.35 | M73: 71.9 | N73: 42210000 | O73: -9.34%
A74: 64 | B74: Pharma | C74: DIVISLAB | D74: 1124.60 | E74: 1118.18 | F74: 1107.62 | G74: 1090.63 | H74: 1080.07 | I74: 1135.17 | J74: 1145.73 | K74: 1162.72 | L74: 1128.75 | M74: 1101.2 | N74: 1781600 | O74: -35.22%
A75: 65 | B75: Realty | C75: DLF | D75: 255.15 | E75: 257.38 | F75: 251.92 | G75: 248.68 | H75: 243.22 | I75: 260.62 | J75: 266.08 | K75: 269.32 | L75: 262.85 | M75: 254.15 | N75: 44495000 | O75: -8.32%
A76: 66 | B76: Pharma | C76: DRREDDY | D76: 2512.05 | E76: 2527.32 | F76: 2448.73 | G76: 2385.42 | H76: 2306.83 | I76: 2590.63 | J76: 2669.22 | K76: 2732.53 | L76: 2605.9 | M76: 2464 | N76: 4740000 | O76: -5.97%
A77: 67 | B77: Automobile | C77: EICHERMOT | D77: 26700.95 | E77: 26669.67 | F77: 26431.63 | G77: 26162.32 | H77: 25924.28 | I77: 26938.98 | J77: 27177.02 | K77: 27446.33 | L77: 26907.7 | M77: 26400.35 | N77: 277950 | O77: -9.61%
A78: 68 | B78: Infrastructure | C78: ENGINERSIN | D78: 174.70 | E78: 175.73 | F78: 172.97 | G78: 171.23 | H78: 168.47 | I78: 177.47 | J78: 180.23 | K78: 181.97 | L78: 178.5 | M78: 174 | N78: 11249000 | O78: -11.87%
A79: 69 | B79: Finance | C79: EQUITAS | D79: 147.00 | E79: 148.48 | F79: 144.92 | G79: 142.83 | H79: 139.27 | I79: 150.57 | J79: 154.13 | K79: 156.22 | L79: 152.05 | M79: 146.4 | N79: 25244800 | O79: -3.72%
A80: 70 | B80: Automobile | C80: ESCORTS | D80: 840.50 | E80: 839.20 | F80: 828.60 | G80: 816.70 | H80: 806.10 | I80: 851.10 | J80: 861.70 | K80: 873.60 | L80: 849.8 | M80: 827.3 | N80: 2259400 | O80: -18.81%
A81: 71 | B81: Automobile | C81: EXIDEIND | D81: 228.45 | E81: 231.05 | F81: 223.90 | G81: 219.35 | H81: 212.20 | I81: 235.60 | J81: 242.75 | K81: 247.30 | L81: 238.2 | M81: 226.5 | N81: 15392000 | O81: -10.28%
A82: 72 | B82: Banking | C82: FEDERALBNK | D82: 101.75 | E82: 102.35 | F82: 100.75 | G82: 99.75 | H82: 98.15 | I82: 103.35 | J82: 104.95 | K82: 105.95 | L82: 103.95 | M82: 101.35 | N82: 78661000 | O82: -10.77%
A83: 73 | B83: Others | C83: FORTIS | D83: 158.35 | E83: 157.53 | F83: 155.57 | G83: 152.78 | H83: 150.82 | I83: 160.32 | J83: 162.28 | K83: 165.07 | L83: 159.5 | M83: 154.75 | N83: 54089000 | O83: 2.07%
A84: 74 | B84: Oil_Gas | C84: GAIL | D84: 489.50 | E84: 487.92 | F84: 482.83 | G84: 476.17 | H84: 471.08 | I84: 494.58 | J84: 499.67 | K84: 506.33 | L84: 493 | M84: 481.25 | N84: 11584000 | O84: -29.28%
A85: 75 | B85: Pharma | C85: GLENMARK | D85: 637.05 | E85: 640.30 | F85: 630.95 | G85: 624.85 | H85: 615.50 | I85: 646.40 | J85: 655.75 | K85: 661.85 | L85: 649.65 | M85: 634.2 | N85: 5511600 | O85: -9.09%
A86: 76 | B86: Infrastructure | C86: GMRINFRA | D86: 22.85 | E86: 22.87 | F86: 22.23 | G86: 21.62 | H86: 20.98 | I86: 23.48 | J86: 24.12 | K86: 24.73 | L86: 23.5 | M86: 22.25 | N86: 297720000 | O86: -20.28%
A87: 77 | B87: Others | C87: GODFRYPHLP | D87: 970.40 | E87: 977.10 | F87: 957.95 | G87: 945.50 | H87: 926.35 | I87: 989.55 | J87: 1008.70 | K87: 1021.15 | L87: 996.25 | M87: 964.65 | N87: 849000 | O87: -11.15%
A88: 78 | B88: FMCG | C88: GODREJCP | D88: 1080.15 | E88: 1089.22 | F88: 1062.43 | G88: 1044.72 | H88: 1017.93 | I88: 1106.93 | J88: 1133.72 | K88: 1151.43 | L88: 1116 | M88: 1071.5 | N88: 1332000 | O88: -23.17%
A89: 79 | B89: FMCG | C89: GODREJIND | D89: 623.70 | E89: 624.78 | F89: 617.22 | G89: 610.73 | H89: 603.17 | I89: 631.27 | J89: 638.83 | K89: 645.32 | L89: 632.35 | M89: 618.3 | N89: 1546500 | O89: -15.49%
A90: 80 | B90: Pharma | C90: GRANULES | D90: 137.65 | E90: 138.87 | F90: 135.48 | G90: 133.32 | H90: 129.93 | I90: 141.03 | J90: 144.42 | K90: 146.58 | L90: 142.25 | M90: 136.7 | N90: 15380000 | O90: -4.05%
A91: 81 | B91: Cement | C91: GRASIM | D91: 1199.70 | E91: 1202.43 | F91: 1191.37 | G91: 1183.03 | H91: 1171.97 | I91: 1210.77 | J91: 1221.83 | K91: 1230.17 | L91: 1213.5 | M91: 1194.1 | N91: 3037500 | O91: -10.87%
A92: 82 | B92: Others | C92: GSFC | D92: 149.95 | E92: 151.72 | F92: 147.23 | G92: 144.52 | H92: 140.03 | I92: 154.43 | J92: 158.92 | K92: 161.63 | L92: 156.2 | M92: 149 | N92: 21933000 | O92: -7.13%
A93: 83 | B93: Others | C93: HAVELLS | D93: 584.20 | E93: 584.62 | F93: 576.03 | G93: 567.87 | H93: 559.28 | I93: 592.78 | J93: 601.37 | K93: 609.53 | L93: 593.2 | M93: 576.45 | N93: 3382000 | O93: -13.15%
A94: 84 | B94: Others | C94: HCC | D94: 40.05 | E94: 40.23 | F94: 39.62 | G94: 39.18 | H94: 38.57 | I94: 40.67 | J94: 41.28 | K94: 41.72 | L94: 40.85 | M94: 39.8 | N94: 57975000 | O94: -14.23%
A95: 85 | B95: Technology | C95: HCLTECH | D95: 1004.95 | E95: 1004.17 | F95: 993.08 | G95: 981.22 | H95: 970.13 | I95: 1016.03 | J95: 1027.12 | K95: 1038.98 | L95: 1015.25 | M95: 992.3 | N95: 10501400 | O95: -8.99%
A96: 86 | B96: Finance | C96: HDFC | D96: 1914.40 | E96: 1912.47 | F96: 1894.58 | G96: 1874.77 | H96: 1856.88 | I96: 1932.28 | J96: 1950.17 | K96: 1969.98 | L96: 1930.35 | M96: 1892.65 | N96: 17804000 | O96: -14.93%
A97: 87 | B97: Banking | C97: HDFCBANK | D97: 1971.45 | E97: 1966.83 | F97: 1956.67 | G97: 1941.88 | H97: 1931.72 | I97: 1981.62 | J97: 1991.78 | K97: 2006.57 | L97: 1977 | M97: 1952.05 | N97: 21536000 | O97: -19.53%
A98: 88 | B98: Realty | C98: HDIL | D98: 59.80 | E98: 59.95 | F98: 58.85 | G98: 57.90 | H98: 56.80 | I98: 60.90 | J98: 62.00 | K98: 62.95 | L98: 61.05 | M98: 59 | N98: 31347000 | O98: -5.66%
A99: 89 | B99: Automobile | C99: HEROMOTOCO | D99: 3588.70 | E99: 3614.22 | F99: 3554.48 | G99: 3520.27 | H99: 3460.53 | I99: 3648.43 | J99: 3708.17 | K99: 3742.38 | L99: 3673.95 | M99: 3580 | N99: 1556200 | O99: -20.19%
A100: 90 | B100: Technology | C100: HEXAWARE | D100: 378.30 | E100: 381.58 | F100: 372.07 | G100: 365.83 | H100: 356.32 | I100: 387.82 | J100: 397.33 | K100: 403.57 | L100: 391.1 | M100: 375.35 | N100: 3738000 | O100: -21.68%
A101: 91 | B101: Metals | C101: HINDALCO | D101: 260.30 | E101: 262.08 | F101: 256.27 | G101: 252.23 | H101: 246.42 | I101: 266.12 | J101: 271.93 | K101: 275.97 | L101: 267.9 | M101: 258.05 | N101: 37296000 | O101: -14.13%
A102: 92 | B102: Oil_Gas | C102: HINDPETRO | D102: 384.75 | E102: 387.82 | F102: 380.63 | G102: 376.52 | H102: 369.33 | I102: 391.93 | J102: 399.12 | K102: 403.23 | L102: 395 | M102: 383.7 | N102: 25223625 | O102: -11.48%
A103: 93 | B103: FMCG | C103: HINDUNILVR | D103: 1378.95 | E103: 1376.27 | F103: 1369.68 | G103: 1360.42 | H103: 1353.83 | I103: 1385.53 | J103: 1392.12 | K103: 1401.38 | L103: 1382.85 | M103: 1367 | N103: 9097800 | O103: -17.35%
A104: 94 | B104: Metals | C104: HINDZINC | D104: 299.95 | E104: 299.42 | F104: 297.33 | G104: 294.72 | H104: 292.63 | I104: 302.03 | J104: 304.12 | K104: 306.73 | L104: 301.5 | M104: 296.8 | N104: 9545600 | O104: -15.88%
A105: 95 | B105: Finance | C105: IBULHSGFIN | D105: 1389.40 | E105: 1376.88 | F105: 1354.77 | G105: 1320.13 | H105: 1298.02 | I105: 1411.52 | J105: 1433.63 | K105: 1468.27 | L105: 1399 | M105: 1342.25 | N105: 15802000 | O105: -4.01%
A106: 96 | B106: Banking | C106: ICICIBANK | D106: 357.15 | E106: 356.92 | F106: 352.53 | G106: 347.92 | H106: 343.53 | I106: 361.53 | J106: 365.92 | K106: 370.53 | L106: 361.3 | M106: 352.3 | N106: 89949750 | O106: -15.77%
A107: 97 | B107: Others | C107: ICICIPRULI | D107: 432.65 | E107: 434.38 | F107: 427.27 | G107: 421.88 | H107: 414.77 | I107: 439.77 | J107: 446.88 | K107: 452.27 | L107: 441.5 | M107: 429 | N107: 4296500 | O107: -33.38%
A108: 98 | B108: Banking | C108: IDBI | D108: 65.35 | E108: 67.42 | F108: 62.73 | G108: 60.12 | H108: 55.43 | I108: 70.03 | J108: 74.72 | K108: 77.33 | L108: 72.1 | M108: 64.8 | N108: 28610000 | O108: -18.23%
A109: 99 | B109: Telecom | C109: IDEA | D109: 95.50 | E109: 95.47 | F109: 93.18 | G109: 90.87 | H109: 88.58 | I109: 97.78 | J109: 100.07 | K109: 102.38 | L109: 97.75 | M109: 93.15 | N109: 60865000 | O109: -11.08%
A110: 100 | B110: Finance | C110: IDFC | D110: 57.05 | E110: 57.50 | F110: 56.25 | G110: 55.45 | H110: 54.20 | I110: 58.30 | J110: 59.55 | K110: 60.35 | L110: 58.75 | M110: 56.7 | N110: 199016400 | O110: -6.53%
A111: 101 | B111: Banking | C111: IDFCBANK | D111: 58.50 | E111: 58.85 | F111: 57.90 | G111: 57.30 | H111: 56.35 | I111: 59.45 | J111: 60.40 | K111: 61.00 | L111: 59.8 | M111: 58.25 | N111: 177552000 | O111: -15.58%
A112: 102 | B112: Finance | C112: IFCI | D112: 30.95 | E112: 31.23 | F112: 30.52 | G112: 30.08 | H112: 29.37 | I112: 31.67 | J112: 32.38 | K112: 32.82 | L112: 31.95 | M112: 30.8 | N112: 75086000 | O112: -2.51%
A113: 103 | B113: Oil_Gas | C113: IGL | D113: 309.35 | E113: 311.18 | F113: 306.37 | G113: 303.38 | H113: 298.57 | I113: 314.17 | J113: 318.98 | K113: 321.97 | L113: 316 | M113: 308.2 | N113: 7551500 | O113: -18.73%
A114: 104 | B114: Cement | C114: INDIACEM | D114: 176.20 | E114: 177.32 | F114: 172.48 | G114: 168.77 | H114: 163.93 | I114: 181.03 | J114: 185.87 | K114: 189.58 | L114: 182.15 | M114: 173.6 | N114: 27013000 | O114: -4.39%
A115: 105 | B115: Banking | C115: INDIANB | D115: 379.20 | E115: 385.57 | F115: 371.13 | G115: 363.07 | H115: 348.63 | I115: 393.63 | J115: 408.07 | K115: 416.13 | L115: 400 | M115: 377.5 | N115: 3928000 | O115: -12.32%
A116: 106 | B116: Others | C116: INDIGO | D116: 1243.50 | E116: 1254.25 | F116: 1224.50 | G116: 1205.50 | H116: 1175.75 | I116: 1273.25 | J116: 1303.00 | K116: 1322.00 | L116: 1284 | M116: 1235.25 | N116: 2628600 | O116: -18.70%
A117: 107 | B117: Banking | C117: INDUSINDBK | D117: 1710.40 | E117: 1705.18 | F117: 1695.37 | G117: 1680.33 | H117: 1670.52 | I117: 1720.22 | J117: 1730.03 | K117: 1745.07 | L117: 1715 | M117: 1690.15 | N117: 7276500 | O117: -16.95%
A118: 108 | B118: Technology | C118: INFIBEAM | D118: 158.20 | E118: 158.22 | F118: 154.03 | G118: 149.87 | H118: 145.68 | I118: 162.38 | J118: 166.57 | K118: 170.73 | L118: 162.4 | M118: 154.05 | N118: 34924000 | O118: -6.68%
A119: 109 | B119: Telecom | C119: INFRATEL | D119: 344.65 | E119: 345.33 | F119: 340.67 | G119: 336.68 | H119: 332.02 | I119: 349.32 | J119: 353.98 | K119: 357.97 | L119: 350 | M119: 341.35 | N119: 9911000 | O119: -12.55%
A120: 110 | B120: Technology | C120: INFY | D120: 1174.95 | E120: 1173.58 | F120: 1164.52 | G120: 1154.08 | H120: 1145.02 | I120: 1184.02 | J120: 1193.08 | K120: 1203.52 | L120: 1182.65 | M120: 1163.15 | N120: 34382400 | O120: -9.71%
A121: 111 | B121: Oil_Gas | C121: IOC | D121: 381.85 | E121: 382.83 | F121: 378.27 | G121: 374.68 | H121: 370.12 | I121: 386.42 | J121: 390.98 | K121: 394.57 | L121: 387.4 | M121: 379.25 | N121: 10468500 | O121: -23.34%
A122: 112 | B122: Infrastructure | C122: IRB | D122: 245.10 | E122: 243.80 | F122: 241.55 | G122: 238.00 | H122: 235.75 | I122: 247.35 | J122: 249.60 | K122: 253.15 | L122: 246.05 | M122: 240.25 | N122: 15927500 | O122: -18.15%
A123: 113 | B123: FMCG | C123: ITC | D123: 281.65 | E123: 281.80 | F123: 279.60 | G123: 277.55 | H123: 275.35 | I123: 283.85 | J123: 286.05 | K123: 288.10 | L123: 284 | M123: 279.75 | N123: 88252800 | O123: -15.31%
A124: 114 | B124: Others | C124: JETAIRWAYS | D124: 770.65 | E124: 772.83 | F124: 758.82 | G124: 746.98 | H124: 732.97 | I124: 784.67 | J124: 798.68 | K124: 810.52 | L124: 786.85 | M124: 761 | N124: 5109600 | O124: -13.35%
A125: 115 | B125: Metals | C125: JINDALSTEL | D125: 282.55 | E125: 279.25 | F125: 272.80 | G125: 263.05 | H125: 256.60 | I125: 289.00 | J125: 295.45 | K125: 305.20 | L125: 285.7 | M125: 269.5 | N125: 23917500 | O125: -14.85%
A126: 116 | B126: Others | C126: JISLJALEQS | D126: 146.55 | E126: 145.85 | F126: 144.25 | G126: 141.95 | H126: 140.35 | I126: 148.15 | J126: 149.75 | K126: 152.05 | L126: 147.45 | M126: 143.55 | N126: 48573000 | O126: -6.14%
A127: 117 | B127: Realty | C127: JPASSOCIAT | D127: 22.20 | E127: 22.12 | F127: 21.53 | G127: 20.87 | H127: 20.28 | I127: 22.78 | J127: 23.37 | K127: 24.03 | L127: 22.7 | M127: 21.45 | N127: 250954000 | O127: -8.96%
A128: 118 | B128: Metals | C128: JSWSTEEL | D128: 292.10 | E128: 293.60 | F128: 288.20 | G128: 284.30 | H128: 278.90 | I128: 297.50 | J128: 302.90 | K128: 306.80 | L128: 299 | M128: 289.7 | N128: 48249000 | O128: -6.91%
A129: 119 | B129: Others | C129: JUBLFOOD | D129: 2225.05 | E129: 2244.87 | F129: 2191.73 | G129: 2158.42 | H129: 2105.28 | I129: 2278.18 | J129: 2331.32 | K129: 2364.63 | L129: 2298 | M129: 2211.55 | N129: 2646500 | O129: -24.25%
A130: 120 | B130: Others | C130: JUSTDIAL | D130: 581.75 | E130: 580.67 | F130: 572.93 | G130: 564.12 | H130: 556.38 | I130: 589.48 | J130: 597.22 | K130: 606.03 | L130: 588.4 | M130: 571.85 | N130: 2839200 | O130: -14.75%
A131: 121 | B131: Others | C131: KAJARIACER | D131: 701.30 | E131: 705.75 | F131: 691.55 | G131: 681.80 | H131: 667.60 | I131: 715.50 | J131: 729.70 | K131: 739.45 | L131: 719.95 | M131: 696 | N131: 1224000 | O131: -5.15%
A132: 122 | B132: Banking | C132: KOTAKBANK | D132: 1093.00 | E132: 1085.50 | F132: 1073.60 | G132: 1054.20 | H132: 1042.30 | I132: 1104.90 | J132: 1116.80 | K132: 1136.20 | L132: 1097.4 | M132: 1066.1 | N132: 12312800 | O132: -23.92%
A133: 123 | B133: Technology | C133: KPIT | D133: 212.95 | E133: 212.05 | F133: 207.95 | G133: 202.95 | H133: 198.85 | I133: 217.05 | J133: 221.15 | K133: 226.15 | L133: 216.15 | M133: 207.05 | N133: 13576500 | O133: -2.99%
A134: 124 | B134: Others | C134: KSCL | D134: 515.20 | E134: 517.83 | F134: 508.67 | G134: 502.13 | H134: 492.97 | I134: 524.37 | J134: 533.53 | K134: 540.07 | L134: 527 | M134: 511.3 | N134: 3783000 | O134: -8.39%
A135: 125 | B135: Banking | C135: KTKBANK | D135: 154.40 | E135: 155.43 | F135: 153.02 | G135: 151.63 | H135: 149.22 | I135: 156.82 | J135: 159.23 | K135: 160.62 | L135: 157.85 | M135: 154.05 | N135: 24240200 | O135: -10.65%
A136: 126 | B136: Finance | C136: L&TFH | D136: 177.95 | E136: 178.83 | F136: 174.97 | G136: 171.98 | H136: 168.12 | I136: 181.82 | J136: 185.68 | K136: 188.67 | L136: 182.7 | M136: 175.85 | N136: 45396000 | O136: -0.13%
A137: 127 | B137: Finance | C137: LICHSGFIN | D137: 558.95 | E137: 563.27 | F137: 552.68 | G137: 546.42 | H137: 535.83 | I137: 569.53 | J137: 580.12 | K137: 586.38 | L137: 573.85 | M137: 557 | N137: 16430700 | O137: -1.94%
A138: 128 | B138: Capital_Goods | C138: LT | D138: 1412.20 | E138: 1412.73 | F138: 1394.87 | G138: 1377.53 | H138: 1359.67 | I138: 1430.07 | J138: 1447.93 | K138: 1465.27 | L138: 1430.6 | M138: 1395.4 | N138: 13371000 | O138: -14.54%
A139: 129 | B139: Pharma | C139: LUPIN | D139: 954.00 | E139: 958.85 | F139: 943.65 | G139: 933.30 | H139: 918.10 | I139: 969.20 | J139: 984.40 | K139: 994.75 | L139: 974.05 | M139: 948.5 | N139: 11364000 | O139: -6.60%
A140: 130 | B140: Automobile | C140: M&M | D140: 761.00 | E140: 759.48 | F140: 753.32 | G140: 745.63 | H140: 739.47 | I140: 767.17 | J140: 773.33 | K140: 781.02 | L140: 765.65 | M140: 751.8 | N140: 12379000 | O140: -16.32%
A141: 131 | B141: Finance | C141: M&MFIN | D141: 484.70 | E141: 487.32 | F141: 470.63 | G141: 456.57 | H141: 439.88 | I141: 501.38 | J141: 518.07 | K141: 532.13 | L141: 504 | M141: 473.25 | N141: 6237500 | O141: -27.62%
A142: 132 | B142: Others | C142: MANAPPURAM | D142: 119.05 | E142: 119.17 | F142: 117.78 | G142: 116.52 | H142: 115.13 | I142: 120.43 | J142: 121.82 | K142: 123.08 | L142: 120.55 | M142: 117.9 | N142: 31422000 | O142: -9.19%
A143: 133 | B143: FMCG | C143: MARICO | D143: 308.25 | E143: 309.05 | F143: 305.15 | G143: 302.05 | H143: 298.15 | I143: 312.15 | J143: 316.05 | K143: 319.15 | L143: 312.95 | M143: 305.95 | N143: 4992000 | O143: -9.43%
A144: 134 | B144: Automobile | C144: MARUTI | D144: 9334.15 | E144: 9389.93 | F144: 9255.87 | G144: 9177.58 | H144: 9043.52 | I144: 9468.22 | J144: 9602.28 | K144: 9680.57 | L144: 9524 | M144: 9311.65 | N144: 2735025 | O144: -11.91%
A145: 135 | B145: FMCG | C145: MCDOWELL-N | D145: 3390.80 | E145: 3423.02 | F145: 3347.88 | G145: 3304.97 | H145: 3229.83 | I145: 3465.93 | J145: 3541.07 | K145: 3583.98 | L145: 3498.15 | M145: 3380.1 | N145: 2383500 | O145: -3.47%
A146: 136 | B146: Others | C146: MCX | D146: 828.15 | E146: 832.80 | F146: 820.55 | G146: 812.95 | H146: 800.70 | I146: 840.40 | J146: 852.65 | K146: 860.25 | L146: 845.05 | M146: 825.2 | N146: 3989000 | O146: -6.78%
A147: 137 | B147: Finance | C147: MFSL | D147: 539.60 | E147: 535.92 | F147: 527.83 | G147: 516.07 | H147: 507.98 | I147: 547.68 | J147: 555.77 | K147: 567.53 | L147: 544 | M147: 524.15 | N147: 2884000 | O147: -14.19%
A148: 138 | B148: Others | C148: MGL | D148: 1036.55 | E148: 1040.97 | F148: 1023.38 | G148: 1010.22 | H148: 992.63 | I148: 1054.13 | J148: 1071.72 | K148: 1084.88 | L148: 1058.55 | M148: 1027.8 | N148: 1374000 | O148: -5.49%
A149: 139 | B149: Technology | C149: MINDTREE | D149: 753.65 | E149: 759.43 | F149: 744.27 | G149: 734.88 | H149: 719.72 | I149: 768.82 | J149: 783.98 | K149: 793.37 | L149: 774.6 | M149: 750.05 | N149: 2228400 | O149: -32.79%
A150: 140 | B150: Automobile | C150: MOTHERSUMI | D150: 372.75 | E150: 377.07 | F150: 366.43 | G150: 360.12 | H150: 349.48 | I150: 383.38 | J150: 394.02 | K150: 400.33 | L150: 387.7 | M150: 370.75 | N150: 10400000 | O150: -6.54%
A151: 141 | B151: Automobile | C151: MRF | D151: 67973.90 | E151: 68439.85 | F151: 67149.65 | G151: 66325.40 | H151: 65035.20 | I151: 69264.10 | J151: 70554.30 | K151: 71378.55 | L151: 69730.05 | M151: 67615.6 | N151: 59700 | O151: -0.90%
A152: 142 | B152: Others | C152: MRPL | D152: 128.30 | E152: 129.75 | F152: 126.00 | G152: 123.70 | H152: 119.95 | I152: 132.05 | J152: 135.80 | K152: 138.10 | L152: 133.5 | M152: 127.45 | N152: 9504000 | O152: -13.51%
A153: 143 | B153: Finance | C153: MUTHOOTFIN | D153: 428.95 | E153: 430.45 | F153: 425.70 | G153: 422.45 | H153: 417.70 | I153: 433.70 | J153: 438.45 | K153: 441.70 | L153: 435.2 | M153: 427.2 | N153: 2707500 | O153: -11.78%
A154: 144 | B154: Others | C154: NATIONALUM | D154: 77.30 | E154: 77.45 | F154: 76.60 | G154: 75.90 | H154: 75.05 | I154: 78.15 | J154: 79.00 | K154: 79.70 | L154: 78.3 | M154: 76.75 | N154: 51088000 | O154: -12.83%
A155: 145 | B155: Others | C155: NBCC | D155: 236.40 | E155: 238.03 | F155: 234.02 | G155: 231.63 | H155: 227.62 | I155: 240.42 | J155: 244.43 | K155: 246.82 | L155: 242.05 | M155: 235.65 | N155: 12201000 | O155: -3.83%
A156: 146 | B156: Infrastructure | C156: NCC | D156: 128.70 | E156: 129.28 | F156: 125.62 | G156: 122.53 | H156: 118.87 | I156: 132.37 | J156: 136.03 | K156: 139.12 | L156: 132.95 | M156: 126.2 | N156: 28176000 | O156: -14.26%
A157: 147 | B157: Others | C157: NESTLEIND | D157: 7544.75 | E157: 7570.92 | F157: 7476.83 | G157: 7408.92 | H157: 7314.83 | I157: 7638.83 | J157: 7732.92 | K157: 7800.83 | L157: 7665 | M157: 7503 | N157: 128400 | O157: -9.96%
A158: 148 | B158: Power | C158: NHPC | D158: 28.85 | E158: 28.93 | F158: 28.62 | G158: 28.38 | H158: 28.07 | I158: 29.17 | J158: 29.48 | K158: 29.72 | L158: 29.25 | M158: 28.7 | N158: 53568000 | O158: -29.32%
A159: 149 | B159: Technology | C159: NIITTECH | D159: 910.05 | E159: 893.08 | F159: 870.87 | G159: 831.68 | H159: 809.47 | I159: 932.27 | J159: 954.48 | K159: 993.67 | L159: 915.3 | M159: 853.9 | N159: 1600500 | O159: -1.84%
A160: 150 | B160: Metals | C160: NMDC | D160: 144.20 | E160: 145.03 | F160: 142.42 | G160: 140.63 | H160: 138.02 | I160: 146.82 | J160: 149.43 | K160: 151.22 | L160: 147.65 | M160: 143.25 | N160: 39408000 | O160: -24.17%
A161: 151 | B161: Power | C161: NTPC | D161: 169.45 | E161: 170.57 | F161: 167.88 | G161: 166.32 | H161: 163.63 | I161: 172.13 | J161: 174.82 | K161: 176.38 | L161: 173.25 | M161: 169 | N161: 24640000 | O161: -22.78%
A162: 152 | B162: Technology | C162: OFSS | D162: 4243.00 | E162: 4250.72 | F162: 4172.33 | G162: 4101.67 | H162: 4023.28 | I162: 4321.38 | J162: 4399.77 | K162: 4470.43 | L162: 4329.1 | M162: 4180.05 | N162: 125250 | O162: -15.83%
A163: 153 | B163: Oil_Gas | C163: OIL | D163: 371.15 | E163: 373.70 | F163: 366.70 | G163: 362.25 | H163: 355.25 | I163: 378.15 | J163: 385.15 | K163: 389.60 | L163: 380.7 | M163: 369.25 | N163: 2463142 | O163: -16.13%
A164: 154 | B164: Oil_Gas | C164: ONGC | D164: 208.95 | E164: 212.13 | F164: 204.27 | G164: 199.58 | H164: 191.72 | I164: 216.82 | J164: 224.68 | K164: 229.37 | L164: 220 | M164: 207.45 | N164: 38272500 | O164: -18.44%
A165: 155 | B165: Banking | C165: ORIENTBANK | D165: 123.75 | E165: 127.68 | F165: 118.47 | G165: 113.18 | H165: 103.97 | I165: 132.97 | J165: 142.18 | K165: 147.47 | L165: 136.9 | M165: 122.4 | N165: 16482000 | O165: -7.16%
A166: 156 | B166: Textile | C166: PAGEIND | D166: 22008.80 | E166: 22037.80 | F166: 21846.75 | G166: 21684.70 | H166: 21493.65 | I166: 22199.85 | J166: 22390.90 | K166: 22552.95 | L166: 22228.85 | M166: 21875.75 | N166: 37750 | O166: -31.11%
A167: 157 | B167: Others | C167: PCJEWELLER | D167: 563.80 | E167: 560.87 | F167: 547.73 | G167: 531.67 | H167: 518.53 | I167: 576.93 | J167: 590.07 | K167: 606.13 | L167: 574 | M167: 544.8 | N167: 14041500 | O167: -20.61%
A168: 158 | B168: Pharma | C168: PEL | D168: 2784.40 | E168: 2795.57 | F168: 2763.88 | G168: 2743.37 | H168: 2711.68 | I168: 2816.08 | J168: 2847.77 | K168: 2868.28 | L168: 2827.25 | M168: 2775.05 | N168: 1441500 | O168: -7.45%
A169: 159 | B169: Oil_Gas | C169: PETRONET | D169: 244.50 | E169: 245.25 | F169: 241.25 | G169: 238.00 | H169: 234.00 | I169: 248.50 | J169: 252.50 | K169: 255.75 | L169: 249.25 | M169: 242 | N169: 17199000 | O169: -14.32%
A170: 160 | B170: Finance | C170: PFC | D170: 119.40 | E170: 120.20 | F170: 118.05 | G170: 116.70 | H170: 114.55 | I170: 121.55 | J170: 123.70 | K170: 125.05 | L170: 122.35 | M170: 118.85 | N170: 63822000 | O170: -10.40%
A171: 161 | B171: FMCG | C171: PIDILITIND | D171: 881.30 | E171: 887.82 | F171: 872.63 | G171: 863.97 | H171: 848.78 | I171: 896.48 | J171: 911.67 | K171: 920.33 | L171: 903 | M171: 879.15 | N171: 1674000 | O171: -0.36%
A172: 162 | B172: Banking | C172: PNB | D172: 181.70 | E172: 186.97 | F172: 175.63 | G172: 169.57 | H172: 158.23 | I172: 193.03 | J172: 204.37 | K172: 210.43 | L172: 198.3 | M172: 180.9 | N172: 40188000 | O172: -20.88%
A173: 163 | B173: Power | C173: POWERGRID | D173: 194.25 | E173: 194.85 | F173: 192.80 | G173: 191.35 | H173: 189.30 | I173: 196.30 | J173: 198.35 | K173: 199.80 | L173: 196.9 | M173: 193.4 | N173: 27528000 | O173: -17.57%
A174: 164 | B174: Power | C174: PTC | D174: 111.50 | E174: 112.40 | F174: 110.00 | G174: 108.50 | H174: 106.10 | I174: 113.90 | J174: 116.30 | K174: 117.80 | L174: 114.8 | M174: 110.9 | N174: 20928000 | O174: -4.70%
A175: 165 | B175: Others | C175: PVR | D175: 1474.30 | E175: 1484.53 | F175: 1457.32 | G175: 1440.33 | H175: 1413.12 | I175: 1501.52 | J175: 1528.73 | K175: 1545.72 | L175: 1511.75 | M175: 1467.55 | N175: 408000 | O175: -20.44%
A176: 166 | B176: Cement | C176: RAMCOCEM | D176: 778.10 | E176: 780.75 | F176: 772.55 | G176: 767.00 | H176: 758.80 | I176: 786.30 | J176: 794.50 | K176: 800.05 | L176: 788.95 | M176: 775.2 | N176: 344000 | O176: -19.02%
A177: 167 | B177: Others | C177: RAYMOND | D177: 1080.10 | E177: 1098.57 | F177: 1058.23 | G177: 1036.37 | H177: 996.03 | I177: 1120.43 | J177: 1160.77 | K177: 1182.63 | L177: 1138.9 | M177: 1076.7 | N177: 4868000 | O177: -10.53%
A178: 168 | B178: Banking | C178: RBLBANK | D178: 513.30 | E178: 515.23 | F178: 509.62 | G178: 505.93 | H178: 500.32 | I178: 518.92 | J178: 524.53 | K178: 528.22 | L178: 520.85 | M178: 511.55 | N178: 5955000 | O178: -10.34%
A179: 169 | B179: Telecom | C179: RCOM | D179: 28.60 | E179: 28.68 | F179: 27.97 | G179: 27.33 | H179: 26.62 | I179: 29.32 | J179: 30.03 | K179: 30.67 | L179: 29.4 | M179: 28.05 | N179: 71904000 | O179: -19.52%
A180: 170 | B180: Capital_Goods | C180: RNAVAL | D180: 49.85 | E180: 49.87 | F180: 48.98 | G180: 48.12 | H180: 47.23 | I180: 50.73 | J180: 51.62 | K180: 52.48 | L180: 50.75 | M180: 49 | N180: 33570000 | O180: -13.03%
A181: 171 | B181: Power | C181: RECLTD | D181: 153.15 | E181: 154.05 | F181: 151.70 | G181: 150.25 | H181: 147.90 | I181: 155.50 | J181: 157.85 | K181: 159.30 | L181: 156.4 | M181: 152.6 | N181: 44214000 | O181: -25.59%
A182: 172 | B182: Finance | C182: RELCAPITAL | D182: 508.85 | E182: 512.70 | F182: 503.15 | G182: 497.45 | H182: 487.90 | I182: 518.40 | J182: 527.95 | K182: 533.65 | L182: 522.25 | M182: 507 | N182: 13126500 | O182: -17.17%
A183: 173 | B183: Oil_Gas | C183: RELIANCE | D183: 969.40 | E183: 968.53 | F183: 961.07 | G183: 952.73 | H183: 945.27 | I183: 976.87 | J183: 984.33 | K183: 992.67 | L183: 976 | M183: 960.2 | N183: 40581000 | O183: -4.16%
A184: 174 | B184: Power | C184: RELINFRA | D184: 517.45 | E184: 519.08 | F184: 513.12 | G184: 508.78 | H184: 502.82 | I184: 523.42 | J184: 529.38 | K184: 533.72 | L184: 525.05 | M184: 514.75 | N184: 11545300 | O184: -13.83%
A185: 175 | B185: Others | C185: REPCOHOME | D185: 665.90 | E185: 668.62 | F185: 658.43 | G185: 650.97 | H185: 640.78 | I185: 676.08 | J185: 686.27 | K185: 693.73 | L185: 678.8 | M185: 661.15 | N185: 835200 | O185: -8.30%
A186: 176 | B186: Power | C186: RPOWER | D186: 47.50 | E186: 47.72 | F186: 46.73 | G186: 45.97 | H186: 44.98 | I186: 48.48 | J186: 49.47 | K186: 50.23 | L186: 48.7 | M186: 46.95 | N186: 61295000 | O186: -14.51%
A187: 177 | B187: Metals | C187: SAIL | D187: 94.60 | E187: 95.13 | F187: 93.47 | G187: 92.33 | H187: 90.67 | I187: 96.27 | J187: 97.93 | K187: 99.07 | L187: 96.8 | M187: 94 | N187: 64788000 | O187: -9.81%
A188: 178 | B188: Banking | C188: SBIN | D188: 314.45 | E188: 320.33 | F188: 307.32 | G188: 300.18 | H188: 287.17 | I188: 327.47 | J188: 340.48 | K188: 347.62 | L188: 333.35 | M188: 313.2 | N188: 65436000 | O188: -18.23%
A189: 179 | B189: Cement | C189: SHREECEM | D189: 18287.90 | E189: 18350.03 | F189: 18120.12 | G189: 17952.33 | H189: 17722.42 | I189: 18517.82 | J189: 18747.73 | K189: 18915.52 | L189: 18579.95 | M189: 18182.25 | N189: 57100 | O189: -9.51%
A190: 180 | B190: Capital_Goods | C190: SIEMENS | D190: 1302.60 | E190: 1308.48 | F190: 1291.07 | G190: 1279.53 | H190: 1262.12 | I190: 1320.02 | J190: 1337.43 | K190: 1348.97 | L190: 1325.9 | M190: 1296.95 | N190: 793000 | O190: -11.50%
A191: 181 | B191: Banking | C191: SOUTHBANK | D191: 31.40 | E191: 31.58 | F191: 31.02 | G191: 30.63 | H191: 30.07 | I191: 31.97 | J191: 32.53 | K191: 32.92 | L191: 32.15 | M191: 31.2 | N191: 172465764 | O191: -12.77%
A192: 182 | B192: Others | C192: SREINFRA | D192: 98.35 | E192: 99.03 | F192: 96.97 | G192: 95.58 | H192: 93.52 | I192: 100.42 | J192: 102.48 | K192: 103.87 | L192: 101.1 | M192: 97.65 | N192: 19510000 | O192: -9.21%
A193: 183 | B193: Textile | C193: SRF | D193: 1848.65 | E193: 1870.08 | F193: 1818.57 | G193: 1788.48 | H193: 1736.97 | I193: 1900.17 | J193: 1951.68 | K193: 1981.77 | L193: 1921.6 | M193: 1840 | N193: 634000 | O193: -15.01%
A194: 184 | B194: Finance | C194: SRTRANSFIN | D194: 1454.35 | E194: 1450.10 | F194: 1438.20 | G194: 1422.05 | H194: 1410.15 | I194: 1466.25 | J194: 1478.15 | K194: 1494.30 | L194: 1462 | M194: 1433.95 | N194: 1938600 | O194: -11.07%
A195: 185 | B195: Pharma | C195: STAR | D195: 793.95 | E195: 800.18 | F195: 783.87 | G195: 773.78 | H195: 757.47 | I195: 810.27 | J195: 826.58 | K195: 836.67 | L195: 816.5 | M195: 790.1 | N195: 4446600 | O195: -2.35%
A196: 186 | B196: Pharma | C196: SUNPHARMA | D196: 583.25 | E196: 587.65 | F196: 576.60 | G196: 569.95 | H196: 558.90 | I196: 594.30 | J196: 605.35 | K196: 612.00 | L196: 598.7 | M196: 581 | N196: 53006800 | O196: -4.56%
A197: 187 | B197: Media | C197: SUNTV | D197: 1039.35 | E197: 1043.12 | F197: 1032.23 | G197: 1025.12 | H197: 1014.23 | I197: 1050.23 | J197: 1061.12 | K197: 1068.23 | L197: 1054 | M197: 1036 | N197: 4305000 | O197: -9.44%
A198: 188 | B198: Power | C198: SUZLON | D198: 14.70 | E198: 14.78 | F198: 14.52 | G198: 14.33 | H198: 14.07 | I198: 14.97 | J198: 15.23 | K198: 15.42 | L198: 15.05 | M198: 14.6 | N198: 410585000 | O198: -15.34%
A199: 189 | B199: Banking | C199: SYNDIBANK | D199: 77.00 | E199: 79.02 | F199: 74.53 | G199: 72.07 | H199: 67.58 | I199: 81.48 | J199: 85.97 | K199: 88.43 | L199: 83.5 | M199: 76.55 | N199: 27702000 | O199: -7.48%
A200: 190 | B200: Fertilisers | C200: TATACHEM | D200: 721.85 | E200: 726.07 | F200: 714.98 | G200: 708.12 | H200: 697.03 | I200: 732.93 | J200: 744.02 | K200: 750.88 | L200: 737.15 | M200: 719.2 | N200: 8817000 | O200: -10.23%
A201: 191 | B201: Telecom | C201: TATACOMM | D201: 622.95 | E201: 627.48 | F201: 616.47 | G201: 609.98 | H201: 598.97 | I201: 633.97 | J201: 644.98 | K201: 651.47 | L201: 638.5 | M201: 621 | N201: 8152800 | O201: -5.46%
A202: 192 | B202: Technology | C202: TATAELXSI | D202: 1092.60 | E202: 1098.20 | F202: 1079.55 | G202: 1066.50 | H202: 1047.85 | I202: 1111.25 | J202: 1129.90 | K202: 1142.95 | L202: 1116.85 | M202: 1085.15 | N202: 1790400 | O202: -17.20%
A203: 193 | B203: FMCG | C203: TATAGLOBAL | D203: 306.30 | E203: 307.67 | F203: 302.08 | G203: 297.87 | H203: 292.28 | I203: 311.88 | J203: 317.47 | K203: 321.68 | L203: 313.25 | M203: 303.45 | N203: 30555000 | O203: -8.77%
A204: 194 | B204: Automobile | C204: TATAMOTORS | D204: 402.85 | E204: 404.68 | F204: 399.17 | G204: 395.48 | H204: 389.97 | I204: 408.37 | J204: 413.88 | K204: 417.57 | L204: 410.2 | M204: 401 | N204: 57990000 | O204: -13.85%
A205: 195 | B205: Automobile | C205: TATAMTRDVR | D205: 228.40 | E205: 230.02 | F205: 226.03 | G205: 223.67 | H205: 219.68 | I205: 232.38 | J205: 236.37 | K205: 238.73 | L205: 234 | M205: 227.65 | N205: 25935000 | O205: -4.25%
A206: 196 | B206: Power | C206: TATAPOWER | D206: 90.60 | E206: 91.27 | F206: 89.53 | G206: 88.47 | H206: 86.73 | I206: 92.33 | J206: 94.07 | K206: 95.13 | L206: 93 | M206: 90.2 | N206: 69822000 | O206: -8.54%
... 37 more rows

Sheet Cash Intra
M5: Back to Main Page
A6: FOR INTRA DAY TRADING | K6: =Main!B10 -> 2018-01-29
A8: Sr.no | B8: Scrip | C8: CLOSE RATE | D8: Pivot Point | E8: Supports | H8: Resistances
C9: Point | E9: S1 | F9: S2 | G9: S3 | H9: R1 | I9: R2 | J9: R3 | K9: HIGH | L9: LOW | M9: Total Trade Quanity in Lakhs
A10: 1 | B10: Nifty 50 | C10: 11069.65 | D10: 11058.15 | E10: 11020.70 | F10: 10971.75 | G10: 10934.30 | H10: 11107.10 | I10: 11144.55 | J10: 11193.50 | K10: 11095.6 | L10: 11009.2
A11: 2 | B11: Nifty Bank | C11: 27445.65 | D11: 27373.42 | E11: 27223.98 | F11: 27002.32 | G11: 26852.88 | H11: 27595.08 | I11: 27744.52 | J11: 27966.18 | K11: 27522.85 | L11: 27151.75
A12: 3 | B12: Nifty CPSE | C12: 2779.4 | D12: 2783.07 | E12: 2766.73 | F12: 2754.07 | G12: 2737.73 | H12: 2795.73 | I12: 2812.07 | J12: 2824.73 | K12: 2799.4 | L12: 2770.4
A13: 4 | B13: Nifty Infra | C13: 3653.95 | D13: 3665.52 | E13: 3630.58 | F13: 3607.22 | G13: 3572.28 | H13: 3688.88 | I13: 3723.82 | J13: 3747.18 | K13: 3700.45 | L13: 3642.15
A14: 5 | B14: Nifty IT | C14: 13117.85 | D14: 13124.58 | E14: 12990.02 | F14: 12862.18 | G14: 12727.62 | H14: 13252.42 | I14: 13386.98 | J14: 13514.82 | K14: 13259.15 | L14: 12996.75
A15: 6 | B15: Nifty PSE | C15: 4306.75 | D15: 4320.10 | E15: 4284.10 | F15: 4261.45 | G15: 4225.45 | H15: 4342.75 | I15: 4378.75 | J15: 4401.40 | K15: 4356.1 | L15: 4297.45
A16: 7 | B16: Nifty Midcap 50 | C16: 5468.65 | D16: 5494.43 | E16: 5437.52 | F16: 5406.38 | G16: 5349.47 | H16: 5525.57 | I16: 5582.48 | J16: 5613.62 | K16: 5551.35 | L16: 5463.3
A17: 8 | B17: ABB | C17: 1659.3 | D17: 1657.10 | E17: 1627.20 | F17: 1595.10 | G17: 1565.20 | H17: 1689.20 | I17: 1719.10 | J17: 1751.20 | K17: 1687 | L17: 1625 | M17: 0.82745
A18: 9 | B18: ABFRL | C18: 167 | D18: 166.37 | E18: 164.73 | F18: 162.47 | G18: 160.83 | H18: 168.63 | I18: 170.27 | J18: 172.53 | K18: 168 | L18: 164.1 | M18: 1.84059
A19: 10 | B19: ACC | C19: 1726.4 | D19: 1733.27 | E19: 1713.13 | F19: 1699.87 | G19: 1679.73 | H19: 1746.53 | I19: 1766.67 | J19: 1779.93 | K19: 1753.4 | L19: 1720 | M19: 6.04042
A20: 11 | B20: ADANIENT | C20: 214.4 | D20: 210.65 | E20: 205.55 | F20: 196.70 | G20: 191.60 | H20: 219.50 | I20: 224.60 | J20: 233.45 | K20: 215.75 | L20: 201.8 | M20: 132.3359
A21: 12 | B21: ADANIPORTS | C21: 436.5 | D21: 440.43 | E21: 430.87 | F21: 425.23 | G21: 415.67 | H21: 446.07 | I21: 455.63 | J21: 461.27 | K21: 450 | L21: 434.8 | M21: 67.92843
A22: 13 | B22: ADANIPOWER | C22: 38.2 | D22: 37.87 | E22: 36.98 | F22: 35.77 | G22: 34.88 | H22: 39.08 | I22: 39.97 | J22: 41.18 | K22: 38.75 | L22: 36.65 | M22: 252.36607
A23: 14 | B23: AIAENG | C23: 1600.45 | D23: 1600.92 | E23: 1586.83 | F23: 1573.22 | G23: 1559.13 | H23: 1614.53 | I23: 1628.62 | J23: 1642.23 | K23: 1615 | L23: 1587.3 | M23: 0.40546
A24: 15 | B24: AJANTPHARM | C24: 1493.3 | D24: 1515.15 | E24: 1447.30 | F24: 1401.30 | G24: 1333.45 | H24: 1561.15 | I24: 1629.00 | J24: 1675.00 | K24: 1583 | L24: 1469.15 | M24: 4.6653
A25: 16 | B25: ALKEM | C25: 2202.25 | D25: 2203.70 | E25: 2167.40 | F25: 2132.55 | G25: 2096.25 | H25: 2238.55 | I25: 2274.85 | J25: 2309.70 | K25: 2240 | L25: 2168.85 | M25: 0.64212
A26: 17 | B26: AMARAJABAT | C26: 841.8 | D26: 856.67 | E26: 820.63 | F26: 799.47 | G26: 763.43 | H26: 877.83 | I26: 913.87 | J26: 935.03 | K26: 892.7 | L26: 835.5 | M26: 14.65209
A27: 18 | B27: AMBUJACEM | C27: 263 | D27: 262.37 | E27: 260.23 | F27: 257.47 | G27: 255.33 | H27: 265.13 | I27: 267.27 | J27: 270.03 | K27: 264.5 | L27: 259.6 | M27: 33.13959
A28: 19 | B28: APLLTD | C28: 553 | D28: 550.43 | E28: 544.87 | F28: 536.73 | G28: 531.17 | H28: 558.57 | I28: 564.13 | J28: 572.27 | K28: 556 | L28: 542.3 | M28: 4.6745
A29: 20 | B29: APOLLOHOSP | C29: 1133.7 | D29: 1126.73 | E29: 1114.97 | F29: 1096.23 | G29: 1084.47 | H29: 1145.47 | I29: 1157.23 | J29: 1175.97 | K29: 1138.5 | L29: 1108 | M29: 3.27271
A30: 21 | B30: APOLLOTYRE | C30: 261.05 | D30: 263.42 | E30: 257.23 | F30: 253.42 | G30: 247.23 | H30: 267.23 | I30: 273.42 | J30: 277.23 | K30: 269.6 | L30: 259.6 | M30: 51.3117
A31: 22 | B31: ARVIND | C31: 444.15 | D31: 445.88 | E31: 440.12 | F31: 436.08 | G31: 430.32 | H31: 449.92 | I31: 455.68 | J31: 459.72 | K31: 451.65 | L31: 441.85 | M31: 11.44581
A32: 23 | B32: ASHOKLEY | C32: 122.3 | D32: 122.77 | E32: 121.13 | F32: 119.97 | G32: 118.33 | H32: 123.93 | I32: 125.57 | J32: 126.73 | K32: 124.4 | L32: 121.6 | M32: 113.67419
A33: 24 | B33: ASIANPAINT | C33: 1150.45 | D33: 1151.77 | E33: 1142.13 | F33: 1133.82 | G33: 1124.18 | H33: 1160.08 | I33: 1169.72 | J33: 1178.03 | K33: 1161.4 | L33: 1143.45 | M33: 15.63047
A34: 25 | B34: AUROPHARMA | C34: 639.7 | D34: 645.68 | E34: 631.37 | F34: 623.03 | G34: 608.72 | H34: 654.02 | I34: 668.33 | J34: 676.67 | K34: 660 | L34: 637.35 | M34: 17.23328
A35: 26 | B35: AXISBANK | C35: 616.1 | D35: 611.32 | E35: 603.38 | F35: 590.67 | G35: 582.73 | H35: 624.03 | I35: 631.97 | J35: 644.68 | K35: 619.25 | L35: 598.6 | M35: 67.49846
A36: 27 | B36: BAJAJ-AUTO | C36: 3311.7 | D36: 3317.53 | E36: 3289.17 | F36: 3266.63 | G36: 3238.27 | H36: 3340.07 | I36: 3368.43 | J36: 3390.97 | K36: 3345.9 | L36: 3295 | M36: 2.46647
A37: 28 | B37: BAJAJFINSV | C37: 4933.05 | D37: 4967.68 | E37: 4865.37 | F37: 4797.68 | G37: 4695.37 | H37: 5035.37 | I37: 5137.68 | J37: 5205.37 | K37: 5070 | L37: 4900 | M37: 1.49077
A38: 29 | B38: BAJFINANCE | C38: 1710.3 | D38: 1718.53 | E38: 1695.17 | F38: 1680.03 | G38: 1656.67 | H38: 1733.67 | I38: 1757.03 | J38: 1772.17 | K38: 1741.9 | L38: 1703.4 | M38: 8.80891
A39: 30 | B39: BANKBARODA | C39: 167.15 | D39: 170.80 | E39: 162.80 | F39: 158.45 | G39: 150.45 | H39: 175.15 | I39: 183.15 | J39: 187.50 | K39: 178.8 | L39: 166.45 | M39: 245.79032
A40: 31 | B40: BANKINDIA | C40: 169.4 | D40: 173.58 | E40: 163.92 | F40: 158.43 | G40: 148.77 | H40: 179.07 | I40: 188.73 | J40: 194.22 | K40: 183.25 | L40: 168.1 | M40: 128.25427
A41: 32 | B41: BATAINDIA | C41: 706.3 | D41: 711.62 | E41: 697.28 | F41: 688.27 | G41: 673.93 | H41: 720.63 | I41: 734.97 | J41: 743.98 | K41: 725.95 | L41: 702.6 | M41: 4.88699
A42: 33 | B42: BEL | C42: 176.9 | D42: 177.27 | E42: 175.03 | F42: 173.17 | G42: 170.93 | H42: 179.13 | I42: 181.37 | J42: 183.23 | K42: 179.5 | L42: 175.4 | M42: 152.42684
A43: 34 | B43: BERGEPAINT | C43: 253.15 | D43: 253.10 | E43: 250.35 | F43: 247.55 | G43: 244.80 | H43: 255.90 | I43: 258.65 | J43: 261.45 | K43: 255.85 | L43: 250.3 | M43: 7.45685
A44: 35 | B44: BHARATFIN | C44: 1023 | D44: 1023.38 | E44: 1014.82 | F44: 1006.63 | G44: 998.07 | H44: 1031.57 | I44: 1040.13 | J44: 1048.32 | K44: 1031.95 | L44: 1015.2 | M44: 6.52551
A45: 36 | B45: BHARATFORG | C45: 721.15 | D45: 729.80 | E45: 707.65 | F45: 694.15 | G45: 672.00 | H45: 743.30 | I45: 765.45 | J45: 778.95 | K45: 751.95 | L45: 716.3 | M45: 22.44964
A46: 37 | B46: BHARTIARTL | C46: 452.7 | D46: 453.55 | E46: 443.60 | F46: 434.50 | G46: 424.55 | H46: 462.65 | I46: 472.60 | J46: 481.70 | K46: 463.5 | L46: 444.45 | M46: 185.48035
A47: 38 | B47: BHEL | C47: 103 | D47: 103.93 | E47: 101.37 | F47: 99.73 | G47: 97.17 | H47: 105.57 | I47: 108.13 | J47: 109.77 | K47: 106.5 | L47: 102.3 | M47: 213.20475
A48: 39 | B48: BIOCON | C48: 607.45 | D48: 608.38 | E48: 599.27 | F48: 591.08 | G48: 581.97 | H48: 616.57 | I48: 625.68 | J48: 633.87 | K48: 617.5 | L48: 600.2 | M48: 77.37568
A49: 40 | B49: BOSCHLTD | C49: 19642.5 | D49: 19679.57 | E49: 19469.13 | F49: 19295.77 | G49: 19085.33 | H49: 19852.93 | I49: 20063.37 | J49: 20236.73 | K49: 19890 | L49: 19506.2 | M49: 0.14671
A50: 41 | B50: BPCL | C50: 480.65 | D50: 480.25 | E50: 474.00 | F50: 467.35 | G50: 461.10 | H50: 486.90 | I50: 493.15 | J50: 499.80 | K50: 486.5 | L50: 473.6 | M50: 40.16765
A51: 42 | B51: BRITANNIA | C51: 4625.6 | D51: 4648.60 | E51: 4578.00 | F51: 4530.40 | G51: 4459.80 | H51: 4696.20 | I51: 4766.80 | J51: 4814.40 | K51: 4719.2 | L51: 4601 | M51: 3.98317
A52: 43 | B52: CADILAHC | C52: 418.15 | D52: 421.10 | E52: 412.60 | F52: 407.05 | G52: 398.55 | H52: 426.65 | I52: 435.15 | J52: 440.70 | K52: 429.6 | L52: 415.55 | M52: 6.43671
A53: 44 | B53: CANBK | C53: 361.35 | D53: 368.18 | E53: 351.47 | F53: 341.58 | G53: 324.87 | H53: 378.07 | I53: 394.78 | J53: 404.67 | K53: 384.9 | L53: 358.3 | M53: 59.74678
A54: 45 | B54: CASTROLIND | C54: 182.9 | D54: 184.25 | E54: 180.70 | F54: 178.50 | G54: 174.95 | H54: 186.45 | I54: 190.00 | J54: 192.20 | K54: 187.8 | L54: 182.05 | M54: 31.68677
A55: 46 | B55: CENTRALBK | C55: 74.2 | D55: 75.07 | E55: 73.13 | F55: 72.07 | G55: 70.13 | H55: 76.13 | I55: 78.07 | J55: 79.13 | K55: 77 | L55: 74 | M55: 6.59552
A56: 47 | B56: CENTURYTEX | C56: 1398.85 | D56: 1405.33 | E56: 1380.62 | F56: 1362.38 | G56: 1337.67 | H56: 1423.57 | I56: 1448.28 | J56: 1466.52 | K56: 1430.05 | L56: 1387.1 | M56: 8.67473
A57: 48 | B57: CESC | C57: 1069.5 | D57: 1078.67 | E57: 1054.83 | F57: 1040.17 | G57: 1016.33 | H57: 1093.33 | I57: 1117.17 | J57: 1131.83 | K57: 1102.5 | L57: 1064 | M57: 6.60138
A58: 49 | B58: CHOLAFIN | C58: 1307.5 | D58: 1309.92 | E58: 1294.98 | F58: 1282.47 | G58: 1267.53 | H58: 1322.43 | I58: 1337.37 | J58: 1349.88 | K58: 1324.85 | L58: 1297.4 | M58: 1.94191
A59: 50 | B59: CIPLA | C59: 621.4 | D59: 622.03 | E59: 613.07 | F59: 604.73 | G59: 595.77 | H59: 630.37 | I59: 639.33 | J59: 647.67 | K59: 631 | L59: 613.7 | M59: 29.73765
A60: 51 | B60: COALINDIA | C60: 299.4 | D60: 298.87 | E60: 295.08 | F60: 290.77 | G60: 286.98 | H60: 303.18 | I60: 306.97 | J60: 311.28 | K60: 302.65 | L60: 294.55 | M60: 69.19878
A61: 52 | B61: COLPAL | C61: 1151 | D61: 1152.37 | E61: 1143.88 | F61: 1136.77 | G61: 1128.28 | H61: 1159.48 | I61: 1167.97 | J61: 1175.08 | K61: 1160.85 | L61: 1145.25 | M61: 2.97309
A62: 53 | B62: CONCOR | C62: 1440.4 | D62: 1455.83 | E62: 1415.87 | F62: 1391.33 | G62: 1351.37 | H62: 1480.37 | I62: 1520.33 | J62: 1544.87 | K62: 1495.8 | L62: 1431.3 | M62: 6.34762
A63: 54 | B63: COROMANDEL | C63: 546.1 | D63: 552.85 | E63: 531.75 | F63: 517.40 | G63: 496.30 | H63: 567.20 | I63: 588.30 | J63: 602.65 | K63: 573.95 | L63: 538.5 | M63: 2.7798
A64: 55 | B64: CRISIL | C64: 1980.75 | D64: 1976.58 | E64: 1963.17 | F64: 1945.58 | G64: 1932.17 | H64: 1994.17 | I64: 2007.58 | J64: 2025.17 | K64: 1990 | L64: 1959 | M64: 0.06496
A65: 56 | B65: CROMPTON | C65: 237.6 | D65: 241.88 | E65: 229.82 | F65: 222.03 | G65: 209.97 | H65: 249.67 | I65: 261.73 | J65: 269.52 | K65: 253.95 | L65: 234.1 | M65: 36.30836
A66: 57 | B66: CUMMINSIND | C66: 911.1 | D66: 914.20 | E66: 903.40 | F66: 895.70 | G66: 884.90 | H66: 921.90 | I66: 932.70 | J66: 940.40 | K66: 925 | L66: 906.5 | M66: 4.86695
A67: 58 | B67: DABUR | C67: 353.75 | D67: 356.75 | E67: 349.00 | F67: 344.25 | G67: 336.50 | H67: 361.50 | I67: 369.25 | J67: 374.00 | K67: 364.5 | L67: 352 | M67: 9.91272
A68: 59 | B68: DALMIABHA | C68: 3003.4 | D68: 3003.97 | E68: 2978.43 | F68: 2953.47 | G68: 2927.93 | H68: 3028.93 | I68: 3054.47 | J68: 3079.43 | K68: 3029.5 | L68: 2979 | M68: 1.86503
A69: 60 | B69: DHFL | C69: 595.8 | D69: 590.35 | E69: 576.70 | F69: 557.60 | G69: 543.95 | H69: 609.45 | I69: 623.10 | J69: 642.20 | K69: 604 | L69: 571.25 | M69: 69.7422
A70: 61 | B70: DISHTV | C70: 73.55 | D70: 73.00 | E70: 72.05 | F70: 70.55 | G70: 69.60 | H70: 74.50 | I70: 75.45 | J70: 76.95 | K70: 73.95 | L70: 71.5 | M70: 132.19345
A71: 62 | B71: DIVISLAB | C71: 1120.3 | D71: 1113.80 | E71: 1101.60 | F71: 1082.90 | G71: 1070.70 | H71: 1132.50 | I71: 1144.70 | J71: 1163.40 | K71: 1126 | L71: 1095.1 | M71: 20.15896
A72: 63 | B72: DLF | C72: 253.6 | D72: 255.88 | E72: 250.27 | F72: 246.93 | G72: 241.32 | H72: 259.22 | I72: 264.83 | J72: 268.17 | K72: 261.5 | L72: 252.55 | M72: 59.21504
A73: 64 | B73: DRREDDY | C73: 2507.75 | D73: 2519.35 | E73: 2441.60 | F73: 2375.45 | G73: 2297.70 | H73: 2585.50 | I73: 2663.25 | J73: 2729.40 | K73: 2597.1 | L73: 2453.2 | M73: 26.5203
A74: 65 | B74: EDELWEISS | C74: 291 | D74: 289.83 | E74: 284.67 | F74: 278.33 | G74: 273.17 | H74: 296.17 | I74: 301.33 | J74: 307.67 | K74: 295 | L74: 283.5 | M74: 17.09992
A75: 66 | B75: EICHERMOT | C75: 26519.4 | D75: 26485.82 | E75: 26241.63 | F75: 25963.87 | G75: 25719.68 | H75: 26763.58 | I75: 27007.77 | J75: 27285.53 | K75: 26730 | L75: 26208.05 | M75: 1.75472
A76: 67 | B76: EMAMILTD | C76: 1202.45 | D76: 1204.75 | E76: 1171.50 | F76: 1140.55 | G76: 1107.30 | H76: 1235.70 | I76: 1268.95 | J76: 1299.90 | K76: 1238 | L76: 1173.8 | M76: 0.8527
A77: 68 | B77: ENDURANCE | C77: 1233.85 | D77: 1235.65 | E77: 1216.30 | F77: 1198.75 | G77: 1179.40 | H77: 1253.20 | I77: 1272.55 | J77: 1290.10 | K77: 1255 | L77: 1218.1 | M77: 0.20728
A78: 69 | B78: ENGINERSIN | C78: 173.7 | D78: 174.90 | E78: 171.50 | F78: 169.30 | G78: 165.90 | H78: 177.10 | I78: 180.50 | J78: 182.70 | K78: 178.3 | L78: 172.7 | M78: 35.52151
A79: 70 | B79: EXIDEIND | C79: 227.1 | D79: 229.77 | E79: 222.33 | F79: 217.57 | G79: 210.13 | H79: 234.53 | I79: 241.97 | J79: 246.73 | K79: 237.2 | L79: 225 | M79: 40.15072
A80: 71 | B80: FEDERALBNK | C80: 101.15 | D80: 101.90 | E80: 100.00 | F80: 98.85 | G80: 96.95 | H80: 103.05 | I80: 104.95 | J80: 106.10 | K80: 103.8 | L80: 100.75 | M80: 81.96841
A81: 72 | B81: FORTIS | C81: 157.3 | D81: 156.27 | E81: 154.03 | F81: 150.77 | G81: 148.53 | H81: 159.53 | I81: 161.77 | J81: 165.03 | K81: 158.5 | L81: 153 | M81: 74.98516
A82: 73 | B82: GAIL | C82: 493.75 | D82: 490.72 | E82: 482.43 | F82: 471.12 | G82: 462.83 | H82: 502.03 | I82: 510.32 | J82: 521.63 | K82: 499 | L82: 479.4 | M82: 111.90753
A83: 74 | B83: GLAXO | C83: 2466.7 | D83: 2461.57 | E83: 2445.13 | F83: 2423.57 | G83: 2407.13 | H83: 2483.13 | I83: 2499.57 | J83: 2521.13 | K83: 2478 | L83: 2440 | M83: 0.13345
A84: 75 | B84: GLENMARK | C84: 634.25 | D84: 637.13 | E84: 627.27 | F84: 620.28 | G84: 610.42 | H84: 644.12 | I84: 653.98 | J84: 660.97 | K84: 647 | L84: 630.15 | M84: 18.22288
A85: 76 | B85: GMRINFRA | C85: 22.75 | D85: 22.83 | E85: 22.27 | F85: 21.78 | G85: 21.22 | H85: 23.32 | I85: 23.88 | J85: 24.37 | K85: 23.4 | L85: 22.35 | M85: 558.49465
A86: 77 | B86: GODREJCP | C86: 1075 | D86: 1088.38 | E86: 1050.72 | F86: 1026.43 | G86: 988.77 | H86: 1112.67 | I86: 1150.33 | J86: 1174.62 | K86: 1126.05 | L86: 1064.1 | M86: 11.06813
A87: 78 | B87: GODREJIND | C87: 620.05 | D87: 622.48 | E87: 612.57 | F87: 605.08 | G87: 595.17 | H87: 629.97 | I87: 639.88 | J87: 647.37 | K87: 632.4 | L87: 615 | M87: 5.5018
A88: 79 | B88: GPPL | C88: 152.35 | D88: 151.58 | E88: 149.37 | F88: 146.38 | G88: 144.17 | H88: 154.57 | I88: 156.78 | J88: 159.77 | K88: 153.8 | L88: 148.6 | M88: 4.06495
A89: 80 | B89: GRASIM | C89: 1193 | D89: 1196.25 | E89: 1180.65 | F89: 1168.30 | G89: 1152.70 | H89: 1208.60 | I89: 1224.20 | J89: 1236.55 | K89: 1211.85 | L89: 1183.9 | M89: 8.86429
A90: 81 | B90: GRUH | C90: 593.05 | D90: 585.87 | E90: 570.23 | F90: 547.42 | G90: 531.78 | H90: 608.68 | I90: 624.32 | J90: 647.13 | K90: 601.5 | L90: 563.05 | M90: 11.28072
A91: 82 | B91: GSKCONS | C91: 6477.05 | D91: 6511.38 | E91: 6365.62 | F91: 6254.18 | G91: 6108.42 | H91: 6622.82 | I91: 6768.58 | J91: 6880.02 | K91: 6657.15 | L91: 6399.95 | M91: 0.19864
A92: 83 | B92: GSPL | C92: 208 | D92: 208.43 | E92: 206.57 | F92: 205.13 | G92: 203.27 | H92: 209.87 | I92: 211.73 | J92: 213.17 | K92: 210.3 | L92: 207 | M92: 1.4533
A93: 84 | B93: HAVELLS | C93: 580.55 | D93: 581.62 | E93: 572.73 | F93: 564.92 | G93: 556.03 | H93: 589.43 | I93: 598.32 | J93: 606.13 | K93: 590.5 | L93: 573.8 | M93: 21.21732
A94: 85 | B94: HCLTECH | C94: 1009.55 | D94: 1006.53 | E94: 993.07 | F94: 976.58 | G94: 963.12 | H94: 1023.02 | I94: 1036.48 | J94: 1052.97 | K94: 1020 | L94: 990.05 | M94: 26.53727
A95: 86 | B95: HDFC | C95: 1908.3 | D95: 1904.77 | E95: 1887.03 | F95: 1865.77 | G95: 1848.03 | H95: 1926.03 | I95: 1943.77 | J95: 1965.03 | K95: 1922.5 | L95: 1883.5 | M95: 46.22281
A96: 87 | B96: HDFCBANK | C96: 1974.95 | D96: 1968.48 | E96: 1956.97 | F96: 1938.98 | G96: 1927.47 | H96: 1986.47 | I96: 1997.98 | J96: 2015.97 | K96: 1980 | L96: 1950.5 | M96: 21.80917
A97: 88 | B97: HEROMOTOCO | C97: 3571.2 | D97: 3597.37 | E97: 3534.83 | F97: 3498.47 | G97: 3435.93 | H97: 3633.73 | I97: 3696.27 | J97: 3732.63 | K97: 3659.9 | L97: 3561 | M97: 4.87836
A98: 89 | B98: HEXAWARE | C98: 381.35 | D98: 383.43 | E98: 375.07 | F98: 368.78 | G98: 360.42 | H98: 389.72 | I98: 398.08 | J98: 404.37 | K98: 391.8 | L98: 377.15 | M98: 22.20846
A99: 90 | B99: HINDALCO | C99: 258.95 | D99: 260.73 | E99: 254.62 | F99: 250.28 | G99: 244.17 | H99: 265.07 | I99: 271.18 | J99: 275.52 | K99: 266.85 | L99: 256.4 | M99: 152.54979
A100: 91 | B100: HINDPETRO | C100: 384.15 | D100: 387.48 | E100: 379.12 | F100: 374.08 | G100: 365.72 | H100: 392.52 | I100: 400.88 | J100: 405.92 | K100: 395.85 | L100: 382.45 | M100: 87.40013
A101: 92 | B101: HINDUNILVR | C101: 1372.75 | D101: 1370.10 | E101: 1362.20 | F101: 1351.65 | G101: 1343.75 | H101: 1380.65 | I101: 1388.55 | J101: 1399.10 | K101: 1378 | L101: 1359.55 | M101: 21.25894
A102: 93 | B102: HINDZINC | C102: 298.55 | D102: 298.15 | E102: 295.30 | F102: 292.05 | G102: 289.20 | H102: 301.40 | I102: 304.25 | J102: 307.50 | K102: 301 | L102: 294.9 | M102: 37.27672
A103: 94 | B103: IBULHSGFIN | C103: 1394 | D103: 1382.17 | E103: 1359.88 | F103: 1325.77 | G103: 1303.48 | H103: 1416.28 | I103: 1438.57 | J103: 1472.68 | K103: 1404.45 | L103: 1348.05 | M103: 32.64299
A104: 95 | B104: ICICIBANK | C104: 360.8 | D104: 358.77 | E104: 352.73 | F104: 344.67 | G104: 338.63 | H104: 366.83 | I104: 372.87 | J104: 380.93 | K104: 364.8 | L104: 350.7 | M104: 301.83655
A105: 96 | B105: ICICIPRULI | C105: 429.9 | D105: 431.68 | E105: 424.57 | F105: 419.23 | G105: 412.12 | H105: 437.02 | I105: 444.13 | J105: 449.47 | K105: 438.8 | L105: 426.35 | M105: 48.90674
A106: 97 | B106: IDBI | C106: 65.1 | D106: 66.48 | E106: 62.97 | F106: 60.83 | G106: 57.32 | H106: 68.62 | I106: 72.13 | J106: 74.27 | K106: 70 | L106: 64.35 | M106: 459.39715
A107: 98 | B107: IDEA | C107: 95.1 | D107: 94.75 | E107: 92.05 | F107: 89.00 | G107: 86.30 | H107: 97.80 | I107: 100.50 | J107: 103.55 | K107: 97.45 | L107: 91.7 | M107: 253.95317
A108: 99 | B108: IDFC | C108: 56.6 | D108: 57.10 | E108: 55.75 | F108: 54.90 | G108: 53.55 | H108: 57.95 | I108: 59.30 | J108: 60.15 | K108: 58.45 | L108: 56.25 | M108: 290.61223
A109: 100 | B109: IDFCBANK | C109: 58.2 | D109: 58.55 | E109: 57.60 | F109: 57.00 | G109: 56.05 | H109: 59.15 | I109: 60.10 | J109: 60.70 | K109: 59.5 | L109: 57.95 | M109: 120.0896
A110: 101 | B110: IGL | C110: 307.3 | D110: 309.78 | E110: 303.62 | F110: 299.93 | G110: 293.77 | H110: 313.47 | I110: 319.63 | J110: 323.32 | K110: 315.95 | L110: 306.1 | M110: 23.06153
A111: 102 | B111: INDHOTEL | C111: 149.4 | D111: 150.93 | E111: 146.47 | F111: 143.53 | G111: 139.07 | H111: 153.87 | I111: 158.33 | J111: 161.27 | K111: 155.4 | L111: 148 | M111: 15.86452
A112: 103 | B112: INDIANB | C112: 377.75 | D112: 384.35 | E112: 368.75 | F112: 359.75 | G112: 344.15 | H112: 393.35 | I112: 408.95 | J112: 417.95 | K112: 399.95 | L112: 375.35 | M112: 26.89763
A113: 104 | B113: INDIGO | C113: 1238.05 | D113: 1247.80 | E113: 1216.60 | F113: 1195.15 | G113: 1163.95 | H113: 1269.25 | I113: 1300.45 | J113: 1321.90 | K113: 1279 | L113: 1226.35 | M113: 21.99086
A114: 105 | B114: INDUSINDBK | C114: 1730.2 | D114: 1723.08 | E114: 1710.82 | F114: 1691.43 | G114: 1679.17 | H114: 1742.47 | I114: 1754.73 | J114: 1774.12 | K114: 1735.35 | L114: 1703.7 | M114: 21.69317
A115: 106 | B115: INFRATEL | C115: 343.45 | D115: 344.27 | E115: 339.73 | F115: 336.02 | G115: 331.48 | H115: 347.98 | I115: 352.52 | J115: 356.23 | K115: 348.8 | L115: 340.55 | M115: 46.83283
A116: 107 | B116: INFY | C116: 1175.4 | D116: 1173.68 | E116: 1163.97 | F116: 1152.53 | G116: 1142.82 | H116: 1185.12 | I116: 1194.83 | J116: 1206.27 | K116: 1183.4 | L116: 1162.25 | M116: 67.74457
A117: 108 | B117: IOC | C117: 392.3 | D117: 392.10 | E117: 389.20 | F117: 386.10 | G117: 383.20 | H117: 395.20 | I117: 398.10 | J117: 401.20 | K117: 395 | L117: 389 | M117: 70.28482
A118: 109 | B118: IPCALAB | C118: 570.6 | D118: 572.70 | E118: 560.25 | F118: 549.90 | G118: 537.45 | H118: 583.05 | I118: 595.50 | J118: 605.85 | K118: 585.15 | L118: 562.35 | M118: 0.61473
A119: 110 | B119: IRB | C119: 244 | D119: 242.60 | E119: 240.20 | F119: 236.40 | G119: 234.00 | H119: 246.40 | I119: 248.80 | J119: 252.60 | K119: 245 | L119: 238.8 | M119: 13.99633
A120: 111 | B120: ITC | C120: 281.25 | D120: 281.02 | E120: 278.83 | F120: 276.42 | G120: 274.23 | H120: 283.43 | I120: 285.62 | J120: 288.03 | K120: 283.2 | L120: 278.6 | M120: 131.24518
A121: 112 | B121: JINDALSTEL | C121: 280.2 | D121: 277.10 | E121: 270.65 | F121: 261.10 | G121: 254.65 | H121: 286.65 | I121: 293.10 | J121: 302.65 | K121: 283.55 | L121: 267.55 | M121: 195.12587
A122: 113 | B122: JSWENERGY | C122: 87.2 | D122: 88.52 | E122: 84.93 | F122: 82.67 | G122: 79.08 | H122: 90.78 | I122: 94.37 | J122: 96.63 | K122: 92.1 | L122: 86.25 | M122: 291.77285
A123: 114 | B123: JSWSTEEL | C123: 290.8 | D123: 291.97 | E123: 286.93 | F123: 283.07 | G123: 278.03 | H123: 295.83 | I123: 300.87 | J123: 304.73 | K123: 297 | L123: 288.1 | M123: 73.30584
A124: 115 | B124: JUBILANT | C124: 902.15 | D124: 900.45 | E124: 886.90 | F124: 871.65 | G124: 858.10 | H124: 915.70 | I124: 929.25 | J124: 944.50 | K124: 914 | L124: 885.2 | M124: 3.70065
A125: 116 | B125: JUBLFOOD | C125: 2210.2 | D125: 2229.85 | E125: 2176.20 | F125: 2142.20 | G125: 2088.55 | H125: 2263.85 | I125: 2317.50 | J125: 2351.50 | K125: 2283.5 | L125: 2195.85 | M125: 16.488
A126: 117 | B126: KARURVYSYA | C126: 111.7 | D126: 112.42 | E126: 110.03 | F126: 108.37 | G126: 105.98 | H126: 114.08 | I126: 116.47 | J126: 118.13 | K126: 114.8 | L126: 110.75 | M126: 27.10141
A127: 118 | B127: KOTAKBANK | C127: 1092.35 | D127: 1080.15 | E127: 1062.30 | F127: 1032.25 | G127: 1014.40 | H127: 1110.20 | I127: 1128.05 | J127: 1158.10 | K127: 1098 | L127: 1050.1 | M127: 40.61319
A128: 119 | B128: L&TFH | C128: 176.65 | D128: 177.88 | E128: 173.87 | F128: 171.08 | G128: 167.07 | H128: 180.67 | I128: 184.68 | J128: 187.47 | K128: 181.9 | L128: 175.1 | M128: 137.23122
A129: 120 | B129: LALPATHLAB | C129: 898.9 | D129: 902.97 | E129: 890.93 | F129: 882.97 | G129: 870.93 | H129: 910.93 | I129: 922.97 | J129: 930.93 | K129: 915 | L129: 895 | M129: 2.95117
A130: 121 | B130: LICHSGFIN | C130: 555.85 | D130: 560.68 | E130: 549.17 | F130: 542.48 | G130: 530.97 | H130: 567.37 | I130: 578.88 | J130: 585.57 | K130: 572.2 | L130: 554 | M130: 14.14268
A131: 122 | B131: LT | C131: 1416.5 | D131: 1411.85 | E131: 1396.65 | F131: 1376.80 | G131: 1361.60 | H131: 1431.70 | I131: 1446.90 | J131: 1466.75 | K131: 1427.05 | L131: 1392 | M131: 61.13475
A132: 123 | B132: LTTS | C132: 1340.15 | D132: 1313.73 | E132: 1201.67 | F132: 1063.18 | G132: 951.12 | H132: 1452.22 | I132: 1564.28 | J132: 1702.77 | K132: 1425.8 | L132: 1175.25 | M132: 6.15266
A133: 124 | B133: LUPIN | C133: 949.65 | D133: 954.93 | E133: 939.87 | F133: 930.08 | G133: 915.02 | H133: 964.72 | I133: 979.78 | J133: 989.57 | K133: 970 | L133: 945.15 | M133: 26.11485
A134: 125 | B134: M&M | C134: 757.8 | D134: 756.05 | E134: 750.10 | F134: 742.40 | G134: 736.45 | H134: 763.75 | I134: 769.70 | J134: 777.40 | K134: 762 | L134: 748.35 | M134: 28.78048
A135: 126 | B135: M&MFIN | C135: 481.8 | D135: 487.00 | E135: 466.00 | F135: 450.20 | G135: 429.20 | H135: 502.80 | I135: 523.80 | J135: 539.60 | K135: 508 | L135: 471.2 | M135: 41.03609
A136: 127 | B136: MANAPPURAM | C136: 118.55 | D136: 118.57 | E136: 117.13 | F136: 115.72 | G136: 114.28 | H136: 119.98 | I136: 121.42 | J136: 122.83 | K136: 120 | L136: 117.15 | M136: 69.8987
A137: 128 | B137: MARICO | C137: 307.45 | D137: 308.25 | E137: 303.60 | F137: 299.75 | G137: 295.10 | H137: 312.10 | I137: 316.75 | J137: 320.60 | K137: 312.9 | L137: 304.4 | M137: 17.01755
A138: 129 | B138: MARUTI | C138: 9278.2 | D138: 9337.73 | E138: 9190.47 | F138: 9102.73 | G138: 8955.47 | H138: 9425.47 | I138: 9572.73 | J138: 9660.47 | K138: 9485 | L138: 9250 | M138: 7.05224
A139: 130 | B139: MCDOWELL-N | C139: 3367.55 | D139: 3401.10 | E139: 3322.25 | F139: 3276.95 | G139: 3198.10 | H139: 3446.40 | I139: 3525.25 | J139: 3570.55 | K139: 3479.95 | L139: 3355.8 | M139: 10.141
A140: 131 | B140: MINDTREE | C140: 749.55 | D140: 755.60 | E140: 740.95 | F140: 732.35 | G140: 717.70 | H140: 764.20 | I140: 778.85 | J140: 787.45 | K140: 770.25 | L140: 747 | M140: 18.00526
A141: 132 | B141: MOTHERSUMI | C141: 370.15 | D141: 374.70 | E141: 363.45 | F141: 356.75 | G141: 345.50 | H141: 381.40 | I141: 392.65 | J141: 399.35 | K141: 385.95 | L141: 368 | M141: 46.86177
A142: 133 | B142: MPHASIS | C142: 823.8 | D142: 819.33 | E142: 799.47 | F142: 775.13 | G142: 755.27 | H142: 843.67 | I142: 863.53 | J142: 887.87 | K142: 839.2 | L142: 795 | M142: 5.51311
A143: 134 | B143: MRF | C143: 67543.65 | D143: 68013.05 | E143: 66586.15 | F143: 65628.65 | G143: 64201.75 | H143: 68970.55 | I143: 70397.45 | J143: 71354.95 | K143: 69439.95 | L143: 67055.55 | M143: 0.07157
A144: 135 | B144: MUTHOOTFIN | C144: 425.95 | D144: 428.68 | E144: 421.37 | F144: 416.78 | G144: 409.47 | H144: 433.27 | I144: 440.58 | J144: 445.17 | K144: 436 | L144: 424.1 | M144: 8.84228
A145: 136 | B145: NATCOPHARM | C145: 998.5 | D145: 995.75 | E145: 991.75 | F145: 985.00 | G145: 981.00 | H145: 1002.50 | I145: 1006.50 | J145: 1013.25 | K145: 999.75 | L145: 989 | M145: 1.75383
A146: 137 | B146: NATIONALUM | C146: 76.9 | D146: 76.97 | E146: 75.98 | F146: 75.07 | G146: 74.08 | H146: 77.88 | I146: 78.87 | J146: 79.78 | K146: 77.95 | L146: 76.05 | M146: 100.8891
A147: 138 | B147: NAUKRI | C147: 1390.75 | D147: 1386.95 | E147: 1373.85 | F147: 1356.95 | G147: 1343.85 | H147: 1403.85 | I147: 1416.95 | J147: 1433.85 | K147: 1400.05 | L147: 1370.05 | M147: 0.36361
A148: 139 | B148: NBCC | C148: 234.95 | D148: 236.47 | E148: 232.48 | F148: 230.02 | G148: 226.03 | H148: 238.93 | I148: 242.92 | J148: 245.38 | K148: 240.45 | L148: 234 | M148: 21.00303
A149: 140 | B149: NHPC | C149: 29.7 | D149: 29.78 | E149: 29.47 | F149: 29.23 | G149: 28.92 | H149: 30.02 | I149: 30.33 | J149: 30.57 | K149: 30.1 | L149: 29.55 | M149: 452.17746
A150: 141 | B150: NMDC | C150: 143.7 | D150: 144.50 | E150: 141.75 | F150: 139.80 | G150: 137.05 | H150: 146.45 | I150: 149.20 | J150: 151.15 | K150: 147.25 | L150: 142.55 | M150: 145.78696
A151: 142 | B151: NTPC | C151: 171.95 | D151: 172.95 | E151: 170.40 | F151: 168.85 | G151: 166.30 | H151: 174.50 | I151: 177.05 | J151: 178.60 | K151: 175.5 | L151: 171.4 | M151: 113.04494
A152: 143 | B152: OBEROIRLTY | C152: 528.15 | D152: 531.53 | E152: 517.17 | F152: 506.18 | G152: 491.82 | H152: 542.52 | I152: 556.88 | J152: 567.87 | K152: 545.9 | L152: 520.55 | M152: 2.55961
A153: 144 | B153: OFSS | C153: 4230.8 | D153: 4233.62 | E153: 4161.28 | F153: 4091.77 | G153: 4019.43 | H153: 4303.13 | I153: 4375.47 | J153: 4444.98 | K153: 4305.95 | L153: 4164.1 | M153: 0.48984
A154: 145 | B154: OIL | C154: 381.7 | D154: 382.87 | E154: 377.93 | F154: 374.17 | G154: 369.23 | H154: 386.63 | I154: 391.57 | J154: 395.33 | K154: 387.8 | L154: 379.1 | M154: 10.47503
A155: 146 | B155: ONGC | C155: 208.5 | D155: 209.48 | E155: 206.12 | F155: 203.73 | G155: 200.37 | H155: 211.87 | I155: 215.23 | J155: 217.62 | K155: 212.85 | L155: 207.1 | M155: 102.47173
A156: 147 | B156: PAGEIND | C156: 21955.75 | D156: 21970.10 | E156: 21741.20 | F156: 21526.65 | G156: 21297.75 | H156: 22184.65 | I156: 22413.55 | J156: 22628.10 | K156: 22199 | L156: 21755.55 | M156: 0.1284
A157: 148 | B157: PCJEWELLER | C157: 561.6 | D157: 558.10 | E157: 545.10 | F157: 528.60 | G157: 515.60 | H157: 574.60 | I157: 587.60 | J157: 604.10 | K157: 571.1 | L157: 541.6 | M157: 66.27251
A158: 149 | B158: PEL | C158: 2771.2 | D158: 2785.13 | E158: 2745.27 | F158: 2719.33 | G158: 2679.47 | H158: 2811.07 | I158: 2850.93 | J158: 2876.87 | K158: 2825 | L158: 2759.2 | M158: 1.75075
A159: 150 | B159: PETRONET | C159: 244 | D159: 244.67 | E159: 240.33 | F159: 236.67 | G159: 232.33 | H159: 248.33 | I159: 252.67 | J159: 256.33 | K159: 249 | L159: 241 | M159: 56.82971
A160: 151 | B160: PFC | C160: 118.75 | D160: 119.62 | E160: 117.38 | F160: 116.02 | G160: 113.78 | H160: 120.98 | I160: 123.22 | J160: 124.58 | K160: 121.85 | L160: 118.25 | M160: 53.78184
A161: 152 | B161: PGHH | C161: 9301.75 | D161: 9330.07 | E161: 9237.13 | F161: 9172.52 | G161: 9079.58 | H161: 9394.68 | I161: 9487.62 | J161: 9552.23 | K161: 9423 | L161: 9265.45 | M161: 0.03354
A162: 153 | B162: PIDILITIND | C162: 877.25 | D162: 883.90 | E162: 868.35 | F162: 859.45 | G162: 843.90 | H162: 892.80 | I162: 908.35 | J162: 917.25 | K162: 899.45 | L162: 875 | M162: 8.80864
A163: 154 | B163: PIIND | C163: 917.7 | D163: 924.23 | E163: 899.47 | F163: 881.23 | G163: 856.47 | H163: 942.47 | I163: 967.23 | J163: 985.47 | K163: 949 | L163: 906 | M163: 0.60339
A164: 155 | B164: PNB | C164: 180.9 | D164: 185.97 | E164: 174.93 | F164: 168.97 | G164: 157.93 | H164: 191.93 | I164: 202.97 | J164: 208.93 | K164: 197 | L164: 180 | M164: 458.08402
A165: 156 | B165: POWERGRID | C165: 194.3 | D165: 194.77 | E165: 192.68 | F165: 191.07 | G165: 188.98 | H165: 196.38 | I165: 198.47 | J165: 200.08 | K165: 196.85 | L165: 193.15 | M165: 73.93321
A166: 157 | B166: PRESTIGE | C166: 313.7 | D166: 316.30 | E166: 308.60 | F166: 303.50 | G166: 295.80 | H166: 321.40 | I166: 329.10 | J166: 334.20 | K166: 324 | L166: 311.2 | M166: 1.356
A167: 158 | B167: QUESS | C167: 1112.85 | D167: 1126.50 | E167: 1086.00 | F167: 1059.15 | G167: 1018.65 | H167: 1153.35 | I167: 1193.85 | J167: 1220.70 | K167: 1167 | L167: 1099.65 | M167: 4.59956
A168: 159 | B168: RAJESHEXPO | C168: 820.05 | D168: 820.87 | E168: 816.68 | F168: 813.32 | G168: 809.13 | H168: 824.23 | I168: 828.42 | J168: 831.78 | K168: 825.05 | L168: 817.5 | M168: 4.6678
A169: 160 | B169: RAMCOCEM | C169: 784.2 | D169: 784.22 | E169: 776.13 | F169: 768.07 | G169: 759.98 | H169: 792.28 | I169: 800.37 | J169: 808.43 | K169: 792.3 | L169: 776.15 | M169: 1.68148
A170: 161 | B170: RBLBANK | C170: 510.4 | D170: 512.45 | E170: 506.90 | F170: 503.40 | G170: 497.85 | H170: 515.95 | I170: 521.50 | J170: 525.00 | K170: 518 | L170: 508.95 | M170: 11.14257
A171: 162 | B171: RCOM | C171: 28.35 | D171: 28.52 | E171: 27.83 | F171: 27.32 | G171: 26.63 | H171: 29.03 | I171: 29.72 | J171: 30.23 | K171: 29.2 | L171: 28 | M171: 620.98714
A172: 163 | B172: RECLTD | C172: 157.85 | D172: 158.60 | E172: 156.30 | F172: 154.75 | G172: 152.45 | H172: 160.15 | I172: 162.45 | J172: 164.00 | K172: 160.9 | L172: 157.05 | M172: 126.25592
A173: 164 | B173: RELCAPITAL | C173: 505.75 | D173: 509.75 | E173: 500.10 | F173: 494.45 | G173: 484.80 | H173: 515.40 | I173: 525.05 | J173: 530.70 | K173: 519.4 | L173: 504.1 | M173: 37.98203
A174: 165 | B174: RELIANCE | C174: 965.9 | D174: 964.68 | E174: 957.37 | F174: 948.83 | G174: 941.52 | H174: 973.22 | I174: 980.53 | J174: 989.07 | K174: 972 | L174: 956.15 | M174: 62.49419
A175: 166 | B175: RELINFRA | C175: 513.95 | D175: 515.97 | E175: 509.18 | F175: 504.42 | G175: 497.63 | H175: 520.73 | I175: 527.52 | J175: 532.28 | K175: 522.75 | L175: 511.2 | M175: 20.84633
A176: 167 | B176: RPOWER | C176: 47.15 | D176: 47.42 | E176: 46.43 | F176: 45.72 | G176: 44.73 | H176: 48.13 | I176: 49.12 | J176: 49.83 | K176: 48.4 | L176: 46.7 | M176: 104.72765
A177: 168 | B177: SAIL | C177: 93.95 | D177: 94.53 | E177: 92.72 | F177: 91.48 | G177: 89.67 | H177: 95.77 | I177: 97.58 | J177: 98.82 | K177: 96.35 | L177: 93.3 | M177: 197.3261
A178: 169 | B178: SBIN | C178: 313.15 | D178: 319.25 | E178: 305.75 | F178: 298.35 | G178: 284.85 | H178: 326.65 | I178: 340.15 | J178: 347.55 | K178: 332.75 | L178: 311.85 | M178: 424.6615
A179: 170 | B179: SHREECEM | C179: 18161.85 | D179: 18239.05 | E179: 17978.10 | F179: 17794.35 | G179: 17533.40 | H179: 18422.80 | I179: 18683.75 | J179: 18867.50 | K179: 18500 | L179: 18055.3 | M179: 0.13881
A180: 171 | B180: SIEMENS | C180: 1296.1 | D180: 1303.18 | E180: 1284.37 | F180: 1272.63 | G180: 1253.82 | H180: 1314.92 | I180: 1333.73 | J180: 1345.47 | K180: 1322 | L180: 1291.45 | M180: 2.22736
A181: 172 | B181: SPARC | C181: 498.35 | D181: 501.20 | E181: 490.00 | F181: 481.65 | G181: 470.45 | H181: 509.55 | I181: 520.75 | J181: 529.10 | K181: 512.4 | L181: 492.85 | M181: 2.80774
A182: 173 | B182: SRF | C182: 1839.65 | D182: 1860.83 | E182: 1806.72 | F182: 1773.78 | G182: 1719.67 | H182: 1893.77 | I182: 1947.88 | J182: 1980.82 | K182: 1914.95 | L182: 1827.9 | M182: 2.39937
A183: 174 | B183: SRTRANSFIN | C183: 1446.2 | D183: 1441.17 | E183: 1425.33 | F183: 1404.47 | G183: 1388.63 | H183: 1462.03 | I183: 1477.87 | J183: 1498.73 | K183: 1457 | L183: 1420.3 | M183: 5.92739
A184: 175 | B184: STAR | C184: 788.65 | D184: 795.50 | E184: 778.30 | F184: 767.95 | G184: 750.75 | H184: 805.85 | I184: 823.05 | J184: 833.40 | K184: 812.7 | L184: 785.15 | M184: 3.31271
A185: 176 | B185: SUNPHARMA | C185: 579.85 | D185: 584.62 | E185: 573.23 | F185: 566.62 | G185: 555.23 | H185: 591.23 | I185: 602.62 | J185: 609.23 | K185: 596 | L185: 578 | M185: 42.13982
A186: 177 | B186: SUNTV | C186: 1033.7 | D186: 1037.75 | E186: 1026.00 | F186: 1018.30 | G186: 1006.55 | H186: 1045.45 | I186: 1057.20 | J186: 1064.90 | K186: 1049.5 | L186: 1030.05 | M186: 10.1961
A187: 178 | B187: SUZLON | C187: 14.6 | D187: 14.68 | E187: 14.42 | F187: 14.23 | G187: 13.97 | H187: 14.87 | I187: 15.13 | J187: 15.32 | K187: 14.95 | L187: 14.5 | M187: 574.55743
A188: 179 | B188: SYNDIBANK | C188: 76.65 | D188: 78.77 | E188: 74.08 | F188: 71.52 | G188: 66.83 | H188: 81.33 | I188: 86.02 | J188: 88.58 | K188: 83.45 | L188: 76.2 | M188: 101.40927
A189: 180 | B189: SYNGENE | C189: 622.55 | D189: 628.62 | E189: 607.78 | F189: 593.02 | G189: 572.18 | H189: 643.38 | I189: 664.22 | J189: 678.98 | K189: 649.45 | L189: 613.85 | M189: 2.89955
A190: 181 | B190: TATACHEM | C190: 717.3 | D190: 721.82 | E190: 709.43 | F190: 701.57 | G190: 689.18 | H190: 729.68 | I190: 742.07 | J190: 749.93 | K190: 734.2 | L190: 713.95 | M190: 13.08813
A191: 182 | B191: TATACOMM | C191: 619.25 | D191: 623.90 | E191: 613.00 | F191: 606.75 | G191: 595.85 | H191: 630.15 | I191: 641.05 | J191: 647.30 | K191: 634.8 | L191: 617.65 | M191: 3.19537
A192: 183 | B192: TATAGLOBAL | C192: 304.25 | D192: 305.72 | E192: 300.18 | F192: 296.12 | G192: 290.58 | H192: 309.78 | I192: 315.32 | J192: 319.38 | K192: 311.25 | L192: 301.65 | M192: 36.31793
A193: 184 | B193: TATAMOTORS | C193: 400.3 | D193: 401.98 | E193: 396.32 | F193: 392.33 | G193: 386.67 | H193: 405.97 | I193: 411.63 | J193: 415.62 | K193: 407.65 | L193: 398 | M193: 163.12167
A194: 185 | B194: TATAMTRDVR | C194: 227.25 | D194: 229.00 | E194: 224.55 | F194: 221.85 | G194: 217.40 | H194: 231.70 | I194: 236.15 | J194: 238.85 | K194: 233.45 | L194: 226.3 | M194: 33.15883
A195: 186 | B195: TATAPOWER | C195: 89.95 | D195: 90.70 | E195: 88.80 | F195: 87.65 | G195: 85.75 | H195: 91.85 | I195: 93.75 | J195: 94.90 | K195: 92.6 | L195: 89.55 | M195: 108.4815
A196: 187 | B196: TATASTEEL | C196: 769.15 | D196: 766.83 | E196: 760.57 | F196: 751.98 | G196: 745.72 | H196: 775.42 | I196: 781.68 | J196: 790.27 | K196: 773.1 | L196: 758.25 | M196: 83.97681
A197: 188 | B197: TCS | C197: 3121.05 | D197: 3127.28 | E197: 3074.77 | F197: 3028.48 | G197: 2975.97 | H197: 3173.57 | I197: 3226.08 | J197: 3272.37 | K197: 3179.8 | L197: 3081 | M197: 19.16922
A198: 189 | B198: TECHM | C198: 598.45 | D198: 600.00 | E198: 586.55 | F198: 574.65 | G198: 561.20 | H198: 611.90 | I198: 625.35 | J198: 637.25 | K198: 613.45 | L198: 588.1 | M198: 51.04213
A199: 190 | B199: THERMAX | C199: 1271.9 | D199: 1271.68 | E199: 1250.37 | F199: 1228.83 | G199: 1207.52 | H199: 1293.22 | I199: 1314.53 | J199: 1336.07 | K199: 1293 | L199: 1250.15 | M199: 0.23583
A200: 191 | B200: TITAN | C200: 884.1 | D200: 888.72 | E200: 872.13 | F200: 860.17 | G200: 843.58 | H200: 900.68 | I200: 917.27 | J200: 929.23 | K200: 905.3 | L200: 876.75 | M200: 31.04669
A201: 192 | B201: TORNTPHARM | C201: 1421.4 | D201: 1429.30 | E201: 1397.60 | F201: 1373.80 | G201: 1342.10 | H201: 1453.10 | I201: 1484.80 | J201: 1508.60 | K201: 1461 | L201: 1405.5 | M201: 2.48728
A202: 193 | B202: TORNTPOWER | C202: 284.25 | D202: 287.88 | E202: 279.37 | F202: 274.48 | G202: 265.97 | H202: 292.77 | I202: 301.28 | J202: 306.17 | K202: 296.4 | L202: 283 | M202: 15.18962
A203: 194 | B203: TV18BRDCST | C203: 59.9 | D203: 60.13 | E203: 59.12 | F203: 58.33 | G203: 57.32 | H203: 60.92 | I203: 61.93 | J203: 62.72 | K203: 61.15 | L203: 59.35 | M203: 59.58941
A204: 195 | B204: TVSMOTOR | C204: 704.6 | D204: 708.48 | E204: 698.97 | F204: 693.33 | G204: 683.82 | H204: 714.12 | I204: 723.63 | J204: 729.27 | K204: 718 | L204: 702.85 | M204: 16.53212
A205: 196 | B205: UBL | C205: 1142.75 | D205: 1149.17 | E205: 1119.33 | F205: 1095.92 | G205: 1066.08 | H205: 1172.58 | I205: 1202.42 | J205: 1225.83 | K205: 1179 | L205: 1125.75 | M205: 6.04084
... 29 more rows

Sheet MidCap Intra
L5: Back To Main Page
A6: FOR INTRA DAY TRADING | K6: =Main!B10 -> 2018-01-29
A9: Sr.no | B9: Scrip | C9: CLOSE RATE | D9: Pivot Point | E9: Supports | H9: Resistances
C10: Point | E10: S1 | F10: S2 | G10: S3 | H10: R1 | I10: R2 | J10: R3 | K10: HIGH | L10: LOW | M10: Total Trade Quanity in Lakhs
A11: 1 | B11: 3MINDIA | C11: 18854.8 | D11: 18826.12 | E11: 18653.23 | F11: 18451.67 | G11: 18278.78 | H11: 19027.68 | I11: 19200.57 | J11: 19402.13 | K11: 18999 | L11: 18624.55 | M11: 0.01857
A12: 2 | B12: 8KMILES | C12: 785.85 | D12: 793.38 | E12: 773.47 | F12: 761.08 | G12: 741.17 | H12: 805.77 | I12: 825.68 | J12: 838.07 | K12: 813.3 | L12: 781 | M12: 1.20014
A13: 3 | B13: AARTIIND | C13: 1078 | D13: 1086.97 | E13: 1039.03 | F13: 1000.07 | G13: 952.13 | H13: 1125.93 | I13: 1173.87 | J13: 1212.83 | K13: 1134.9 | L13: 1048 | M13: 1.25876
A14: 4 | B14: ABAN | C14: 233.25 | D14: 233.75 | E14: 228.50 | F14: 223.75 | G14: 218.50 | H14: 238.50 | I14: 243.75 | J14: 248.50 | K14: 239 | L14: 229 | M14: 15.97329
A15: 5 | B15: ABB | C15: 1659.3 | D15: 1657.10 | E15: 1627.20 | F15: 1595.10 | G15: 1565.20 | H15: 1689.20 | I15: 1719.10 | J15: 1751.20 | K15: 1687 | L15: 1625 | M15: 0.82745
A16: 6 | B16: ABFRL | C16: 167 | D16: 166.37 | E16: 164.73 | F16: 162.47 | G16: 160.83 | H16: 168.63 | I16: 170.27 | J16: 172.53 | K16: 168 | L16: 164.1 | M16: 1.84059
A17: 7 | B17: ACC | C17: 1726.4 | D17: 1733.27 | E17: 1713.13 | F17: 1699.87 | G17: 1679.73 | H17: 1746.53 | I17: 1766.67 | J17: 1779.93 | K17: 1753.4 | L17: 1720 | M17: 6.04042
A18: 8 | B18: ADANIENT | C18: 214.4 | D18: 210.65 | E18: 205.55 | F18: 196.70 | G18: 191.60 | H18: 219.50 | I18: 224.60 | J18: 233.45 | K18: 215.75 | L18: 201.8 | M18: 132.3359
A19: 9 | B19: ADANIPORTS | C19: 436.5 | D19: 440.43 | E19: 430.87 | F19: 425.23 | G19: 415.67 | H19: 446.07 | I19: 455.63 | J19: 461.27 | K19: 450 | L19: 434.8 | M19: 67.92843
A20: 10 | B20: ADANIPOWER | C20: 38.2 | D20: 37.87 | E20: 36.98 | F20: 35.77 | G20: 34.88 | H20: 39.08 | I20: 39.97 | J20: 41.18 | K20: 38.75 | L20: 36.65 | M20: 252.36607
A21: 11 | B21: ADANITRANS | C21: 216.45 | D21: 218.55 | E21: 213.30 | F21: 210.15 | G21: 204.90 | H21: 221.70 | I21: 226.95 | J21: 230.10 | K21: 223.8 | L21: 215.4 | M21: 8.13884
A22: 12 | B22: ADVENZYMES | C22: 284.15 | D22: 285.82 | E22: 280.43 | F22: 276.72 | G22: 271.33 | H22: 289.53 | I22: 294.92 | J22: 298.63 | K22: 291.2 | L22: 282.1 | M22: 0.66743
A23: 13 | B23: AEGISCHEM | C23: 279.8 | D23: 280.23 | E23: 277.62 | F23: 275.43 | G23: 272.82 | H23: 282.42 | I23: 285.03 | J23: 287.22 | K23: 282.85 | L23: 278.05 | M23: 0.75286
A24: 14 | B24: AHLUCONT | C24: 335.05 | D24: 341.37 | E24: 323.23 | F24: 311.42 | G24: 293.28 | H24: 353.18 | I24: 371.32 | J24: 383.13 | K24: 359.5 | L24: 329.55 | M24: 0.67361
A25: 15 | B25: AIAENG | C25: 1600.45 | D25: 1600.92 | E25: 1586.83 | F25: 1573.22 | G25: 1559.13 | H25: 1614.53 | I25: 1628.62 | J25: 1642.23 | K25: 1615 | L25: 1587.3 | M25: 0.40546
A26: 16 | B26: AJANTPHARM | C26: 1493.3 | D26: 1515.15 | E26: 1447.30 | F26: 1401.30 | G26: 1333.45 | H26: 1561.15 | I26: 1629.00 | J26: 1675.00 | K26: 1583 | L26: 1469.15 | M26: 4.6653
A27: 17 | B27: AKZOINDIA | C27: 1868.2 | D27: 1866.75 | E27: 1858.50 | F27: 1848.80 | G27: 1840.55 | H27: 1876.45 | I27: 1884.70 | J27: 1894.40 | K27: 1875 | L27: 1857.05 | M27: 0.1249
A28: 18 | B28: ALBK | C28: 70.1 | D28: 71.28 | E28: 68.57 | F28: 67.03 | G28: 64.32 | H28: 72.82 | I28: 75.53 | J28: 77.07 | K28: 74 | L28: 69.75 | M28: 42.26178
A29: 19 | B29: ALKEM | C29: 2202.25 | D29: 2203.70 | E29: 2167.40 | F29: 2132.55 | G29: 2096.25 | H29: 2238.55 | I29: 2274.85 | J29: 2309.70 | K29: 2240 | L29: 2168.85 | M29: 0.64212
A30: 20 | B30: ALLCARGO | C30: 198.35 | D30: 198.08 | E30: 196.47 | F30: 194.58 | G30: 192.97 | H30: 199.97 | I30: 201.58 | J30: 203.47 | K30: 199.7 | L30: 196.2 | M30: 2.40254
A31: 21 | B31: AMARAJABAT | C31: 841.8 | D31: 856.67 | E31: 820.63 | F31: 799.47 | G31: 763.43 | H31: 877.83 | I31: 913.87 | J31: 935.03 | K31: 892.7 | L31: 835.5 | M31: 14.65209
A32: 22 | B32: AMBUJACEM | C32: 263 | D32: 262.37 | E32: 260.23 | F32: 257.47 | G32: 255.33 | H32: 265.13 | I32: 267.27 | J32: 270.03 | K32: 264.5 | L32: 259.6 | M32: 33.13959
A33: 23 | B33: ANANTRAJ | C33: 68.15 | D33: 69.07 | E33: 66.83 | F33: 65.52 | G33: 63.28 | H33: 70.38 | I33: 72.62 | J33: 73.93 | K33: 71.3 | L33: 67.75 | M33: 17.66739
A34: 24 | B34: ANDHRABANK | C34: 55.9 | D34: 56.98 | E34: 54.57 | F34: 53.23 | G34: 50.82 | H34: 58.32 | I34: 60.73 | J34: 62.07 | K34: 59.4 | L34: 55.65 | M34: 50.26653
A35: 25 | B35: APARINDS | C35: 790.5 | D35: 796.20 | E35: 783.50 | F35: 776.50 | G35: 763.80 | H35: 803.20 | I35: 815.90 | J35: 822.90 | K35: 808.9 | L35: 789.2 | M35: 0.14465
A36: 26 | B36: APLAPOLLO | C36: 2528.8 | D36: 2511.72 | E36: 2448.43 | F36: 2368.07 | G36: 2304.78 | H36: 2592.08 | I36: 2655.37 | J36: 2735.73 | K36: 2575 | L36: 2431.35 | M36: 0.32337
A37: 27 | B37: APLLTD | C37: 553 | D37: 550.43 | E37: 544.87 | F37: 536.73 | G37: 531.17 | H37: 558.57 | I37: 564.13 | J37: 572.27 | K37: 556 | L37: 542.3 | M37: 4.6745
A38: 28 | B38: APOLLOHOSP | C38: 1133.7 | D38: 1126.73 | E38: 1114.97 | F38: 1096.23 | G38: 1084.47 | H38: 1145.47 | I38: 1157.23 | J38: 1175.97 | K38: 1138.5 | L38: 1108 | M38: 3.27271
A39: 29 | B39: APOLLOTYRE | C39: 261.05 | D39: 263.42 | E39: 257.23 | F39: 253.42 | G39: 247.23 | H39: 267.23 | I39: 273.42 | J39: 277.23 | K39: 269.6 | L39: 259.6 | M39: 51.3117
A40: 30 | B40: ARVIND | C40: 444.15 | D40: 445.88 | E40: 440.12 | F40: 436.08 | G40: 430.32 | H40: 449.92 | I40: 455.68 | J40: 459.72 | K40: 451.65 | L40: 441.85 | M40: 11.44581
A41: 31 | B41: ASAHIINDIA | C41: 361 | D41: 362.83 | E41: 356.67 | F41: 352.33 | G41: 346.17 | H41: 367.17 | I41: 373.33 | J41: 377.67 | K41: 369 | L41: 358.5 | M41: 0.23795
A42: 32 | B42: ASHOKA | C42: 234.65 | D42: 236.42 | E42: 230.33 | F42: 226.02 | G42: 219.93 | H42: 240.73 | I42: 246.82 | J42: 251.13 | K42: 242.5 | L42: 232.1 | M42: 0.41744
A43: 33 | B43: ASHOKLEY | C43: 122.3 | D43: 122.77 | E43: 121.13 | F43: 119.97 | G43: 118.33 | H43: 123.93 | I43: 125.57 | J43: 126.73 | K43: 124.4 | L43: 121.6 | M43: 113.67419
A44: 34 | B44: ASIANPAINT | C44: 1150.45 | D44: 1151.77 | E44: 1142.13 | F44: 1133.82 | G44: 1124.18 | H44: 1160.08 | I44: 1169.72 | J44: 1178.03 | K44: 1161.4 | L44: 1143.45 | M44: 15.63047
A45: 35 | B45: ASTRAL | C45: 811.5 | D45: 812.48 | E45: 803.02 | F45: 794.53 | G45: 785.07 | H45: 820.97 | I45: 830.43 | J45: 838.92 | K45: 821.95 | L45: 804 | M45: 0.19597
A46: 36 | B46: ASTRAZEN | C46: 1150.65 | D46: 1145.57 | E46: 1131.13 | F46: 1111.62 | G46: 1097.18 | H46: 1165.08 | I46: 1179.52 | J46: 1199.03 | K46: 1160 | L46: 1126.05 | M46: 0.07653
A47: 37 | B47: ATUL | C47: 2858.75 | D47: 2859.55 | E47: 2819.20 | F47: 2779.65 | G47: 2739.30 | H47: 2899.10 | I47: 2939.45 | J47: 2979.00 | K47: 2899.9 | L47: 2820 | M47: 0.0826
A48: 38 | B48: AUROPHARMA | C48: 639.7 | D48: 645.68 | E48: 631.37 | F48: 623.03 | G48: 608.72 | H48: 654.02 | I48: 668.33 | J48: 676.67 | K48: 660 | L48: 637.35 | M48: 17.23328
A49: 39 | B49: AVANTIFEED | C49: 2438.8 | D49: 2462.50 | E49: 2406.30 | F49: 2373.80 | G49: 2317.60 | H49: 2495.00 | I49: 2551.20 | J49: 2583.70 | K49: 2518.7 | L49: 2430 | M49: 0.27197
A50: 40 | B50: AXISBANK | C50: 616.1 | D50: 611.32 | E50: 603.38 | F50: 590.67 | G50: 582.73 | H50: 624.03 | I50: 631.97 | J50: 644.68 | K50: 619.25 | L50: 598.6 | M50: 67.49846
A51: 41 | B51: BAJAJ-AUTO | C51: 3311.7 | D51: 3317.53 | E51: 3289.17 | F51: 3266.63 | G51: 3238.27 | H51: 3340.07 | I51: 3368.43 | J51: 3390.97 | K51: 3345.9 | L51: 3295 | M51: 2.46647
A52: 42 | B52: BAJAJCORP | C52: 495.9 | D52: 494.70 | E52: 489.45 | F52: 483.00 | G52: 477.75 | H52: 501.15 | I52: 506.40 | J52: 512.85 | K52: 499.95 | L52: 488.25 | M52: 0.42238
A53: 43 | B53: BAJAJELEC | C53: 512.15 | D53: 517.05 | E53: 504.10 | F53: 496.05 | G53: 483.10 | H53: 525.10 | I53: 538.05 | J53: 546.10 | K53: 530 | L53: 509 | M53: 1.24814
A54: 44 | B54: BAJAJFINSV | C54: 4933.05 | D54: 4967.68 | E54: 4865.37 | F54: 4797.68 | G54: 4695.37 | H54: 5035.37 | I54: 5137.68 | J54: 5205.37 | K54: 5070 | L54: 4900 | M54: 1.49077
A55: 45 | B55: BAJAJHIND | C55: 14.05 | D55: 14.10 | E55: 13.95 | F55: 13.85 | G55: 13.70 | H55: 14.20 | I55: 14.35 | J55: 14.45 | K55: 14.25 | L55: 14 | M55: 26.04338
A56: 46 | B56: BAJAJHLDNG | C56: 2819.75 | D56: 2815.20 | E56: 2799.25 | F56: 2778.75 | G56: 2762.80 | H56: 2835.70 | I56: 2851.65 | J56: 2872.15 | K56: 2831.15 | L56: 2794.7 | M56: 0.25223
A57: 47 | B57: BAJFINANCE | C57: 1710.3 | D57: 1718.53 | E57: 1695.17 | F57: 1680.03 | G57: 1656.67 | H57: 1733.67 | I57: 1757.03 | J57: 1772.17 | K57: 1741.9 | L57: 1703.4 | M57: 8.80891
A58: 48 | B58: BALKRISIND | C58: 1121.05 | D58: 1127.38 | E58: 1110.77 | F58: 1100.48 | G58: 1083.87 | H58: 1137.67 | I58: 1154.28 | J58: 1164.57 | K58: 1144 | L58: 1117.1 | M58: 1.84
A59: 49 | B59: BALLARPUR | C59: 15.55 | D59: 15.60 | E59: 15.30 | F59: 15.05 | G59: 14.75 | H59: 15.85 | I59: 16.15 | J59: 16.40 | K59: 15.9 | L59: 15.35 | M59: 11.01577
A60: 50 | B60: BALMLAWRIE | C60: 246.85 | D60: 245.92 | E60: 243.18 | F60: 239.52 | G60: 236.78 | H60: 249.58 | I60: 252.32 | J60: 255.98 | K60: 248.65 | L60: 242.25 | M60: 0.90334
A61: 51 | B61: BALRAMCHIN | C61: 121.75 | D61: 122.40 | E61: 119.45 | F61: 117.15 | G61: 114.20 | H61: 124.70 | I61: 127.65 | J61: 129.95 | K61: 125.35 | L61: 120.1 | M61: 38.31417
A62: 52 | B62: BANKBARODA | C62: 167.15 | D62: 170.80 | E62: 162.80 | F62: 158.45 | G62: 150.45 | H62: 175.15 | I62: 183.15 | J62: 187.50 | K62: 178.8 | L62: 166.45 | M62: 245.79032
A63: 53 | B63: BANKINDIA | C63: 169.4 | D63: 173.58 | E63: 163.92 | F63: 158.43 | G63: 148.77 | H63: 179.07 | I63: 188.73 | J63: 194.22 | K63: 183.25 | L63: 168.1 | M63: 128.25427
A64: 54 | B64: BASF | C64: 2183.2 | D64: 2188.73 | E64: 2164.47 | F64: 2145.73 | G64: 2121.47 | H64: 2207.47 | I64: 2231.73 | J64: 2250.47 | K64: 2213 | L64: 2170 | M64: 0.06895
A65: 55 | B65: BATAINDIA | C65: 706.3 | D65: 711.62 | E65: 697.28 | F65: 688.27 | G65: 673.93 | H65: 720.63 | I65: 734.97 | J65: 743.98 | K65: 725.95 | L65: 702.6 | M65: 4.88699
A66: 56 | B66: BBTC | C66: 1509.1 | D66: 1523.03 | E66: 1486.07 | F66: 1463.03 | G66: 1426.07 | H66: 1546.07 | I66: 1583.03 | J66: 1606.07 | K66: 1560 | L66: 1500 | M66: 0.84556
A67: 57 | B67: BEL | C67: 176.9 | D67: 177.27 | E67: 175.03 | F67: 173.17 | G67: 170.93 | H67: 179.13 | I67: 181.37 | J67: 183.23 | K67: 179.5 | L67: 175.4 | M67: 152.42684
A68: 58 | B68: BEML | C68: 1480.55 | D68: 1488.77 | E68: 1464.78 | F68: 1449.02 | G68: 1425.03 | H68: 1504.53 | I68: 1528.52 | J68: 1544.28 | K68: 1512.75 | L68: 1473 | M68: 2.94417
A69: 59 | B69: BERGEPAINT | C69: 253.15 | D69: 253.10 | E69: 250.35 | F69: 247.55 | G69: 244.80 | H69: 255.90 | I69: 258.65 | J69: 261.45 | K69: 255.85 | L69: 250.3 | M69: 7.45685
A70: 60 | B70: BFUTILITIE | C70: 504.85 | D70: 508.28 | E70: 498.57 | F70: 492.28 | G70: 482.57 | H70: 514.57 | I70: 524.28 | J70: 530.57 | K70: 518 | L70: 502 | M70: 3.27835
A71: 61 | B71: BGRENERGY | C71: 136.4 | D71: 137.45 | E71: 134.95 | F71: 133.50 | G71: 131.00 | H71: 138.90 | I71: 141.40 | J71: 142.85 | K71: 139.95 | L71: 136 | M71: 0.85489
A72: 62 | B72: BHARATFIN | C72: 1023 | D72: 1023.38 | E72: 1014.82 | F72: 1006.63 | G72: 998.07 | H72: 1031.57 | I72: 1040.13 | J72: 1048.32 | K72: 1031.95 | L72: 1015.2 | M72: 6.52551
A73: 63 | B73: BHARATFORG | C73: 721.15 | D73: 729.80 | E73: 707.65 | F73: 694.15 | G73: 672.00 | H73: 743.30 | I73: 765.45 | J73: 778.95 | K73: 751.95 | L73: 716.3 | M73: 22.44964
A74: 64 | B74: BHARTIARTL | C74: 452.7 | D74: 453.55 | E74: 443.60 | F74: 434.50 | G74: 424.55 | H74: 462.65 | I74: 472.60 | J74: 481.70 | K74: 463.5 | L74: 444.45 | M74: 185.48035
A75: 65 | B75: BHEL | C75: 103 | D75: 103.93 | E75: 101.37 | F75: 99.73 | G75: 97.17 | H75: 105.57 | I75: 108.13 | J75: 109.77 | K75: 106.5 | L75: 102.3 | M75: 213.20475
A76: 66 | B76: BHUSANSTL | C76: 60 | D76: 61.40 | E76: 58.40 | F76: 56.80 | G76: 53.80 | H76: 63.00 | I76: 66.00 | J76: 67.60 | K76: 64.4 | L76: 59.8 | M76: 31.21886
A77: 67 | B77: BIOCON | C77: 607.45 | D77: 608.38 | E77: 599.27 | F77: 591.08 | G77: 581.97 | H77: 616.57 | I77: 625.68 | J77: 633.87 | K77: 617.5 | L77: 600.2 | M77: 77.37568
A78: 68 | B78: BIRLACORPN | C78: 1157.85 | D78: 1158.62 | E78: 1137.23 | F78: 1116.62 | G78: 1095.23 | H78: 1179.23 | I78: 1200.62 | J78: 1221.23 | K78: 1180 | L78: 1138 | M78: 0.1763
A79: 69 | B79: BLISSGVS | C79: 204.45 | D79: 205.08 | E79: 201.47 | F79: 198.48 | G79: 194.87 | H79: 208.07 | I79: 211.68 | J79: 214.67 | K79: 208.7 | L79: 202.1 | M79: 5.82293
A80: 70 | B80: BLUEDART | C80: 4651.9 | D80: 4654.65 | E80: 4612.30 | F80: 4572.70 | G80: 4530.35 | H80: 4694.25 | I80: 4736.60 | J80: 4776.20 | K80: 4697 | L80: 4615.05 | M80: 0.02644
A81: 71 | B81: BLUESTARCO | C81: 762 | D81: 760.67 | E81: 752.33 | F81: 742.67 | G81: 734.33 | H81: 770.33 | I81: 778.67 | J81: 788.33 | K81: 769 | L81: 751 | M81: 0.138
A82: 72 | B82: BOMDYEING | C82: 233.7 | D82: 236.95 | E82: 228.90 | F82: 224.10 | G82: 216.05 | H82: 241.75 | I82: 249.80 | J82: 254.60 | K82: 245 | L82: 232.15 | M82: 23.32079
A83: 73 | B83: BOSCHLTD | C83: 19642.5 | D83: 19679.57 | E83: 19469.13 | F83: 19295.77 | G83: 19085.33 | H83: 19852.93 | I83: 20063.37 | J83: 20236.73 | K83: 19890 | L83: 19506.2 | M83: 0.14671
A84: 74 | B84: BPCL | C84: 480.65 | D84: 480.25 | E84: 474.00 | F84: 467.35 | G84: 461.10 | H84: 486.90 | I84: 493.15 | J84: 499.80 | K84: 486.5 | L84: 473.6 | M84: 40.16765
A85: 75 | B85: BRITANNIA | C85: 4625.6 | D85: 4648.60 | E85: 4578.00 | F85: 4530.40 | G85: 4459.80 | H85: 4696.20 | I85: 4766.80 | J85: 4814.40 | K85: 4719.2 | L85: 4601 | M85: 3.98317
A86: 76 | B86: CADILAHC | C86: 418.15 | D86: 421.10 | E86: 412.60 | F86: 407.05 | G86: 398.55 | H86: 426.65 | I86: 435.15 | J86: 440.70 | K86: 429.6 | L86: 415.55 | M86: 6.43671
A87: 77 | B87: CANBK | C87: 361.35 | D87: 368.18 | E87: 351.47 | F87: 341.58 | G87: 324.87 | H87: 378.07 | I87: 394.78 | J87: 404.67 | K87: 384.9 | L87: 358.3 | M87: 59.74678
A88: 78 | B88: CANFINHOME | C88: 442.35 | D88: 444.20 | E88: 435.60 | F88: 428.85 | G88: 420.25 | H88: 450.95 | I88: 459.55 | J88: 466.30 | K88: 452.8 | L88: 437.45 | M88: 12.96243
A89: 79 | B89: CAPF | C89: 758.6 | D89: 764.62 | E89: 750.28 | F89: 741.97 | G89: 727.63 | H89: 772.93 | I89: 787.27 | J89: 795.58 | K89: 778.95 | L89: 756.3 | M89: 10.96778
A90: 80 | B90: CAPLIPOINT | C90: 648.45 | D90: 645.43 | E90: 618.07 | F90: 587.68 | G90: 560.32 | H90: 675.82 | I90: 703.18 | J90: 733.57 | K90: 672.8 | L90: 615.05 | M90: 1.6713
A91: 81 | B91: CARBORUNIV | C91: 391 | D91: 394.77 | E91: 384.93 | F91: 378.87 | G91: 369.03 | H91: 400.83 | I91: 410.67 | J91: 416.73 | K91: 404.6 | L91: 388.7 | M91: 2.52505
A92: 82 | B92: CARERATING | C92: 1406.4 | D92: 1397.82 | E92: 1383.63 | F92: 1360.87 | G92: 1346.68 | H92: 1420.58 | I92: 1434.77 | J92: 1457.53 | K92: 1412 | L92: 1375.05 | M92: 2.08558
A93: 83 | B93: CASTROLIND | C93: 182.9 | D93: 184.25 | E93: 180.70 | F93: 178.50 | G93: 174.95 | H93: 186.45 | I93: 190.00 | J93: 192.20 | K93: 187.8 | L93: 182.05 | M93: 31.68677
A94: 84 | B94: CCL | C94: 292.15 | D94: 293.72 | E94: 288.43 | F94: 284.72 | G94: 279.43 | H94: 297.43 | I94: 302.72 | J94: 306.43 | K94: 299 | L94: 290 | M94: 0.53364
A95: 85 | B95: CEATLTD | C95: 1834.05 | D95: 1845.40 | E95: 1813.75 | F95: 1793.45 | G95: 1761.80 | H95: 1865.70 | I95: 1897.35 | J95: 1917.65 | K95: 1877.05 | L95: 1825.1 | M95: 2.8468
A96: 86 | B96: CENTRALBK | C96: 74.2 | D96: 75.07 | E96: 73.13 | F96: 72.07 | G96: 70.13 | H96: 76.13 | I96: 78.07 | J96: 79.13 | K96: 77 | L96: 74 | M96: 6.59552
A97: 87 | B97: CENTURYPLY | C97: 339 | D97: 338.52 | E97: 336.08 | F97: 333.17 | G97: 330.73 | H97: 341.43 | I97: 343.87 | J97: 346.78 | K97: 340.95 | L97: 335.6 | M97: 0.92607
A98: 88 | B98: CENTURYTEX | C98: 1398.85 | D98: 1405.33 | E98: 1380.62 | F98: 1362.38 | G98: 1337.67 | H98: 1423.57 | I98: 1448.28 | J98: 1466.52 | K98: 1430.05 | L98: 1387.1 | M98: 8.67473
A99: 89 | B99: CERA | C99: 3583.65 | D99: 3589.20 | E99: 3524.45 | F99: 3465.25 | G99: 3400.50 | H99: 3648.40 | I99: 3713.15 | J99: 3772.35 | K99: 3653.95 | L99: 3530 | M99: 0.10295
A100: 90 | B100: CESC | C100: 1069.5 | D100: 1078.67 | E100: 1054.83 | F100: 1040.17 | G100: 1016.33 | H100: 1093.33 | I100: 1117.17 | J100: 1131.83 | K100: 1102.5 | L100: 1064 | M100: 6.60138
A101: 91 | B101: CGPOWER | C101: 92.1 | D101: 93.05 | E101: 90.70 | F101: 89.30 | G101: 86.95 | H101: 94.45 | I101: 96.80 | J101: 98.20 | K101: 95.4 | L101: 91.65 | M101: 29.17292
A102: 92 | B102: CHAMBLFERT | C102: 154.1 | D102: 154.70 | E102: 151.90 | F102: 149.70 | G102: 146.90 | H102: 156.90 | I102: 159.70 | J102: 161.90 | K102: 157.5 | L102: 152.5 | M102: 5.23816
A103: 93 | B103: CHENNPETRO | C103: 419.65 | D103: 423.05 | E103: 413.25 | F103: 406.85 | G103: 397.05 | H103: 429.45 | I103: 439.25 | J103: 445.65 | K103: 432.85 | L103: 416.65 | M103: 5.24619
A104: 94 | B104: CHOLAFIN | C104: 1307.5 | D104: 1309.92 | E104: 1294.98 | F104: 1282.47 | G104: 1267.53 | H104: 1322.43 | I104: 1337.37 | J104: 1349.88 | K104: 1324.85 | L104: 1297.4 | M104: 1.94191
A105: 95 | B105: CIPLA | C105: 621.4 | D105: 622.03 | E105: 613.07 | F105: 604.73 | G105: 595.77 | H105: 630.37 | I105: 639.33 | J105: 647.67 | K105: 631 | L105: 613.7 | M105: 29.73765
A106: 96 | B106: COALINDIA | C106: 299.4 | D106: 298.87 | E106: 295.08 | F106: 290.77 | G106: 286.98 | H106: 303.18 | I106: 306.97 | J106: 311.28 | K106: 302.65 | L106: 294.55 | M106: 69.19878
A107: 97 | B107: COFFEEDAY | C107: 344.5 | D107: 351.92 | E107: 334.83 | F107: 325.17 | G107: 308.08 | H107: 361.58 | I107: 378.67 | J107: 388.33 | K107: 369 | L107: 342.25 | M107: 6.38689
A108: 98 | B108: COLPAL | C108: 1151 | D108: 1152.37 | E108: 1143.88 | F108: 1136.77 | G108: 1128.28 | H108: 1159.48 | I108: 1167.97 | J108: 1175.08 | K108: 1160.85 | L108: 1145.25 | M108: 2.97309
A109: 99 | B109: CONCOR | C109: 1440.4 | D109: 1455.83 | E109: 1415.87 | F109: 1391.33 | G109: 1351.37 | H109: 1480.37 | I109: 1520.33 | J109: 1544.87 | K109: 1495.8 | L109: 1431.3 | M109: 6.34762
A110: 100 | B110: COROMANDEL | C110: 546.1 | D110: 552.85 | E110: 531.75 | F110: 517.40 | G110: 496.30 | H110: 567.20 | I110: 588.30 | J110: 602.65 | K110: 573.95 | L110: 538.5 | M110: 2.7798
A111: 101 | B111: CORPBANK | C111: 39.75 | D111: 40.15 | E111: 39.10 | F111: 38.45 | G111: 37.40 | H111: 40.80 | I111: 41.85 | J111: 42.50 | K111: 41.2 | L111: 39.5 | M111: 4.2931
A112: 102 | B112: COX&KINGS | C112: 259.95 | D112: 259.42 | E112: 256.33 | F112: 252.72 | G112: 249.63 | H112: 263.03 | I112: 266.12 | J112: 269.73 | K112: 262.5 | L112: 255.8 | M112: 7.60897
A113: 103 | B113: CRISIL | C113: 1980.75 | D113: 1976.58 | E113: 1963.17 | F113: 1945.58 | G113: 1932.17 | H113: 1994.17 | I113: 2007.58 | J113: 2025.17 | K113: 1990 | L113: 1959 | M113: 0.06496
A114: 104 | B114: CROMPTON | C114: 237.6 | D114: 241.88 | E114: 229.82 | F114: 222.03 | G114: 209.97 | H114: 249.67 | I114: 261.73 | J114: 269.52 | K114: 253.95 | L114: 234.1 | M114: 36.30836
A115: 105 | B115: CUB | C115: 172.8 | D115: 173.32 | E115: 171.63 | F115: 170.47 | G115: 168.78 | H115: 174.48 | I115: 176.17 | J115: 177.33 | K115: 175 | L115: 172.15 | M115: 1.65236
A116: 106 | B116: CUMMINSIND | C116: 911.1 | D116: 914.20 | E116: 903.40 | F116: 895.70 | G116: 884.90 | H116: 921.90 | I116: 932.70 | J116: 940.40 | K116: 925 | L116: 906.5 | M116: 4.86695
A117: 107 | B117: CYIENT | C117: 643.3 | D117: 644.27 | E117: 634.13 | F117: 624.97 | G117: 614.83 | H117: 653.43 | I117: 663.57 | J117: 672.73 | K117: 654.4 | L117: 635.1 | M117: 5.66626
A118: 108 | B118: DABUR | C118: 353.75 | D118: 356.75 | E118: 349.00 | F118: 344.25 | G118: 336.50 | H118: 361.50 | I118: 369.25 | J118: 374.00 | K118: 364.5 | L118: 352 | M118: 9.91272
A119: 109 | B119: DALMIABHA | C119: 3003.4 | D119: 3003.97 | E119: 2978.43 | F119: 2953.47 | G119: 2927.93 | H119: 3028.93 | I119: 3054.47 | J119: 3079.43 | K119: 3029.5 | L119: 2979 | M119: 1.86503
A120: 110 | B120: DBCORP | C120: 339.75 | D120: 340.75 | E120: 337.00 | F120: 334.25 | G120: 330.50 | H120: 343.50 | I120: 347.25 | J120: 350.00 | K120: 344.5 | L120: 338 | M120: 0.80027
A121: 111 | B121: DBL | C121: 947 | D121: 948.92 | E121: 938.13 | F121: 929.27 | G121: 918.48 | H121: 957.78 | I121: 968.57 | J121: 977.43 | K121: 959.7 | L121: 940.05 | M121: 4.16121
A122: 112 | B122: DBREALTY | C122: 68.95 | D122: 67.20 | E122: 65.45 | F122: 61.95 | G122: 60.20 | H122: 70.70 | I122: 72.45 | J122: 75.95 | K122: 68.95 | L122: 63.7 | M122: 6.30852
A123: 113 | B123: DCBBANK | C123: 182.55 | D123: 182.40 | E123: 180.10 | F123: 177.65 | G123: 175.35 | H123: 184.85 | I123: 187.15 | J123: 189.60 | K123: 184.7 | L123: 179.95 | M123: 12.75824
A124: 114 | B124: DCMSHRIRAM | C124: 595.05 | D124: 600.52 | E124: 586.03 | F124: 577.02 | G124: 562.53 | H124: 609.53 | I124: 624.02 | J124: 633.03 | K124: 615 | L124: 591.5 | M124: 2.67416
A125: 115 | B125: DEEPAKFERT | C125: 411.55 | D125: 411.73 | E125: 407.92 | F125: 404.28 | G125: 400.47 | H125: 415.37 | I125: 419.18 | J125: 422.82 | K125: 415.55 | L125: 408.1 | M125: 1.18595
A126: 116 | B126: DELTACORP | C126: 373.1 | D126: 370.37 | E126: 364.18 | F126: 355.27 | G126: 349.08 | H126: 379.28 | I126: 385.47 | J126: 394.38 | K126: 376.55 | L126: 361.45 | M126: 40.04802
A127: 117 | B127: DEN | C127: 120.1 | D127: 121.88 | E127: 117.82 | F127: 115.53 | G127: 111.47 | H127: 124.17 | I127: 128.23 | J127: 130.52 | K127: 125.95 | L127: 119.6 | M127: 4.65779
A128: 118 | B128: DENABANK | C128: 26.6 | D128: 26.92 | E128: 25.98 | F128: 25.37 | G128: 24.43 | H128: 27.53 | I128: 28.47 | J128: 29.08 | K128: 27.85 | L128: 26.3 | M128: 61.21801
A129: 119 | B129: DHANUKA | C129: 786.15 | D129: 788.78 | E129: 780.37 | F129: 774.58 | G129: 766.17 | H129: 794.57 | I129: 802.98 | J129: 808.77 | K129: 797.2 | L129: 783 | M129: 0.14758
A130: 120 | B130: DHFL | C130: 595.8 | D130: 590.35 | E130: 576.70 | F130: 557.60 | G130: 543.95 | H130: 609.45 | I130: 623.10 | J130: 642.20 | K130: 604 | L130: 571.25 | M130: 69.7422
A131: 121 | B131: DISHTV | C131: 73.55 | D131: 73.00 | E131: 72.05 | F131: 70.55 | G131: 69.60 | H131: 74.50 | I131: 75.45 | J131: 76.95 | K131: 73.95 | L131: 71.5 | M131: 132.19345
A132: 122 | B132: DIVISLAB | C132: 1120.3 | D132: 1113.80 | E132: 1101.60 | F132: 1082.90 | G132: 1070.70 | H132: 1132.50 | I132: 1144.70 | J132: 1163.40 | K132: 1126 | L132: 1095.1 | M132: 20.15896
A133: 123 | B133: DLF | C133: 253.6 | D133: 255.88 | E133: 250.27 | F133: 246.93 | G133: 241.32 | H133: 259.22 | I133: 264.83 | J133: 268.17 | K133: 261.5 | L133: 252.55 | M133: 59.21504
A134: 124 | B134: DREDGECORP | C134: 728.65 | D134: 735.93 | E134: 718.47 | F134: 708.28 | G134: 690.82 | H134: 746.12 | I134: 763.58 | J134: 773.77 | K134: 753.4 | L134: 725.75 | M134: 1.91369
A135: 125 | B135: DRREDDY | C135: 2507.75 | D135: 2519.35 | E135: 2441.60 | F135: 2375.45 | G135: 2297.70 | H135: 2585.50 | I135: 2663.25 | J135: 2729.40 | K135: 2597.1 | L135: 2453.2 | M135: 26.5203
A136: 126 | B136: ECLERX | C136: 1589.75 | D136: 1591.62 | E136: 1583.23 | F136: 1576.72 | G136: 1568.33 | H136: 1598.13 | I136: 1606.52 | J136: 1613.03 | K136: 1600 | L136: 1585.1 | M136: 0.51409
A137: 127 | B137: EDELWEISS | C137: 291 | D137: 289.83 | E137: 284.67 | F137: 278.33 | G137: 273.17 | H137: 296.17 | I137: 301.33 | J137: 307.67 | K137: 295 | L137: 283.5 | M137: 17.09992
A138: 128 | B138: EICHERMOT | C138: 26519.4 | D138: 26485.82 | E138: 26241.63 | F138: 25963.87 | G138: 25719.68 | H138: 26763.58 | I138: 27007.77 | J138: 27285.53 | K138: 26730 | L138: 26208.05 | M138: 1.75472
A139: 129 | B139: EIDPARRY | C139: 342.05 | D139: 344.23 | E139: 337.92 | F139: 333.78 | G139: 327.47 | H139: 348.37 | I139: 354.68 | J139: 358.82 | K139: 350.55 | L139: 340.1 | M139: 2.70072
A140: 130 | B140: EIHOTEL | C140: 197.15 | D140: 198.65 | E140: 194.75 | F140: 192.35 | G140: 188.45 | H140: 201.05 | I140: 204.95 | J140: 207.35 | K140: 202.55 | L140: 196.25 | M140: 1.69734
A141: 131 | B141: EMAMILTD | C141: 1202.45 | D141: 1204.75 | E141: 1171.50 | F141: 1140.55 | G141: 1107.30 | H141: 1235.70 | I141: 1268.95 | J141: 1299.90 | K141: 1238 | L141: 1173.8 | M141: 0.8527
A142: 132 | B142: ENDURANCE | C142: 1233.85 | D142: 1235.65 | E142: 1216.30 | F142: 1198.75 | G142: 1179.40 | H142: 1253.20 | I142: 1272.55 | J142: 1290.10 | K142: 1255 | L142: 1218.1 | M142: 0.20728
A143: 133 | B143: ENGINERSIN | C143: 173.7 | D143: 174.90 | E143: 171.50 | F143: 169.30 | G143: 165.90 | H143: 177.10 | I143: 180.50 | J143: 182.70 | K143: 178.3 | L143: 172.7 | M143: 35.52151
A144: 134 | B144: EQUITAS | C144: 145.9 | D144: 147.47 | E144: 143.73 | F144: 141.57 | G144: 137.83 | H144: 149.63 | I144: 153.37 | J144: 155.53 | K144: 151.2 | L144: 145.3 | M144: 23.82923
A145: 135 | B145: EROSMEDIA | C145: 210.05 | D145: 211.28 | E145: 207.27 | F145: 204.48 | G145: 200.47 | H145: 214.07 | I145: 218.08 | J145: 220.87 | K145: 215.3 | L145: 208.5 | M145: 4.98472
A146: 136 | B146: ESCORTS | C146: 836.9 | D146: 836.05 | E146: 823.60 | F146: 810.30 | G146: 797.85 | H146: 849.35 | I146: 861.80 | J146: 875.10 | K146: 848.5 | L146: 822.75 | M146: 25.91533
A147: 137 | B147: ESSELPACK | C147: 291.5 | D147: 293.20 | E147: 288.40 | F147: 285.30 | G147: 280.50 | H147: 296.30 | I147: 301.10 | J147: 304.20 | K147: 298 | L147: 290.1 | M147: 0.12962
A148: 138 | B148: EVEREADY | C148: 428.85 | D148: 431.80 | E148: 424.80 | F148: 420.75 | G148: 413.75 | H148: 435.85 | I148: 442.85 | J148: 446.90 | K148: 438.8 | L148: 427.75 | M148: 0.60909
A149: 139 | B149: EXIDEIND | C149: 227.1 | D149: 229.77 | E149: 222.33 | F149: 217.57 | G149: 210.13 | H149: 234.53 | I149: 241.97 | J149: 246.73 | K149: 237.2 | L149: 225 | M149: 40.15072
A150: 140 | B150: FCONSUMER | C150: 65.65 | D150: 65.92 | E150: 64.63 | F150: 63.62 | G150: 62.33 | H150: 66.93 | I150: 68.22 | J150: 69.23 | K150: 67.2 | L150: 64.9 | M150: 27.00406
A151: 141 | B151: FDC | C151: 239.7 | D151: 239.22 | E151: 236.48 | F151: 233.27 | G151: 230.53 | H151: 242.43 | I151: 245.17 | J151: 248.38 | K151: 241.95 | L151: 236 | M151: 0.42495
A152: 142 | B152: FEDERALBNK | C152: 101.15 | D152: 101.90 | E152: 100.00 | F152: 98.85 | G152: 96.95 | H152: 103.05 | I152: 104.95 | J152: 106.10 | K152: 103.8 | L152: 100.75 | M152: 81.96841
A153: 143 | B153: FINCABLES | C153: 726.7 | D153: 731.15 | E153: 717.80 | F153: 708.90 | G153: 695.55 | H153: 740.05 | I153: 753.40 | J153: 762.30 | K153: 744.5 | L153: 722.25 | M153: 0.25535
A154: 144 | B154: FINPIPE | C154: 653.4 | D154: 650.17 | E154: 645.33 | F154: 637.27 | G154: 632.43 | H154: 658.23 | I154: 663.07 | J154: 671.13 | K154: 655 | L154: 642.1 | M154: 0.15729
A155: 145 | B155: FMGOETZE | C155: 559.6 | D155: 561.28 | E155: 553.57 | F155: 547.53 | G155: 539.82 | H155: 567.32 | I155: 575.03 | J155: 581.07 | K155: 569 | L155: 555.25 | M155: 0.06378
A156: 146 | B156: FORTIS | C156: 157.3 | D156: 156.27 | E156: 154.03 | F156: 150.77 | G156: 148.53 | H156: 159.53 | I156: 161.77 | J156: 165.03 | K156: 158.5 | L156: 153 | M156: 74.98516
A157: 147 | B157: FSL | C157: 43.1 | D157: 43.47 | E157: 42.48 | F157: 41.87 | G157: 40.88 | H157: 44.08 | I157: 45.07 | J157: 45.68 | K157: 44.45 | L157: 42.85 | M157: 41.49975
A158: 148 | B158: GAIL | C158: 493.75 | D158: 490.72 | E158: 482.43 | F158: 471.12 | G158: 462.83 | H158: 502.03 | I158: 510.32 | J158: 521.63 | K158: 499 | L158: 479.4 | M158: 111.90753
A159: 149 | B159: GATI | C159: 134.7 | D159: 135.47 | E159: 133.43 | F159: 132.17 | G159: 130.13 | H159: 136.73 | I159: 138.77 | J159: 140.03 | K159: 137.5 | L159: 134.2 | M159: 7.63538
A160: 150 | B160: GAYAPROJ | C160: 220.55 | D160: 219.12 | E160: 216.53 | F160: 212.52 | G160: 209.93 | H160: 223.13 | I160: 225.72 | J160: 229.73 | K160: 221.7 | L160: 215.1 | M160: 4.89511
A161: 151 | B161: GDL | C161: 235.5 | D161: 235.07 | E161: 233.43 | F161: 231.37 | G161: 229.73 | H161: 237.13 | I161: 238.77 | J161: 240.83 | K161: 236.7 | L161: 233 | M161: 0.63634
A162: 152 | B162: GEPIL | C162: 999.4 | D162: 998.22 | E162: 981.43 | F162: 963.47 | G162: 946.68 | H162: 1016.18 | I162: 1032.97 | J162: 1050.93 | K162: 1015 | L162: 980.25 | M162: 0.71631
A163: 153 | B163: GESHIP | C163: 414.9 | D163: 421.97 | E163: 406.03 | F163: 397.17 | G163: 381.23 | H163: 430.83 | I163: 446.77 | J163: 455.63 | K163: 437.9 | L163: 413.1 | M163: 0.99649
A164: 154 | B164: GET&D | C164: 413.5 | D164: 415.68 | E164: 403.47 | F164: 393.43 | G164: 381.22 | H164: 425.72 | I164: 437.93 | J164: 447.97 | K164: 427.9 | L164: 405.65 | M164: 0.50101
A165: 155 | B165: GHCL | C165: 348.95 | D165: 350.62 | E165: 345.63 | F165: 342.32 | G165: 337.33 | H165: 353.93 | I165: 358.92 | J165: 362.23 | K165: 355.6 | L165: 347.3 | M165: 3.86823
A166: 156 | B166: GILLETTE | C166: 6637 | D166: 6631.67 | E166: 6565.33 | F166: 6493.67 | G166: 6427.33 | H166: 6703.33 | I166: 6769.67 | J166: 6841.33 | K166: 6698 | L166: 6560 | M166: 0.00986
A167: 157 | B167: GLAXO | C167: 2466.7 | D167: 2461.57 | E167: 2445.13 | F167: 2423.57 | G167: 2407.13 | H167: 2483.13 | I167: 2499.57 | J167: 2521.13 | K167: 2478 | L167: 2440 | M167: 0.13345
A168: 158 | B168: GLENMARK | C168: 634.25 | D168: 637.13 | E168: 627.27 | F168: 620.28 | G168: 610.42 | H168: 644.12 | I168: 653.98 | J168: 660.97 | K168: 647 | L168: 630.15 | M168: 18.22288
A169: 159 | B169: GMDCLTD | C169: 152.5 | D169: 151.60 | E169: 149.80 | F169: 147.10 | G169: 145.30 | H169: 154.30 | I169: 156.10 | J169: 158.80 | K169: 153.4 | L169: 148.9 | M169: 2.49114
A170: 160 | B170: GMRINFRA | C170: 22.75 | D170: 22.83 | E170: 22.27 | F170: 21.78 | G170: 21.22 | H170: 23.32 | I170: 23.88 | J170: 24.37 | K170: 23.4 | L170: 22.35 | M170: 558.49465
A171: 161 | B171: GNFC | C171: 497.75 | D171: 499.88 | E171: 489.97 | F171: 482.18 | G171: 472.27 | H171: 507.67 | I171: 517.58 | J171: 525.37 | K171: 509.8 | L171: 492.1 | M171: 8.96477
A172: 162 | B172: GODFRYPHLP | C172: 962.75 | D172: 970.05 | E172: 950.10 | F172: 937.45 | G172: 917.50 | H172: 982.70 | I172: 1002.65 | J172: 1015.30 | K172: 990 | L172: 957.4 | M172: 0.71396
A173: 163 | B173: GODREJCP | C173: 1075 | D173: 1088.38 | E173: 1050.72 | F173: 1026.43 | G173: 988.77 | H173: 1112.67 | I173: 1150.33 | J173: 1174.62 | K173: 1126.05 | L173: 1064.1 | M173: 11.06813
A174: 164 | B174: GODREJIND | C174: 620.05 | D174: 622.48 | E174: 612.57 | F174: 605.08 | G174: 595.17 | H174: 629.97 | I174: 639.88 | J174: 647.37 | K174: 632.4 | L174: 615 | M174: 5.5018
A175: 165 | B175: GODREJPROP | C175: 819 | D175: 824.00 | E175: 810.00 | F175: 801.00 | G175: 787.00 | H175: 833.00 | I175: 847.00 | J175: 856.00 | K175: 838 | L175: 815 | M175: 0.84519
A176: 166 | B176: GPPL | C176: 152.35 | D176: 151.58 | E176: 149.37 | F176: 146.38 | G176: 144.17 | H176: 154.57 | I176: 156.78 | J176: 159.77 | K176: 153.8 | L176: 148.6 | M176: 4.06495
A177: 167 | B177: GRANULES | C177: 136.85 | D177: 137.82 | E177: 134.78 | F177: 132.72 | G177: 129.68 | H177: 139.88 | I177: 142.92 | J177: 144.98 | K177: 140.85 | L177: 135.75 | M177: 18.18376
A178: 168 | B178: GRASIM | C178: 1193 | D178: 1196.25 | E178: 1180.65 | F178: 1168.30 | G178: 1152.70 | H178: 1208.60 | I178: 1224.20 | J178: 1236.55 | K178: 1211.85 | L178: 1183.9 | M178: 8.86429
A179: 169 | B179: GREAVESCOT | C179: 141.5 | D179: 140.63 | E179: 137.42 | F179: 133.33 | G179: 130.12 | H179: 144.72 | I179: 147.93 | J179: 152.02 | K179: 143.85 | L179: 136.55 | M179: 14.27956
A180: 170 | B180: GREENPLY | C180: 379.45 | D180: 381.07 | E180: 374.38 | F180: 369.32 | G180: 362.63 | H180: 386.13 | I180: 392.82 | J180: 397.88 | K180: 387.75 | L180: 376 | M180: 0.15337
A181: 171 | B181: GRINDWELL | C181: 545.5 | D181: 548.77 | E181: 541.73 | F181: 537.97 | G181: 530.93 | H181: 552.53 | I181: 559.57 | J181: 563.33 | K181: 555.8 | L181: 545 | M181: 0.04037
A182: 172 | B182: GRUH | C182: 593.05 | D182: 585.87 | E182: 570.23 | F182: 547.42 | G182: 531.78 | H182: 608.68 | I182: 624.32 | J182: 647.13 | K182: 601.5 | L182: 563.05 | M182: 11.28072
A183: 173 | B183: GSFC | C183: 149.05 | D183: 150.68 | E183: 146.42 | F183: 143.78 | G183: 139.52 | H183: 153.32 | I183: 157.58 | J183: 160.22 | K183: 154.95 | L183: 148.05 | M183: 20.95005
A184: 174 | B184: GSKCONS | C184: 6477.05 | D184: 6511.38 | E184: 6365.62 | F184: 6254.18 | G184: 6108.42 | H184: 6622.82 | I184: 6768.58 | J184: 6880.02 | K184: 6657.15 | L184: 6399.95 | M184: 0.19864
A185: 175 | B185: GSPL | C185: 208 | D185: 208.43 | E185: 206.57 | F185: 205.13 | G185: 203.27 | H185: 209.87 | I185: 211.73 | J185: 213.17 | K185: 210.3 | L185: 207 | M185: 1.4533
A186: 176 | B186: GUJALKALI | C186: 825.4 | D186: 835.62 | E186: 811.28 | F186: 797.17 | G186: 772.83 | H186: 849.73 | I186: 874.07 | J186: 888.18 | K186: 859.95 | L186: 821.5 | M186: 1.2628
A187: 177 | B187: GUJFLUORO | C187: 845.25 | D187: 854.60 | E187: 831.65 | F187: 818.05 | G187: 795.10 | H187: 868.20 | I187: 891.15 | J187: 904.75 | K187: 877.55 | L187: 841 | M187: 0.81626
A188: 178 | B188: GUJGASLTD | C188: 867.35 | D188: 870.15 | E188: 852.30 | F188: 837.25 | G188: 819.40 | H188: 885.20 | I188: 903.05 | J188: 918.10 | K188: 888 | L188: 855.1 | M188: 0.13822
A189: 179 | B189: GULFOILLUB | C189: 900.7 | D189: 897.22 | E189: 886.48 | F189: 872.27 | G189: 861.53 | H189: 911.43 | I189: 922.17 | J189: 936.38 | K189: 907.95 | L189: 883 | M189: 0.09029
A190: 180 | B190: HATHWAY | C190: 43.9 | D190: 44.15 | E190: 43.25 | F190: 42.60 | G190: 41.70 | H190: 44.80 | I190: 45.70 | J190: 46.35 | K190: 45.05 | L190: 43.5 | M190: 11.9305
A191: 181 | B191: HAVELLS | C191: 580.55 | D191: 581.62 | E191: 572.73 | F191: 564.92 | G191: 556.03 | H191: 589.43 | I191: 598.32 | J191: 606.13 | K191: 590.5 | L191: 573.8 | M191: 21.21732
A192: 182 | B192: HCC | C192: 39.85 | D192: 40.12 | E192: 39.33 | F192: 38.82 | G192: 38.03 | H192: 40.63 | I192: 41.42 | J192: 41.93 | K192: 40.9 | L192: 39.6 | M192: 110.35283
A193: 183 | B193: HCL-INSYS | C193: 57.65 | D193: 58.08 | E193: 56.77 | F193: 55.88 | G193: 54.57 | H193: 58.97 | I193: 60.28 | J193: 61.17 | K193: 59.4 | L193: 57.2 | M193: 20.46604
A194: 184 | B194: HCLTECH | C194: 1009.55 | D194: 1006.53 | E194: 993.07 | F194: 976.58 | G194: 963.12 | H194: 1023.02 | I194: 1036.48 | J194: 1052.97 | K194: 1020 | L194: 990.05 | M194: 26.53727
A195: 185 | B195: HDFC | C195: 1908.3 | D195: 1904.77 | E195: 1887.03 | F195: 1865.77 | G195: 1848.03 | H195: 1926.03 | I195: 1943.77 | J195: 1965.03 | K195: 1922.5 | L195: 1883.5 | M195: 46.22281
A196: 186 | B196: HDFCBANK | C196: 1974.95 | D196: 1968.48 | E196: 1956.97 | F196: 1938.98 | G196: 1927.47 | H196: 1986.47 | I196: 1997.98 | J196: 2015.97 | K196: 1980 | L196: 1950.5 | M196: 21.80917
A197: 187 | B197: HDIL | C197: 59.35 | D197: 59.55 | E197: 58.45 | F197: 57.55 | G197: 56.45 | H197: 60.45 | I197: 61.55 | J197: 62.45 | K197: 60.65 | L197: 58.65 | M197: 123.0684
A198: 188 | B198: HEIDELBERG | C198: 162.35 | D198: 163.25 | E198: 160.50 | F198: 158.65 | G198: 155.90 | H198: 165.10 | I198: 167.85 | J198: 169.70 | K198: 166 | L198: 161.4 | M198: 1.19004
A199: 189 | B199: HEROMOTOCO | C199: 3571.2 | D199: 3597.37 | E199: 3534.83 | F199: 3498.47 | G199: 3435.93 | H199: 3633.73 | I199: 3696.27 | J199: 3732.63 | K199: 3659.9 | L199: 3561 | M199: 4.87836
A200: 190 | B200: HEXAWARE | C200: 381.35 | D200: 383.43 | E200: 375.07 | F200: 368.78 | G200: 360.42 | H200: 389.72 | I200: 398.08 | J200: 404.37 | K200: 391.8 | L200: 377.15 | M200: 22.20846
A201: 191 | B201: HFCL | C201: 30.75 | D201: 30.85 | E201: 30.35 | F201: 29.95 | G201: 29.45 | H201: 31.25 | I201: 31.75 | J201: 32.15 | K201: 31.35 | L201: 30.45 | M201: 47.65152
A202: 192 | B202: HIMATSEIDE | C202: 376.85 | D202: 376.28 | E202: 371.07 | F202: 365.28 | G202: 360.07 | H202: 382.07 | I202: 387.28 | J202: 393.07 | K202: 381.5 | L202: 370.5 | M202: 0.6326
A203: 193 | B203: HINDALCO | C203: 258.95 | D203: 260.73 | E203: 254.62 | F203: 250.28 | G203: 244.17 | H203: 265.07 | I203: 271.18 | J203: 275.52 | K203: 266.85 | L203: 256.4 | M203: 152.54979
A204: 194 | B204: HINDCOPPER | C204: 87.25 | D204: 88.25 | E204: 86.05 | F204: 84.85 | G204: 82.65 | H204: 89.45 | I204: 91.65 | J204: 92.85 | K204: 90.45 | L204: 87.05 | M204: 30.17334
A205: 195 | B205: HINDPETRO | C205: 384.15 | D205: 387.48 | E205: 379.12 | F205: 374.08 | G205: 365.72 | H205: 392.52 | I205: 400.88 | J205: 405.92 | K205: 395.85 | L205: 382.45 | M205: 87.40013
A206: 196 | B206: HINDUNILVR | C206: 1372.75 | D206: 1370.10 | E206: 1362.20 | F206: 1351.65 | G206: 1343.75 | H206: 1380.65 | I206: 1388.55 | J206: 1399.10 | K206: 1378 | L206: 1359.55 | M206: 21.25894
... 294 more rows

Sheet Bulk Deals
E6: Back To Main Page
A7: Subject : | B7: BULK DEAL | D7: =Main!B10 -> 2018-01-29
A9: Date | B9: Scrip code | C9: Scrip Name | D9: Client Name | E9: Buy / Sell | F9: Quantity Traded | G9: Trade Price / Wt.Avg.trade price | H9: Exchange
A10: 2018-01-25 | B10: 532975 | C10: AISHWARYA | D10: RAJENDRA NANIWADEKAR | E10: BUY | F10: 110,000 | G10: 8.41 | H10: BSE
A11: 2018-01-25 | B11: 539770 | C11: DARJEELING | D11: SHEPHALI BOTHRA | E11: BUY | F11: 38,050 | G11: 14.23 | H11: BSE
A12: 2018-01-25 | B12: 539770 | C12: DARJEELING | D12: GROVE SUPPLIERS PRIVATE LIMITED | E12: SELL | F12: 35,000 | G12: 14.25 | H12: BSE
A13: 2018-01-25 | B13: 539770 | C13: DARJEELING | D13: KRUTI KEVIN KAPADIA | E13: BUY | F13: 20,500 | G13: 14.65 | H13: BSE
A14: 2018-01-25 | B14: 539770 | C14: DARJEELING | D14: AVNI MERCHANTS PRIVATE LIMITED | E14: SELL | F14: 40,000 | G14: 14.46 | H14: BSE
A15: 2018-01-25 | B15: 539884 | C15: DARSHANORNA | D15: J G SECURITIES PVT LTD | E15: BUY | F15: 50,000 | G15: 199.56 | H15: BSE
A16: 2018-01-25 | B16: 538653 | C16: EML | D16: PRADEEP NARENDRA BHATT | E16: SELL | F16: 86,970 | G16: 67.75 | H16: BSE
A17: 2018-01-25 | B17: 538653 | C17: EML | D17: PRADEEP NARENDRA BHATT | E17: BUY | F17: 86,970 | G17: 67.7 | H17: BSE
A18: 2018-01-25 | B18: 538653 | C18: EML | D18: MAYUR MAHESHKUMAR PANCHAL | E18: SELL | F18: 71,164 | G18: 67.75 | H18: BSE
A19: 2018-01-25 | B19: 538653 | C19: EML | D19: MAYUR MAHESHKUMAR PANCHAL | E19: BUY | F19: 74,598 | G19: 67.7 | H19: BSE
A20: 2018-01-25 | B20: 533149 | C20: ESSARSEC | D20: HARSHA HITESH JAVERI | E20: BUY | F20: 330,000 | G20: 6.44 | H20: BSE
A21: 2018-01-25 | B21: 533149 | C21: ESSARSEC | D21: ESSAR CAPITAL LIMITED | E21: SELL | F21: 680,115 | G21: 6.45 | H21: BSE
A22: 2018-01-25 | B22: 533149 | C22: ESSARSEC | D22: VIPUL RAJENDRABHAI GANDHI | E22: BUY | F22: 75,000 | G22: 6.44 | H22: BSE
A23: 2018-01-25 | B23: 533149 | C23: ESSARSEC | D23: PRATIK RAJENDRA GANDHI | E23: BUY | F23: 75,000 | G23: 6.44 | H23: BSE
A24: 2018-01-25 | B24: 540190 | C24: FRANKLININD | D24: RATHOD MANOJ CHHAGANLAL HUF | E24: SELL | F24: 56,330 | G24: 11.8 | H24: BSE
A25: 2018-01-25 | B25: 539169 | C25: FUNNY | D25: FUTURE INVESTMENTS | E25: SELL | F25: 196,842 | G25: 8.71 | H25: BSE
A26: 2018-01-25 | B26: 539169 | C26: FUNNY | D26: FUTURE INVESTMENTS | E26: BUY | F26: 10,409 | G26: 8.59 | H26: BSE
A27: 2018-01-25 | B27: 539169 | C27: FUNNY | D27: SKYNET SOLUTIONS | E27: SELL | F27: 145,000 | G27: 8.71 | H27: BSE
A28: 2018-01-25 | B28: 539169 | C28: FUNNY | D28: SKYNET SOLUTIONS | E28: BUY | F28: 55,752 | G28: 8.58 | H28: BSE
A29: 2018-01-25 | B29: 539169 | C29: FUNNY | D29: SAMUDHITA SALES PVT LTD | E29: SELL | F29: 200,000 | G29: 8.6 | H29: BSE
A30: 2018-01-25 | B30: 539169 | C30: FUNNY | D30: SANDARSHIKA VANIJYA PVT LTD | E30: SELL | F30: 150,000 | G30: 8.59 | H30: BSE
A31: 2018-01-25 | B31: 539169 | C31: FUNNY | D31: EDEN INFRASMITH PVT LTD | E31: SELL | F31: 450,000 | G31: 8.6 | H31: BSE
A32: 2018-01-25 | B32: 539169 | C32: FUNNY | D32: DJ YATAYAT PRIVATE LIMITED | E32: SELL | F32: 255,000 | G32: 8.62 | H32: BSE
A33: 2018-01-25 | B33: 540614 | C33: GGENG | D33: BIPIN CHINUBHAI SHAH | E33: SELL | F33: 51,000 | G33: 59.98 | H33: BSE
A34: 2018-01-25 | B34: 531968 | C34: IITLPROJ | D34: HANSABEN DIPAKBHAI PUJARA | E34: SELL | F34: 97,671 | G34: 21 | H34: BSE
A35: 2018-01-25 | B35: 531968 | C35: IITLPROJ | D35: RAKSHIT BUILDCON PRIVATE LIMITED | E35: BUY | F35: 100,000 | G35: 21 | H35: BSE
A36: 2018-01-25 | B36: 539216 | C36: JUNCTION | D36: PREM AGGARWAL | E36: SELL | F36: 56,000 | G36: 38.88 | H36: BSE
A37: 2018-01-25 | B37: 539216 | C37: JUNCTION | D37: SHOBHA LODHA | E37: BUY | F37: 24,000 | G37: 39.29 | H37: BSE
A38: 2018-01-25 | B38: 539216 | C38: JUNCTION | D38: LODHA RAJENDRA | E38: BUY | F38: 36,000 | G38: 39.15 | H38: BSE
A39: 2018-01-25 | B39: 539679 | C39: KAPILRAJ | D39: BINDU DINESH SHAH | E39: SELL | F39: 105,000 | G39: 27.35 | H39: BSE
A40: 2018-01-25 | B40: 539679 | C40: KAPILRAJ | D40: DINESH MANILAL SHAH | E40: SELL | F40: 75,000 | G40: 27.35 | H40: BSE
A41: 2018-01-25 | B41: 539679 | C41: KAPILRAJ | D41: ANURADHA JUGALKISHOREJI TAPADIA | E41: SELL | F41: 100,000 | G41: 27.9 | H41: BSE
A42: 2018-01-25 | B42: 539679 | C42: KAPILRAJ | D42: MADHU NEELESH KUMAR LAHOTI | E42: BUY | F42: 30,101 | G42: 27.35 | H42: BSE
A43: 2018-01-25 | B43: 539679 | C43: KAPILRAJ | D43: AKRAM DUSHANI | E43: BUY | F43: 120,000 | G43: 27.81 | H43: BSE
A44: 2018-01-25 | B44: 539679 | C44: KAPILRAJ | D44: JAY KAMLESHBHAI BHAVSAR | E44: BUY | F44: 150,000 | G44: 27.35 | H44: BSE
A45: 2018-01-25 | B45: 539599 | C45: KEL | D45: PAVAKI PROPBUILD PRIVATE LIMITED | E45: SELL | F45: 54,000 | G45: 16.72 | H45: BSE
A46: 2018-01-25 | B46: 535730 | C46: KHOOBSURAT | D46: KATHAKALI VINCOM PVT LTD | E46: SELL | F46: 1,000,000 | G46: 0.44 | H46: BSE
A47: 2018-01-25 | B47: 530771 | C47: KLGCAP | D47: MANISH INFRASTRUCTURE PRIVATE LIMITED | E47: SELL | F47: 101,950 | G47: 16.26 | H47: BSE
A48: 2018-01-25 | B48: 530771 | C48: KLGCAP | D48: KARANJA INFRASTRUCTURE PRIVATE LIMITED | E48: BUY | F48: 101,625 | G48: 16.26 | H48: BSE
A49: 2018-01-25 | B49: 531328 | C49: KRETTOSYS | D49: SHIVMANI VINIMAY PVT LTD | E49: SELL | F49: 82,900 | G49: 32.15 | H49: BSE
A50: 2018-01-25 | B50: 519279 | C50: MADHURIND | D50: ARUN KUMAR GOENKA | E50: BUY | F50: 21,316 | G50: 11.68 | H50: BSE
A51: 2018-01-25 | B51: 531453 | C51: MOHITIND | D51: AJAY DHIRAJLAL NATHWANI | E51: SELL | F51: 54,511 | G51: 42.37 | H51: BSE
A52: 2018-01-25 | B52: 531453 | C52: MOHITIND | D52: AJAY DHIRAJLAL NATHWANI | E52: BUY | F52: 79,511 | G52: 42 | H52: BSE
A53: 2018-01-25 | B53: 531212 | C53: NALINLEA | D53: KARAMJIT KARAMJIT | E53: BUY | F53: 19,929 | G53: 25.45 | H53: BSE
A54: 2018-01-25 | B54: 524654 | C54: NATCAPSUQ | D54: DADAL&BROACHA STOCK BROKING PVT LTD | E54: BUY | F54: 35,000 | G54: 134.65 | H54: BSE
A55: 2018-01-25 | B55: 524654 | C55: NATCAPSUQ | D55: MAHENDRA LABS PVT LTD | E55: SELL | F55: 35,000 | G55: 134.65 | H55: BSE
A56: 2018-01-25 | B56: 524654 | C56: NATCAPSUQ | D56: VIVOG COMMERCIAL LTD | E56: SELL | F56: 50,000 | G56: 134.65 | H56: BSE
A57: 2018-01-25 | B57: 514330 | C57: OBRSESY | D57: SHASHANK SHARMA | E57: SELL | F57: 47,000 | G57: 8 | H57: BSE
A58: 2018-01-25 | B58: 538860 | C58: PANAFIC | D58: JAI AMBE FOILS LIMITED | E58: SELL | F58: 67,321 | G58: 0.62 | H58: BSE
A59: 2018-01-25 | B59: 538860 | C59: PANAFIC | D59: JAI AMBE FOILS LIMITED | E59: BUY | F59: 531,029 | G59: 0.62 | H59: BSE
A60: 2018-01-25 | B60: 531893 | C60: SAWABUSI | D60: MAYUR MAHESHKUMAR PANCHAL | E60: SELL | F60: 40,003 | G60: 3.8 | H60: BSE
A61: 2018-01-25 | B61: 531893 | C61: SAWABUSI | D61: MAYUR MAHESHKUMAR PANCHAL | E61: BUY | F61: 427,529 | G61: 3.79 | H61: BSE
A62: 2018-01-25 | B62: 531893 | C62: SAWABUSI | D62: PRADEEP NARENDRA BHATT | E62: SELL | F62: 203,364 | G62: 3.8 | H62: BSE
A63: 2018-01-25 | B63: 539143 | C63: SBCL | D63: SHWET DHIRAJBHAI KORADIYA | E63: BUY | F63: 82,113 | G63: 66.32 | H63: BSE
A64: 2018-01-25 | B64: 530525 | C64: SHEETAL | D64: NILABEN RAJESHBHAI PATEL | E64: SELL | F64: 29,600 | G64: 5.19 | H64: BSE
A65: 2018-01-25 | B65: 530525 | C65: SHEETAL | D65: ARUN DASHRATHBHAI PRAJAPATI | E65: BUY | F65: 46,700 | G65: 5.19 | H65: BSE
A66: 2018-01-25 | B66: 535141 | C66: SRDL | D66: ANIL SURESHBHAI MISTRY | E66: SELL | F66: 500,000 | G66: 13.3 | H66: BSE
A67: 2018-01-25 | B67: 535141 | C67: SRDL | D67: ANIL SURESHBHAI MISTRY | E67: BUY | F67: 1,422,621 | G67: 12.59 | H67: BSE
A68: 2018-01-25 | B68: 513515 | C68: SRIND | D68: ZOOM MERCANTILE AND FINANCE LIMITED | E68: SELL | F68: 81,470 | G68: 29.45 | H68: BSE
A69: 2018-01-25 | B69: 533569 | C69: SRSLTD | D69: SHPL ENTERPRISES | E69: SELL | F69: 1,177,763 | G69: 1.58 | H69: BSE
A70: 2018-01-25 | B70: 533569 | C70: SRSLTD | D70: SHPL ENTERPRISES | E70: BUY | F70: 1,962,713 | G70: 1.57 | H70: BSE
A71: 2018-01-25 | B71: 533569 | C71: SRSLTD | D71: PARAMI INVESTMENTS PVT. LTD. | E71: SELL | F71: 2,000,000 | G71: 1.58 | H71: BSE
A72: 2018-01-25 | B72: 540108 | C72: TAHL | D72: RAKESH KUMARI | E72: BUY | F72: 25,000 | G72: 15.95 | H72: BSE
A73: 2018-01-25 | B73: 540252 | C73: VOL | D73: J G SECURITIES PVT LTD | E73: BUY | F73: 91,500 | G73: 101.18 | H73: BSE
A74: 2018-01-25 | B74: 540252 | C74: VOL | D74: KIRITKUMAR KARSANDAS PATEL | E74: SELL | F74: 84,000 | G74: 101.29 | H74: BSE
A75: 2018-01-25 | B75: 540252 | C75: VOL | D75: SAGAR RAJESHBHAI JHAVERI | E75: BUY | F75: 99,000 | G75: 101.24 | H75: BSE
A76: 2018-01-25 | B76: 540252 | C76: VOL | D76: NIPA YAGNESHKUMAR GANDHI | E76: SELL | F76: 27,000 | G76: 101.11 | H76: BSE
A77: 2018-01-25 | B77: 539939 | C77: YASHCHEM | D77: LALIT KANTIBHAI PATEL | E77: SELL | F77: 27,000 | G77: 141.83 | H77: BSE
A78: 2018-01-25 | B78: GSS | C78: GSS Infotech Limited | D78: HITESHBHAI MISTRI | E78: BUY | F78: 87,465 | G78: 33.81 | H78: NSE
A79: 2018-01-25 | B79: GTPL | C79: GTPL Hathway Limited | D79: ALPA M GHELANI | E79: BUY | F79: 1069582 | G79: 180.04 | H79: NSE
A80: 2018-01-25 | B80: HITECH | C80: Hi-Tech Pipes Limited | D80: VRAJ ENTERPRISES | E80: BUY | F80: 57500 | G80: 374.56 | H80: NSE
A81: 2018-01-25 | B81: INDBANK | C81: Indbank Merchant Banking | D81: RONAK BANSAL | E81: BUY | F81: 676361 | G81: 36.07 | H81: NSE
A82: 2018-01-25 | B82: LINCOLN | C82: Lincoln Pharma Ltd | D82: KIRJAL SECUITIES PVT. LTD | E82: BUY | F82: 65442 | G82: 249.8 | H82: NSE
A83: 2018-01-25 | B83: MOHITIND | C83: Mohit Industries Ltd | D83: AJAY NATHWANI | E83: BUY | F83: 117883 | G83: 43.01 | H83: NSE
A84: 2018-01-25 | B84: OMAXAUTO | C84: Omax Autos Limited | D84: N.K. SECURITIES | E84: BUY | F84: 116753 | G84: 196.66 | H84: NSE
A85: 2018-01-25 | B85: PCJEWELLER | C85: PC Jeweller Ltd | D85: VAKRANGEE LIMITED | E85: BUY | F85: 2000000 | G85: 561.71 | H85: NSE
A86: 2018-01-25 | B86: GSS | C86: GSS Infotech Limited | D86: HITESHBHAI MISTRI | E86: SELL | F86: 87465 | G86: 33.95 | H86: NSE
A87: 2018-01-25 | B87: GTPL | C87: GTPL Hathway Limited | D87: ALPA M GHELANI | E87: SELL | F87: 1066307 | G87: 174.34 | H87: NSE
A88: 2018-01-25 | B88: HITECH | C88: Hi-Tech Pipes Limited | D88: VRAJ ENTERPRISES | E88: SELL | F88: 53500 | G88: 373.17 | H88: NSE
A89: 2018-01-25 | B89: IDFC | C89: IDFC Limited | D89: PRUDENTIAL ICICI MUTUAL FUND AC ICICI PRUDENTIAL BALANCED FUND | E89: SELL | F89: 8619600 | G89: 56.6 | H89: NSE
A90: 2018-01-25 | B90: INDBANK | C90: Indbank Merchant Banking | D90: RONAK BANSAL | E90: SELL | F90: 676361 | G90: 36.61 | H90: NSE
A91: 2018-01-25 | B91: LINCOLN | C91: Lincoln Pharma Ltd | D91: KIRJAL SECUITIES PVT. LTD | E91: SELL | F91: 106097 | G91: 256.13 | H91: NSE
A92: 2018-01-25 | B92: MOHITIND | C92: Mohit Industries Ltd | D92: AJAY NATHWANI | E92: SELL | F92: 125383 | G92: 42.85 | H92: NSE
A93: 2018-01-25 | B93: OMAXAUTO | C93: Omax Autos Limited | D93: N.K. SECURITIES | E93: SELL | F93: 116753 | G93: 196.81 | H93: NSE

Sheet Call Tracker (Equity & F&O)
N5: Back To Main Page
A6: Retail Research Technical Calls & Fundamental Performance Report for the month of January -2018
N7: =Main!B10 -> 2018-01-29
B8: Positional Call
A9: Sr.no | B9: Date | D9: Company | E9: Rec | F9: Rec Price | G9: Stop Loss*** | H9: Call Closed At | I9: Target | J9: Remark | L9: Profit / Loss per Share | M9: Gain / Loss % | N9: Status | O9: Closed Date | P9: NSE Closed Price
A10: 1 | B10: 2017-12-07 | D10: ITC | E10: Buy$ | F10: 260 | G10: 232 | H10: 276.75 | I10: 300 | J10: Profit of Rs.16.75/- | L10: =H10-F10 -> 16.75 | M10: =L10/F10 -> 6.44% | N10: Successful | O10: 2018-01-24 | S10: H
A11: 2 | B11: 2017-10-31 | D11: SBIN | E11: Sell | F11: 306.5 | G11: 336 | H11: 296 | I11: 240 | J11: Profit of Rs.10.50/- | L11: =F11-H11 -> 10.50 | M11: =L11/F11 -> 3.43% | N11: Successful | O11: 2018-01-16 | S11: P
A12: 3 | B12: 2017-11-03 | D12: AXISBANK | E12: Sell | F12: 545 | G12: 595 | H12: 607.5 | I12: 445 | J12: Loss of Rs.62.5/- | L12: =F12-H12 -> -62.50 | M12: =L12/F12 -> -11.47% | N12: Unsuccessful | O12: 2018-01-22 | S12: P
A13: 4 | B13: 2017-11-06 | D13: KOTAKBANK | E13: Buy | F13: 1010 | G13: 968 | H13: =(1024+1041)/2 -> 1032.5 | I13: 1080-1100 | J13: Profit of Rs.22.5/- | L13: =H13-F13 -> 22.50 | M13: =L13/F13 -> 2.23% | N13: Successful | O13: 2018-01-12 | S13: H
A14: 5 | B14: 2017-11-15 | D14: IDFCBANK | E14: Buy | F14: 54.7 | G14: 50 | H14: 57.1 | I14: 62.7 | J14: Profit of Rs.2.40/- | L14: 2.40 | M14: 4.39% | N14: Successful | O14: 2017-01-05 | S14: P
A15: 6 | B15: 2017-12-07 | D15: BANKBARODA | E15: Buy | F15: 167.5 | G15: 159 | H15: =(173+158.5)/2 -> 165.75 | I15: 185-190 | J15: Loss of Rs.1.75/- | L15: =H15-F15 -> -1.75 | M15: =L15/F15 -> -1.04% | N15: Unsuccessful | O15: 2018-01-03 | S15: H
A16: 7 | B16: 2017-12-14 | D16: MGL | E16: Buy | F16: 1110 | G16: 1060 | H16: 1056 | I16: 1200-1220 | J16: Loss of Rs.54/- | L16: =H16-F16 -> -54.00 | M16: =L16/F16 -> -4.86% | N16: Unsuccessful | O16: 2018-01-18 | S16: H
A17: 8 | B17: 2017-12-19 | D17: DCBBANK | E17: Buy | F17: 195.5 | G17: 188 | H17: 202 | I17: 210 | J17: Profit of Rs.6.50/- | L17: =H17-F17 -> 6.50 | M17: =L17/F17 -> 3.32% | N17: Successful | O17: 2017-01-01 | S17: H
A18: 9 | B18: 2017-12-21 | D18: BAJAJ-AUTO | E18: Sell | F18: 3301 | G18: 3401 | H18: 3205 | I18: 3101 | J18: Profit of Rs.96.00/- | L18: =F18-H18 -> 96.00 | M18: =L18/F18 -> 2.91% | N18: Successful | O18: 2018-01-10 | S18: P
A19: 10 | B19: 2017-12-21 | D19: MARUTI | E19: Sell | F19: 9680 | G19: 9880 | H19: =(9530+9477)/2 -> 9503.5 | I19: 9220 | J19: Profit of Rs.176.50/- | L19: =F19-H19 -> 176.50 | M19: 1.82% | N19: Successful | O19: 2018-01-03 | S19: P
A20: 11 | B20: 2017-12-21 | D20: M&M | E20: Sell | F20: 750 | G20: 825 | I20: 600 | J20: Open | P20: =VLOOKUP(D20,Sheet2!$A$1:M2036,6,0) -> 757.8 | S20: P
A21: 12 | B21: 2017-12-21 | D21: HEROMOTOCO | E21: Sell | F21: 3800 | G21: 3900 | H21: 3657.5 | I21: 3600 | J21: Profit of Rs.142.50/- | L21: =F21-H21 -> 142.50 | M21: =L21/F21 -> 3.75% | N21: Successful | O21: 2018-01-03 | S21: P
A22: 13 | B22: 2017-12-21 | D22: LT | E22: Sell | F22: 1260 | G22: 1310 | H22: 1325 | I22: 1180-1150 | J22: Loss of Rs.65/- | L22: =F22-H22 -> -65.00 | M22: =L22/F22 -> -5.16% | N22: Unsuccessful | O22: 2018-01-08 | S22: H
A23: 14 | B23: 2017-12-26 | D23: HINDALCO | E23: Sell | F23: 267.5 | G23: 280 | H23: =(259.75+256.5)/2 -> 258.125 | I23: 240 | J23: Profit of Rs.9.38/- | L23: =F23-H23 -> 9.38 | M23: =L23/F23 -> 3.50% | N23: Successful | O23: 2018-01-17 | S23: R
A24: 15 | B24: 2017-12-27 | D24: AUROPHARMA | E24: Buy | F24: 690.5 | G24: 663 | H24: 660 | I24: 750 | J24: Loss of Rs.30.5/- | L24: =H24-F24 -> -30.50 | M24: =L24/F24 -> -4.42% | N24: Unsuccessful | O24: 2018-01-15 | S24: H
A25: 16 | B25: 2017-12-27 | D25: ACC | E25: Sell | F25: 1744 | G25: 1794 | H25: 1801 | I25: 1644 | J25: Loss of Rs.57/- | L25: =F25-H25 -> -57.00 | M25: =L25/F25 -> -3.27% | N25: Unsuccessful | O25: 2018-01-04 | S25: P
A26: 17 | B26: 2017-12-27 | D26: AMBUJACEM | E26: Sell | F26: 273 | G26: 300 | H26: 260.5 | I26: 225 | J26: Profit of Rs.12.5/- | L26: =F26-H26 -> 12.50 | M26: =L26/F26 -> 4.58% | N26: Successful | O26: 2018-01-24 | S26: P
A27: 18 | B27: 2017-12-27 | D27: ULTRACEMCO | E27: Sell | F27: 4307 | G27: 4407 | H27: 4470 | I27: 4107 | J27: Loss of Rs.163/- | L27: =F27-H27 -> -163.00 | M27: =L27/F27 -> -3.78% | N27: Unsuccessful | O27: 2018-01-09 | S27: P
A28: 19 | B28: 2017-12-27 | D28: TATASTEEL | E28: Sell | F28: 725 | G28: 775 | H28: 784.5 | I28: 625 | J28: Loss of Rs.59.5/- | L28: =F28-H28 -> -59.50 | M28: =L28/F28 -> -8.21% | N28: Unsuccessful | O28: 2018-01-15 | S28: P
A29: 20 | B29: 2017-12-27 | D29: TECHM | E29: Buy | F29: 501.5 | G29: 478 | H29: =(519.8+524.5)/2 -> 522.15 | I29: 545 | J29: Profit of Rs.20.65/- | L29: =H29-F29 -> 20.65 | M29: =L29/F29 -> 4.12% | N29: Successful | O29: 2017-01-03 | S29: A
A30: 21 | B30: 2017-12-28 | D30: JSWSTEEL | E30: Sell | F30: 268 | G30: 277 | H30: 279 | I30: 250 | J30: Loss of Rs.11/- | L30: =F30-H30 -> -11.00 | M30: =L30/F30 -> -4.10% | N30: Unsuccessful | O30: 2018-01-04 | S30: H
A31: 22 | B31: 2017-12-29 | D31: EQUITAS | E31: Buy | F31: 148.5 | G31: 140 | H31: =(155.5+158)/2 -> 156.75 | I31: 170 | J31: Profit of Rs.8.25/- | L31: =H31-F31 -> 8.25 | M31: =L31/F31 -> 5.56% | N31: Successful | O31: 2017-01-05 | S31: A
A32: 23 | B32: 2017-12-29 | D32: DLF | E32: Sell | F32: 259 | G32: 272 | H32: =(252+250.5)/2 -> 251.25 | I32: 240-235 | J32: Profit of Rs.7.75/- | L32: =F32-H32 -> 7.75 | M32: =L32/F32 -> 2.99% | N32: Successful | O32: 2018-01-17 | S32: H
A33: 24 | B33: 2018-01-02 | D33: RECLTD | E33: Buy | F33: 158 | G33: 153 | H33: 163.5 | I33: 170-175 | J33: Profit of Rs.5.5/- | L33: =H33-F33 -> 5.50 | M33: =L33/F33 -> 3.48% | N33: Successful | O33: 2018-01-12 | S33: H
A34: 25 | B34: 2018-01-03 | D34: PIDILITIND | E34: Buy | F34: 892.5 | G34: 860 | H34: 918.25 | I34: 950 | J34: Profit of Rs.25.75/- | L34: =H34-F34 -> 25.75 | M34: =L34/F34 -> 2.89% | N34: Successful | O34: 2018-01-09 | S34: R
A35: 26 | B35: 2018-01-03 | D35: LUPIN | E35: Buy | F35: 882 | G35: 855 | H35: 910 | I35: 935 | J35: Profit of Rs.28/- | L35: 28.00 | M35: 3.17% | N35: Successful | O35: 2018-01-08 | S35: R
A36: 27 | B36: 2018-01-04 | D36: L&TFH | E36: Buy | F36: 171 | G36: 162 | H36: 177.25 | I36: 188-192 | J36: Profit of Rs.6.25/- | L36: =H36-F36 -> 6.25 | M36: =L36/F36 -> 3.65% | N36: Successful | O36: 2018-01-08 | S36: H
A37: 28 | B37: 2018-01-04 | D37: SYNDIBANK | E37: Buy | F37: 80.2 | G37: 76 | H37: 76 | I37: 88 | J37: Loss of Rs.4.20/- | L37: -4.20 | M37: -5.24% | N37: Unsuccessful | O37: 2018-01-16 | S37: R
A38: 29 | B38: 2018-01-05 | D38: INDIANB | E38: Buy | F38: 380.5 | G38: 367 | H38: 394.5 | I38: 410 | J38: Profit of Rs.14/- | L38: =H38-F38 -> 14.00 | M38: =L38/F38 -> 3.68% | N38: Successful | O38: 2018-01-18 | S38: H
A39: 30 | B39: 2018-01-05 | D39: VEDL | E39: Sell | F39: 340 | G39: 355 | H39: =(329+324.5)/2 -> 326.75 | I39: 310 | J39: Profit of Rs.13.25/- | L39: =F39-H39 -> 13.25 | M39: =L39/F39 -> 3.90% | N39: Successful | O39: 2018-01-17 | S39: R
A40: 31 | B40: 2018-01-05 | D40: UJJIVAN | E40: Buy | F40: 405.5 | G40: 385 | H40: 420 | I40: 445 | J40: Profit of Rs.14.50/- | L40: =H40-F40 -> 14.50 | M40: =L40/F40 -> 3.58% | N40: Successful | O40: 2018-01-12 | S40: A
A41: 32 | B41: 2018-01-08 | D41: IDEA | E41: Buy | F41: 108 | G41: 101 | H41: =(111.5+95)/2 -> 103.25 | I41: 118 | J41: Loss of Rs.4.75/- | L41: -4.75 | M41: -4.40% | N41: Unsuccessful | O41: 2018-01-24 | S41: R
A42: 33 | B42: 2018-01-09 | D42: TCS | E42: Buy | F42: 2696 | G42: 2560 | H42: 2804 | I42: 2965 | J42: Profit of Rs.108/- | L42: =H42-F42 -> 108.00 | M42: =L42/F42 -> 4.01% | N42: Successful | O42: 2018-01-11 | S42: p
A43: 34 | B43: 2018-01-09 | D43: INFY | E43: Buy | F43: 1038 | G43: 985 | H43: 1074 | I43: 1140 | J43: Profit of Rs.36/- | L43: =H43-F43 -> 36.00 | M43: =L43/F43 -> 3.47% | N43: Successful | O43: 2018-01-11 | S43: p
A44: 35 | B44: 2018-01-09 | D44: WIPRO | E44: Buy | F44: 313 | G44: 297 | H44: 326.5 | I44: 345 | J44: Profit of Rs.13.50/- | L44: =H44-F44 -> 13.50 | M44: =L44/F44 -> 4.31% | N44: Successful | O44: 2018-01-11 | S44: p
A45: 36 | B45: 2018-01-09 | D45: HCLTECH | E45: Buy | F45: 892.5 | G45: 847 | H45: 923 | I45: 980 | J45: Profit of Rs.30.50/- | L45: 30.50 | M45: 3.42% | N45: Successful | O45: 2018-01-11 | S45: p
A46: 37 | B46: 2018-01-09 | D46: TECHM | E46: Buy | F46: 534 | G46: 505 | H46: 550 | I46: 590 | J46: Profit of Rs.16.00/- | L46: =H46-F46 -> 16.00 | M46: =L46/F46 -> 3.00% | N46: Successful | O46: 2018-01-11 | S46: p
A47: 38 | B47: 2018-01-10 | D47: BHEL | E47: Buy | F47: 102 | G47: 95 | H47: 105.15 | I47: 112-115 | J47: Profit of Rs.3.15/- | L47: 3.15 | M47: 3.09% | N47: Successful | O47: 2018-01-24 | S47: R
A48: 39 | B48: 2018-01-10 | D48: PEL | E48: Buy | F48: 2855 | G48: 2770 | H48: 2770 | I48: 3050 | J48: Loss of Rs.85/- | L48: =H48-F48 -> -85.00 | M48: =L48/F48 -> -2.98% | N48: Unsuccessful | O48: 2018-01-18 | S48: R
A49: 40 | B49: 2018-01-11 | D49: GLENMARK | E49: Buy | F49: 621.5 | G49: 590 | H49: 641.5 | I49: 685 | J49: Profit of Rs.20/- | L49: 20.00 | M49: 3.22% | N49: Successful | O49: 2018-01-24 | S49: R
A50: 41 | B50: 2018-01-11 | D50: SUNPHARMA | E50: Buy | F50: 592-595 | G50: 560 | I50: 650 | J50: Open | P50: =VLOOKUP(D50,Sheet2!$A$1:M2068,6,0) -> 579.85 | S50: R
A51: 42 | B51: 2018-01-11 | D51: CADILAHC | E51: Buy | F51: 447.5 | G51: 423 | H51: 421 | I51: 490 | J51: Loss of Rs.26.50/- | L51: =H51-F51 -> -26.50 | M51: =L51/F51 -> -5.92% | N51: Unsuccessful | O51: 2018-01-25 | S51: R
A52: 43 | B52: 2018-01-12 | D52: GRANULES | E52: Buy$ | F52: =(145.5+133.5)/2 -> 139.5 | G52: 131 | I52: 160-162 | J52: Open | P52: =VLOOKUP(D52,Sheet2!$A$1:M2070,6,0) -> 136.85 | S52: H
A53: 44 | B53: 2018-01-16 | D53: PIDILITIND | E53: Buy | F53: 905-908 | G53: 880 | I53: 965 | J53: Open | P53: =VLOOKUP(D53,Sheet2!$A$1:M2071,6,0) -> 877.25 | S53: R
A54: 45 | B54: 2018-01-16 | D54: PCJEWELLER | E54: Sell | F54: 576.5 | G54: 602 | H54: 559.5 | I54: 525 | J54: Profit of Rs.17/- | L54: =F54-H54 -> 17.00 | M54: =L54/F54 -> 2.95% | N54: Successful | O54: 2018-01-24 | S54: R
A55: 46 | B55: 2018-01-17 | D55: SUNTV | E55: Sell | F55: 1052.5 | G55: 1100 | H55: 1021 | I55: 950 | J55: Profit of Rs.31.5/- | L55: =F55-H55 -> 31.50 | M55: =L55/F55 -> 2.99% | N55: Successful | O55: 2018-01-19 | S55: R
A56: 47 | B56: 2018-01-17 | D56: RAYMOND | E56: Sell | F56: 1085 | G56: 1140 | H56: 1051 | I56: 1000-980 | J56: Profit of Rs.34/- | L56: =F56-H56 -> 34.00 | M56: =L56/F56 -> 3.13% | N56: Successful | O56: 2018-01-18 | S56: H
A57: 48 | B57: 2018-01-17 | D57: M&MFIN | E57: Sell | F57: 481 | G57: 504 | H57: 467 | I57: 445-435 | J57: Profit of Rs.12/- | L57: =F57-H57 -> 14.00 | M57: =L57/F57 -> 2.91% | N57: Successful | O57: 2018-01-19 | S57: H
A58: 49 | B58: 2018-01-18 | D58: AUROPHARMA | E58: Buy | F58: 658-663 | G58: 634 | I58: 720-730 | J58: Open | P58: =VLOOKUP(D58,Sheet2!$A$1:M2076,6,0) -> 639.7 | S58: H
A59: 50 | B59: 2018-01-19 | D59: ENGINERSIN | E59: Buy | F59: 179-181 | G59: 170.5 | I59: 195-200 | J59: Open | P59: =VLOOKUP(D59,Sheet2!$A$1:M2077,6,0) -> 173.7 | S59: H
A60: 51 | B60: 2018-01-22 | D60: L&TFH | E60: Buy | F60: 171.5 | G60: 163 | H60: 177.75 | I60: 185-190 | J60: Profit of Rs.6.25/- | L60: =H60-F60 -> 6.25 | M60: =L60/F60 -> 3.64% | N60: Successful | O60: 2018-01-22 | S60: H
A61: 52 | B61: 2018-01-22 | D61: M&MFIN | E61: Sell | F61: 482 | G61: 504 | H61: 504 | I61: 445-435 | J61: Loss of Rs.22/- | L61: =F61-H61 -> -22.00 | M61: =L61/F61 -> -4.56% | N61: Unsuccessful | O61: 2018-01-23 | S61: H
A62: 53 | B62: 2018-01-22 | D62: LT | E62: Sell | F62: 1378-1385 | G62: 1444 | I62: 1250 | J62: Open | P62: =VLOOKUP(D62,Sheet2!$A$1:M2080,6,0) -> 1416.5 | S62: R
A63: 54 | B63: 2018-01-23 | D63: ADANIPORTS | E63: Sell | F63: 434-436 | G63: 455 | I63: 390 | J63: Open | P63: =VLOOKUP(D63,Sheet2!$A$1:M2081,6,0) -> 436.5 | S63: R
A65: CLBS = Closing Basis *** | F65: Reinitiated $
A66: Dividend adjusted <> | F66: Revised stoploss #
A68: Master Trade High Risk
A69: Sr.no | B69: Date | D69: Company | E69: Rec | F69: Rec Price | G69: Stop Loss | H69: Call Closed At | I69: Target | J69: Remark | L69: Profit / Loss per share | M69: Gain / Loss per Lot | N69: Lot | O69: Status | P69: Closed Date
A70: 1 | B70: 2017-12-28 | D70: NIFTY JAN FUT | E70: Sell | F70: 10533.5 | G70: 10635 | H70: 10438 | I70: 10335 | J70: Profit of Rs.95.50/- | L70: =F70-H70 -> 95.50 | M70: =L70*N70 -> 7162.5 | N70: 75 | O70: Successful | P70: 2018-01-02 | S70: P
A71: 2 | B71: 2017-12-29 | D71: GAIL JAN Future | E71: Sell | F71: 502 | G71: 515 | H71: 499.2 | I71: 470 | J71: Profit of Rs.2.80/- | L71: =F71-H71 -> 2.80 | M71: 5600 | N71: 2000 | O71: Successful | P71: 2018-01-02 | S71: A
D72: GAIL JAN 500 PE | E72: Sell | F72: 15 | H72: 15 | L72: =H72-F72 -> 0.00 | M72: 0
A73: 3 | B73: 2018-01-04 | D73: NIFTY JAN FUT | E73: Sell | F73: 10512.5 | G73: 10615 | H73: 10615 | I73: 10310 | J73: Loss of Rs.102.50/- | L73: =F73-H73 -> -102.50 | M73: =L73*N73 -> -7687.5 | N73: 75 | O73: Unsuccessful | P73: 2018-01-08 | S73: P
A74: 4 | B74: 2018-01-08 | D74: MCDOWELL-N JAN FUT | E74: Sell | F74: 3933 | G74: 3973 | H74: 3887.5 | I74: 3850 | J74: Profit of Rs.45.50/- | L74: =F74-H74 -> 45.50 | M74: =L74*N74 -> 11375 | N74: 250 | O74: Successful | P74: 2018-01-09 | S74: R
A75: 5 | B75: 2018-01-09 | D75: NIFTY JAN FUT | E75: Sell | F75: 10632.5 | G75: 10730 | H75: 10730 | I75: 10430 | J75: Loss of Rs.97.50/- | L75: =F75-H75 -> -97.50 | M75: =L75*N75 -> -7312.5 | N75: 75 | O75: Unsuccessful | P75: 2018-01-15 | S75: R
A76: 6 | B76: 2018-01-17 | D76: NIFTY JAN FUT | E76: Sell | F76: 10724.5 | G76: 10875 | H76: 10875 | I76: 10422 | J76: Loss of Rs.150.50/- | L76: =F76-H76 -> -150.50 | M76: =L76*N76 -> -11287.5 | N76: 75 | O76: Unsuccessful | P76: 2018-01-19 | S76: P
A77: 7 | B77: 2018-01-24 | D77: NIFTY FEB FUT | E77: Sell | F77: 11080-11090 | G77: 11210 | I77: 10800 | J77: Open | S77: H
A84: Master Trade Medium Risk
A85: Sr.no | B85: Date | D85: Company | E85: Rec | F85: Rec Price | G85: Stop Loss | H85: Call Closed At | I85: Target | J85: Remark | L85: Profit/Loss per lot | M85: Gain / Loss per Lot | N85: Lot | O85: Status | P85: Closed Date
A86: 1 | B86: 2017-12-29 | D86: NIFTY JAN 10200 PE | E86: Buy | F86: 38.5 | H86: 53 | I86: 100 | J86: Profit of Rs.14.5/- | L86: =H86-F86 -> 14.5 | M86: =L86*N86 -> 1087.5 | N86: 75 | O86: Successful | P86: 2018-01-02 | S86: P
A87: 2 | B87: 2018-01-04 | D87: BANKNIFTY 4-JAN 25400 CE | E87: Buy | F87: 23 | H87: 45.5 | I87: 60 | J87: Profit of Rs.22.5/- | L87: =H87-F87 -> 22.5 | M87: 900 | N87: 40 | O87: Successful | P87: 2018-01-04 | S87: A
A88: 3 | B88: 2018-01-04 | D88: NIFTY JAN 10200 PE | E88: Buy | F88: 32.5 | H88: 0 | I88: 100 | J88: Loss of Rs.32.50/- | L88: =F88-H88 -> 32.50 | M88: 1300 | N88: 40 | O88: Unsuccessful | P88: 2018-01-25 | S88: P
A89: 4 | B89: 2018-01-09 | D89: BANKNIFTY 11-JAN 25600 PE | E89: Buy | F89: 70 | H89: 91.5 | I89: 150 | J89: Profit of Rs.21.5/- | L89: =H89-F89 -> 21.5 | M89: 860 | N89: 40 | O89: Successful | P89: 2018-01-10 | S89: A
A90: 5 | B90: 2018-01-11 | D90: BANKNIFTY 11-JAN 25600 CE | E90: Buy | F90: 23 | H90: 55 | I90: 60 | J90: Profit of Rs.32/- | L90: =H90-F90 -> 32 | M90: 1280 | N90: 40 | O90: Successful | P90: 2018-01-11 | S90: A
A91: 6 | B91: 2018-01-12 | D91: NIFTY JAN 10600 PE | E91: Buy | F91: 56 | H91: 80 | I91: 120 | J91: Profit of Rs.24/- | L91: =H91-F91 -> 24 | M91: 1800 | N91: 75 | O91: Successful | P91: 2018-01-12 | S91: A
A92: 7 | B92: 2018-01-12 | D92: NIFTY JAN 10600 PE | E92: Buy | F92: 56 | I92: 129 | J92: Loss of Rs.56/- | L92: =F92-H92 -> 56.00 | M92: 2240 | N92: 40 | O92: Unsuccessful | P92: 2018-01-25 | S92: A
A93: 8 | B93: 2018-01-18 | D93: BANKNIFTY 18-JAN 26700 PE | E93: Buy | F93: 23 | H93: 55 | I93: 60 | J93: Profit of Rs.32/- | L93: =H93-F93 -> 32 | M93: 1280 | N93: 40 | O93: Successful | P93: 2018-01-18 | S93: A
A94: 9 | B94: 2018-01-18 | D94: BANKNIFTY 18-JAN 26700 PE | E94: Buy | F94: 18 | H94: 28 | I94: 50 | J94: Profit of Rs.10/- | L94: =H94-F94 -> 10 | M94: 400 | N94: 40 | O94: Successful | P94: 2018-01-18 | S94: A
A95: 10 | B95: 2018-01-19 | D95: LT JAN 1340 PE | E95: Buy | F95: 8.5 | H95: 0 | I95: 20-22 | J95: Loss of Rs.8.50/- | L95: =F95-H95 -> 8.50 | M95: 6375 | N95: 750 | O95: Unsuccessful | P95: 2018-01-25 | S95: H
A96: 11 | B96: 2018-01-23 | D96: NIFTY JAN 11000 PE | E96: Buy | F96: 50 | H96: 0 | I96: 120 | J96: Loss of Rs.50/- | L96: =F96-H96 -> 50.00 | M96: 2000 | N96: 40 | O96: Unsuccessful | P96: 2018-01-25 | S96: H
A97: 12 | B97: 2018-01-25 | D97: BANKNIFTY JAN 27200 PE | E97: Buy | F97: 27.5 | H97: 0 | I97: 60-70 | J97: Loss of Rs.27.50/- | L97: =F97-H97 -> 27.50 | M97: 1100 | N97: 40 | O97: Unsuccessful | P97: 2018-01-25 | S97: A
B102: Smart Delivery Trade
A103: Sr.no | B103: Date | D103: Company | E103: Rec | F103: Rec Price | G103: Stop Loss*** | H103: Call Closed At | I103: Target | J103: Remark | L103: Profit / Loss per Share | M103: Gain / Loss % | N103: Status | O103: Closed Date | P103: NSE Closed Price
A104: 1 | B104: 2017-12-26 | D104: ARVIND | E104: Buy | F104: 448 | G104: 435 | H104: 462 | I104: 470 | J104: Profit of Rs.14/- | L104: =H104-F104 -> 14.00 | M104: =L104/F104 -> 3.13% | N104: Successful | O104: 2018-01-09 | S104: R
A105: 2 | B105: 2017-12-26 | D105: ASIANPAINT | E105: Buy | F105: 1148.5 | G105: 1120 | H105: 1183.5 | I105: 1200-1220 | J105: Profit of Rs.35/- | L105: =H105-F105 -> 35.00 | M105: =L105/F105 -> 3.05% | N105: Successful | O105: 2017-01-05 | S105: R
A106: 3 | B106: 2017-12-26 | D106: EXIDEIND | E106: Buy | F106: 219.5 | G106: 213.5 | H106: 226.5 | I106: 230-235 | J106: Profit of Rs.7/- | L106: =H106-F106 -> 7.00 | M106: =L106/F106 -> 3.19% | N106: Successful | O106: 2017-01-05 | S106: H
A107: 4 | B107: 2017-12-27 | D107: DHFL | E107: Buy | F107: 601.5 | G107: 585 | H107: 619.5 | I107: 640 | J107: Profit of Rs.18/- | L107: 18.00 | M107: 2.99% | N107: Successful | O107: 2018-01-08 | S107: H
A108: 5 | B108: 2017-12-28 | D108: TITAN | E108: Buy | F108: 843 | G108: 818 | H108: 863 | I108: 880-890 | J108: Profit of Rs.20/- | L108: =H108-F108 -> 20.00 | M108: =L108/F108 -> 2.37% | N108: Successful | O108: 2017-01-03 | S108: H
A109: 6 | B109: 2018-01-01 | D109: CANFINHOME | E109: Buy | F109: 480 | G109: 465 | H109: 492 | I109: 500-505 | J109: Profit of Rs.12/- | L109: =H109-F109 -> 12.00 | M109: =L109/F109 -> 2.50% | N109: Successful | O109: 2018-01-11 | S109: R
A110: 7 | B110: 2018-01-01 | D110: BRITANNIA | E110: Buy | F110: 4740-4760 | G110: 4610 | I110: 4980-5000 | J110: Open | P110: =VLOOKUP(D110,Sheet2!$A$1:M2077,6,0) -> 4625.6 | S110: R
A111: 8 | B111: 2018-01-02 | D111: COLPAL | E111: Buy | F111: 1091 | G111: 1064 | H111: 1120 | I111: 1140 | J111: Profit of Rs.29/- | L111: =H111-F111 -> 29.00 | M111: =L111/F111 -> 2.66% | N111: Successful | O111: 2018-01-08 | S111: R
A112: 9 | B112: 2018-01-02 | D112: DALMIABHA | E112: Buy | F112: 3100 | G112: 3000 | H112: 3202.5 | I112: 3250 | J112: Profit of Rs.102.50/- | L112: 102.50 | M112: 3.31% | N112: Successful | O112: 2018-01-09 | S112: R
A113: 10 | B113: 2018-01-03 | D113: BAJAJFINSV | E113: Buy | F113: 5165 | G113: 5029 | H113: 5272.5 | I113: 5400-5420 | J113: Part Profit of Rs.107.50/- | L113: 107.50 | M113: 2.08% | N113: Successful | O113: 2018-01-10 | S113: R
A114: 11 | B114: 2018-01-03 | D114: INDHOTEL | E114: Buy | F114: 121 | G114: 116 | H114: 127.35 | I114: 130-132 | J114: Profit of Rs.6.35/- | L114: =H114-F114 -> 6.35 | M114: =L114/F114 -> 5.25% | N114: Successful | O114: 2017-01-04 | S114: H
A115: 12 | B115: 2018-01-04 | D115: INDUSINDBK | E115: Buy | F115: 1644 | G115: 1600 | H115: 1681 | I115: 1720 | J115: Profit of Rs.37/- | L115: =H115-F115 -> 37.00 | M115: =L115/F115 -> 2.25% | N115: Successful | O115: 2017-01-05 | S115: R
A116: 13 | B116: 2018-01-04 | D116: VGUARD | E116: Buy | F116: 236 | G116: 230 | H116: 241.5 | I116: 247 | J116: Profit of Rs.5.50/- | L116: =H116-F116 -> 5.50 | M116: =L116/F116 -> 2.33% | N116: Successful | O116: 2018-01-09 | S116: R
A117: 14 | B117: 2018-01-10 | D117: INFRATEL | E117: Buy | F117: 370 | G117: 360 | H117: 377.75 | I117: 390 | J117: Profit of Rs.7.75/- | L117: =H117-F117 -> 7.75 | M117: =L117/F117 -> 2.09% | N117: Successful | O117: 2018-01-15 | S117: R
A118: 15 | B118: 2018-01-10 | D118: IBVENTURES | E118: Buy | F118: 275.5 | G118: 265 | H118: 284.5 | I118: 295 | J118: Profit of Rs.9/- | L118: =H118-F118 -> 9.00 | M118: =L118/F118 -> 3.27% | N118: Successful | O118: 2018-01-11 | S118: R
A119: 16 | B119: 2018-01-11 | D119: TORNTPHARM | E119: Buy | F119: 1399 | G119: 1355 | H119: 1447 | I119: 1500 | J119: Profit of Rs.48/- | L119: =H119-F119 -> 48.00 | M119: =L119/F119 -> 3.43% | N119: Successful | O119: 2018-01-18 | S119: R
A120: 17 | B120: 2018-01-15 | D120: CONCOR | E120: Buy | F120: 1425 | G120: 1378 | H120: 1470 | I120: 1490-1510 | J120: Profit of Rs.45/- | L120: =H120-F120 -> 45.00 | M120: =L120/F120 -> 3.16% | N120: Successful | O120: 2018-01-19 | S120: H
A121: 18 | B121: 2018-01-17 | D121: TVSMOTOR | E121: Buy | F121: 720-724 | G121: 695 | I121: 760-780 | J121: Open | P121: =VLOOKUP(D121,Sheet2!$A$1:M2088,6,0) -> 704.6 | S121: H
A122: 19 | B122: 2018-01-17 | D122: BATAINDIA | E122: Buy | F122: 725-727 | G122: 704 | I122: 770 | J122: Open | P122: =VLOOKUP(D122,Sheet2!$A$1:M2089,6,0) -> 706.3 | S122: R
A123: 20 | B123: 2018-01-19 | D123: GPPL | E123: Buy | F123: 150 | G123: 143 | H123: 153.5 | I123: 160 | J123: Profit of Rs.3.5/- | L123: =H123-F123 -> 3.50 | M123: =L123/F123 -> 2.33% | N123: Successful | O123: 2018-01-23 | S123: R
A124: 21 | B124: 2018-01-19 | D124: IGL | E124: Buy | F124: 306 | G124: 297 | H124: 316.5 | I124: 325 | J124: Profit of Rs.10.50/- | L124: 10.50 | M124: 3.43% | N124: Successful | O124: 2018-01-23 | S124: H
A125: 22 | B125: 2018-01-22 | D125: LTTS | E125: Buy | F125: 993 | G125: 962 | H125: 1031 | I125: 1050-1060 | J125: Profit of Rs.38/- | L125: =H125-F125 -> 38.00 | M125: =L125/F125 -> 3.83% | N125: Successful | O125: 2018-01-22 | S125: H
A126: 23 | B126: 2018-01-22 | D126: ASHOKLEY | E126: Buy | F126: 119.5 | G126: 116 | H126: 123.25 | I126: 126-128 | J126: Profit of Rs.3.75/- | L126: =H126-F126 -> 3.75 | M126: =L126/F126 -> 3.14% | N126: Successful | O126: 2018-01-23 | S126: R
A127: 24 | B127: 2018-01-24 | D127: DRREDDY | E127: Buy | F127: 2560-2580 | G127: 2478 | I127: 2700-2750 | J127: Open | P127: =VLOOKUP(D127,Sheet2!$A$1:M2094,6,0) -> 2507.75 | S127: H
A130: CLBS = Closing Basis *** | F130: Reinitiated $
A131: Dividend adjusted <> | F131: Revised stoploss #
A134: Techno -Funda (positional)
A135: Sr.no | B135: Date | D135: Company | E135: Rec | F135: Rec Price | G135: Stop Loss*** | H135: Call Closed At | I135: Target | J135: Remark | L135: Profit / Loss per Share | M135: Gain / Loss % | N135: Status | O135: Closed Date | P135: NSE Closed Price
A136: 1 | B136: 2018-01-02 | D136: UPL | E136: Buy | F136: 747 | G136: 695 | H136: 797.25 | I136: 850 | J136: Profit of Rs.50.25/- | L136: =H136-F136 -> 50.25 | M136: =L136/F136 -> 6.73% | N136: Successful | O136: 2018-01-19 | S136: H
A138: CLBS = Closing Basis *** | F138: Reinitiated $
A139: Dividend adjusted <> | F139: Revised stoploss #
B143: Momentum Call
A144: Sr.no | B144: Date | D144: Company | E144: Rec | F144: Rec Price | G144: Stop Loss | H144: Call Closed At | I144: Target | J144: Remark | L144: Profit / Loss per Share/Lot | M144: Gain / Loss % | N144: Gain / Loss per Lot | O144: Lot | P144: Status | Q144: Closed Date | R144: NSE Closed Price
A145: 1 | B145: 2017-01-01 | D145: TVTODAY | E145: Buy | F145: 431.5 | G145: 420 | H145: 442.5 | I145: 450 | J145: Profit of Rs.11/- | L145: =H145-F145 -> 11.00 | M145: =L145/F145 -> 2.55% | P145: Successful | Q145: 2017-01-01 | S145: R
A146: 2 | B146: 2018-01-01 | D146: WELSPUNIND | E146: Buy | F146: 73 | G146: 70 | H146: 75.5 | I146: 79-80 | J146: Profit of Rs.2.50/- | L146: =H146-F146 -> 2.50 | M146: =L146/F146 -> 3.42% | P146: Successful | Q146: 2018-01-10 | S146: R
A147: 3 | B147: 2018-01-02 | D147: COX&KINGS | E147: Buy | F147: 277.5 | G147: 269 | H147: 268 | I147: 290 | J147: Loss of Rs.9.50/- | L147: =H147-F147 -> -9.50 | M147: =L147/F147 -> -3.42% | P147: Unsuccessful | Q147: 2018-01-10 | S147: H
A148: 4 | B148: 2018-01-03 | D148: ENGINERSIN | E148: Buy | F148: 195.5 | G148: 189 | H148: 200.75 | I148: 205 | J148: Profit of Rs.5.25/- | L148: =H148-F148 -> 5.25 | M148: =L148/F148 -> 2.69% | P148: Successful | Q148: 2017-01-03 | S148: H
A149: 5 | B149: 2018-01-04 | D149: BFUTILITIE | E149: Buy | F149: 522 | G149: 505 | H149: 534.5 | I149: 550 | J149: Profit of Rs.12.5/- | L149: =H149-F149 -> 12.50 | M149: =L149/F149 -> 2.39% | P149: Successful | Q149: 2017-01-04 | S149: R
A150: 6 | B150: 2018-01-05 | D150: PVR | E150: Buy | F150: 1402 | G150: 1375 | H150: 1428 | I150: 1455 | J150: Profit of Rs.26/- | L150: =H150-F150 -> 26.00 | M150: =L150/F150 -> 1.85% | P150: Successful | Q150: 2018-01-08 | S150: R
A151: 7 | B151: 2018-01-10 | D151: HEIDELBERG | E151: Buy | F151: 165.5 | G151: 161 | H151: 171.75 | I151: 175 | J151: Profit of Rs.6.25/- | L151: 6.25 | M151: 3.78% | P151: Successful | Q151: 2018-01-10 | S151: R
A152: 8 | B152: 2018-01-15 | D152: ENGINERSIN | E152: Buy | F152: 193 | G152: 188 | H152: 187.5 | I152: 203-206 | J152: Loss of Rs.5.50/- | L152: -5.50 | M152: -2.85% | P152: Unsuccessful | Q152: 2018-01-16 | S152: H
A153: 9 | B153: 2018-01-15 | D153: MCDOWELL-N | E153: Buy | F153: 3845 | G153: 3770 | H153: 3755 | I153: 3950 | J153: Loss of Rs.90/- | L153: =H153-F153 -> -90.00 | M153: =L153/F153 -> -2.34% | P153: Unsuccessful | Q153: 2018-01-16 | S153: R
A154: 10 | B154: 2018-01-16 | D154: KOTAKBANK JAN FUT | E154: Buy | F154: 1032.5 | G154: 1018 | H154: 1035 | I154: 1065-1070 | J154: Profit of Rs. 2.5/- | L154: =H154-F154 -> 2.50 | N154: =O154*L154 -> 2000 | O154: 800 | P154: Successful | Q154: 2018-01-16 | S154: H
A155: 11 | B155: 2018-01-17 | D155: BFUTILITIE | E155: Buy | F155: 529.5 | G155: 516 | H155: 545.5 | I155: 560 | J155: Profit of Rs.16/- | L155: =H155-F155 -> 16.00 | M155: =L155/F155 -> 3.02% | P155: Successful | Q155: 2018-01-17 | S155: R
A156: 12 | B156: 2018-01-17 | D156: PFC | E156: Buy | F156: 121-122 | G156: 118 | I156: 127-128 | J156: Open | S156: H
A157: 13 | B157: 2018-01-19 | D157: RELIANCE | E157: Buy | F157: 929 | G157: 915 | H157: 948 | I157: 960 | J157: Profit of Rs.19/- | L157: =H157-F157 -> 19.00 | M157: =L157/F157 -> 2.05% | P157: Successful | Q157: 2018-01-22 | S157: R
A158: 14 | B158: 2018-01-22 | D158: BOMDYEING | E158: Buy | F158: 258 | G158: 249 | H158: 264.5 | I158: 280 | J158: Profit of Rs.6.5/- | L158: =H158-F158 -> 6.50 | M158: =L158/F158 -> 2.52% | P158: Successful | Q158: 2018-01-22 | S158: R
A159: 15 | B159: 2018-01-22 | D159: RAIN | E159: Buy | F159: 436.5 | G159: 426 | H159: 413.5 | I159: 450 | J159: Loss of Rs.23/- | L159: -23.00 | M159: -5.27% | P159: Unsuccessful | Q159: 2018-01-24 | S159: R
A162: CLBS = Closing Basis *** | F162: Reinitiated $
A163: Dividend adjusted <> | F163: Revised stoploss #
B167: Quick Pick Intraday
A168: Sr.no | B168: Date | D168: Company | E168: Rec | F168: Rec Price | G168: Stop Loss*** | H168: Call Closed At | I168: Target | J168: Remark | L168: Profit / Loss per Share | M168: Gain / Loss % | N168: Status | O168: Closed Date
B176: Investment Idea
A177: Sr.no | B177: Date | D177: Company | E177: Rec | F177: Rec Price | G177: Point of Review | H177: Close Rate | I177: Target | J177: Remark | L177: Profit / Loss per Share | M177: Gain / Loss % | N177: Status | O177: Closed Date
A178: 1 | B178: 2013-11-01 | D178: L&T Finance Holding | E178: Accu | F178: 82.00 | G178: - | H178: 100 | I178: 100.00 | J178: Target Achieved | L178: =H178-F178-K178 -> 18.00 | M178: =L178/F178 -> 21.95% | N178: Successful | O178: 2016-10-14
A179: 2 | B179: 2014-06-04 | D179: Finolex Inds | E179: Buy | F179: 257.00 | G179: - | H179: 300 | I179: 300.00 | J179: Target Achieved | L179: 43.00 | M179: 16.73% | N179: Successful | O179: 2014-07-02
A180: =1+A179 -> 3 | B180: 2014-07-08 | D180: JK Cement | E180: Buy | F180: 393.00 | G180: - | H180: 468 | I180: 468.00 | J180: Target Achieved | L180: 75.00 | M180: 19.08% | N180: Successful | O180: 2014-08-12
A181: 4 | B181: 2014-08-06 | D181: Finolex Cables | E181: Buy | F181: 205.00 | G181: - | H181: 275 | I181: 250.00 | J181: Target Achieved | L181: 70.00 | M181: 34.15% | N181: Successful | O181: 2014-11-19
A182: 5 | B182: 2014-09-04 | D182: Exide Inds | E182: Buy | F182: 162.00 | G182: - | H182: 190 | I182: 190.00 | J182: Target Achieved | L182: 28.00 | M182: 17.28% | N182: Successful | O182: 2015-01-02
A183: 6 | B183: 2014-09-04 | D183: Deepak Nitrite | E183: Buy | F183: 75.00 | G183: - | H183: 91.5 | I183: 95-100 | J183: Profit of Rs.16.50/- | L183: 16.50 | M183: 22.00% | N183: Successful | O183: 2014-11-11
A184: 7 | B184: 2014-10-01 | D184: Mercks | E184: Buy | F184: 850.00 | G184: - | H184: 982.5 | I184: 1050.00 | J184: Profit of Rs.132.50/- | L184: 132.50 | M184: 15.59% | N184: Successful | O184: 2015-02-04
A185: 8 | B185: 2014-10-01 | D185: Grindwell Norton | E185: Buy | F185: 475.00 | G185: - | H185: 515 | I185: 600.00 | J185: Profit of Rs.40/- | L185: 40.00 | M185: 8.42% | N185: Successful | O185: 2014-10-27
A186: 9 | B186: 2014-10-01 | D186: Snowman Logistics | E186: Buy | F186: 86.00 | G186: - | H186: 99 | I186: 140.00 | J186: Profit of Rs.13.00/- | L186: 13.00 | M186: 15.12% | N186: Successful | O186: 2014-10-27
A187: 10 | B187: 2014-10-14 | D187: Birla Corp | E187: Buy | F187: 496.60 | G187: - | H187: 621 | I187: 580.00 | J187: Target Achieved | L187: 124.40 | M187: 25.05% | N187: Successful | O187: 2016-08-23
A188: 11 | B188: 2014-10-14 | D188: Ultratech Cem | E188: Buy | F188: 2481.90 | G188: - | H188: 2840 | I188: 2870.00 | J188: Profit of Rs.358.10/- | L188: 358.10 | M188: 14.43% | N188: Successful | O188: 2015-01-13
A189: =1+A186 -> 10 | B189: 2014-10-16 | D189: Sintex Inds | E189: Buy | F189: 84.50 | G189: - | H189: 93 | I189: 110.00 | J189: Profit of Rs.8.50/- | L189: 8.50 | M189: 10.06% | N189: Successful | O189: 2014-10-27
A190: =1+A189 -> 11 | B190: 2014-10-16 | D190: HSIL | E190: Buy | F190: 401.00 | G190: - | H190: 428 | I190: 450.00 | J190: Profit of Rs.27.00/- | L190: 27.00 | M190: 6.73% | N190: Successful | O190: 2015-01-16
A191: 12 | B191: 2014-10-16 | D191: Eveready Inds | E191: Buy | F191: 101.00 | G191: - | H191: 112 | I191: 120.00 | J191: Profit of Rs.11.00/- | L191: 11.00 | M191: 10.89% | N191: Successful | O191: 2014-10-27
A192: 13 | B192: 2014-11-11 | D192: Pennar Inds | E192: Buy | F192: 59.00 | G192: - | H192: 76 | I192: 76.00 | J192: Target Achieved | L192: 17.00 | M192: 28.81% | N192: Successful | O192: 2017-10-24
A193: 14 | B193: 2014-11-11 | D193: Snowman Logistics | E193: Buy | F193: 99.00 | G193: - | H193: 120 | I193: 120.00 | J193: Profit of Rs.21/- | L193: 21.00 | M193: 21.21% | N193: Successful | O193: 2014-11-17
A194: 15 | B194: 2014-11-13 | D194: Dharamsi Morarji Chem | E194: Buy | F194: 22.00 | G194: - | H194: 33.55 | I194: 32.00 | J194: Profit of Rs 11.55/- | L194: 11.55 | M194: 52.50% | N194: Successful | O194: 2015-07-03
A195: 16 | B195: 2014-12-03 | D195: Tatachem | E195: Buy | F195: 440.00 | G195: - | H195: 520 | I195: 520.00 | J195: Profit of Rs 80.00/- | L195: 80.00 | M195: 18.18% | N195: Successful | O195: 2015-07-23
A196: 17 | B196: 2014-12-03 | D196: Advanta | E196: Buy | F196: 360.00 | G196: - | H196: 427 | I196: 425.00 | J196: Profit of Rs.67.00/- | L196: 67.00 | M196: 18.61% | N196: Successful | O196: 2015-02-23
A197: 18 | B197: 2015-01-08 | D197: GDL | E197: Buy | F197: 360.00 | G197: - | H197: 455 | I197: 420.00 | J197: Profit of Rs.95.00/- | L197: 95.00 | M197: 26.39% | N197: Successful | O197: 2015-01-20
A198: 19 | B198: 2015-01-08 | D198: NRB Bearing | E198: Buy | F198: 130.00 | H198: 175.5 | I198: 165.00 | J198: Profit of Rs 45.50/- | L198: 45.50 | M198: 35.00% | N198: Successful | O198: 2017-12-19
A199: 20 | B199: 2015-02-05 | D199: GSFC | E199: Accu | F199: 98.00 | H199: 120 | I199: 120.00 | J199: Target Achieved | L199: 22.00 | M199: 22.45% | N199: Successful | O199: 2017-01-18
A200: 21 | B200: 2015-02-05 | D200: Sundrmfast | E200: Accu | F200: 196.00 | H200: 262 | I200: 255.00 | J200: Target Achieved | L200: 66.00 | M200: 33.67% | N200: Successful | O200: 2016-08-17
A201: 22 | B201: 2015-03-04 | D201: GPPL | E201: Accu | F201: 230-240 | I201: 280-285 | J201: Open
A202: 23 | B202: 2015-03-04 | D202: ORIENTCEM | E202: Accu | F202: 185.00 | H202: 224 | I202: 220-225 | J202: Target Achieved | L202: =H202-F202-K202 -> 39.00 | M202: =L202/F202 -> 21.08% | N202: Successful | O202: 2016-10-04
A203: 24 | B203: 2015-03-27 | D203: PFS | E203: Accu | F203: 49-50 | I203: 67.00 | J203: Open
A204: 25 | B204: 2015-03-30 | D204: Walchandnagar Ind Ltd | E204: Accu | F204: 183.50 | H204: 219 | I204: 218.00 | J204: Profit of Rs.35.50/- | L204: =H204-F204-K204 -> 35.50 | M204: =L204/F204 -> 19.35% | N204: Successful | O204: 2015-04-09
A205: 26 | B205: 2015-04-20 | D205: Kalpataru Power Transmission Ltd | E205: Accu | F205: =(227+237)/2 -> 232.00 | H205: 298 | I205: 298.00 | J205: Target Achieved | L205: 66.00 | M205: 28.45% | N205: Successful | O205: 2017-03-29
A206: 27 | B206: 2015-05-04 | D206: Mastek Ltd | E206: Buy | F206: 385.00 | H206: =212.5+331 -> 543.5 | I206: 510.00 | J206: Profit of Rs 158.50/- | L206: 158.50 | M206: 41.17% | N206: Successful | O206: 2015-08-19
A207: 28 | B207: 2015-05-04 | D207: Suprajit Eng | E207: Buy | F207: 115.50 | H207: 146 | I207: 142.00 | J207: Profit of Rs 30.50/- | L207: 30.50 | M207: 26.41% | N207: Successful | O207: 2015-07-17
A208: 29 | B208: 2015-05-27 | D208: TCI | E208: Buy | F208: 237.50 | H208: 279.5 | I208: 278.00 | J208: Target Achieved | L208: 42.00 | M208: 17.68% | N208: Successful | O208: 2015-08-06
A209: 30 | B209: 2015-06-19 | D209: HSIL | E209: Accu | F209: 340.00 | H209: 448 | I209: 448.00 | J209: Target Achieved | L209: 108.00 | M209: 31.76% | N209: Successful | O209: 2017-10-10
A210: 31 | B210: 2015-07-06 | D210: Capital First | E210: Accu | F210: 390.00 | H210: 460 | I210: 460.00 | J210: Target Achieved | L210: 70.00 | M210: 17.95% | N210: Successful | O210: 2016-04-18
A211: 32 | B211: 2015-07-10 | D211: Dolphin OffShore | E211: Accu | F211: 118-127 | I211: 172.00 | J211: Open
A212: 33 | B212: 2015-08-03 | D212: Allcargo logistics | E212: Accu | F212: 297.50 | H212: 350 | I212: 360.00 | J212: Profit of Rs 52.50/- | L212: =H212-F212-K212 -> 52.50 | M212: =L212/F212 -> 17.65% | N212: Successful | O212: 2015-08-16
A213: 34 | B213: 2015-08-03 | D213: Camline Fine | E213: Accu | F213: 115.50 | H213: 149 | I213: 140.00 | J213: Profit of Rs 33.50/- | L213: 33.50 | M213: 29.00% | N213: Successful | O213: 2017-01-05
A214: 35 | B214: 2015-09-04 | D214: TCI | E214: Accu | F214: 226.00 | H214: 292 | I214: 292.00 | J214: Target Achieved | L214: 66.00 | M214: 29.20% | N214: Successful | O214: 2015-10-09
A215: 36 | B215: 2015-09-07 | D215: Kalpataru Power Transmission Ltd | E215: Accu | F215: 232.50 | H215: 312.5 | I215: 310.00 | J215: Target Achieved | L215: 80.00 | M215: 34.41% | N215: Successful | O215: 2017-03-29
A216: 37 | B216: 2015-09-21 | D216: LLOYD ELECTRIC & ENG LTD | E216: Accu | F216: 196.50 | H216: 238 | I216: 238.00 | J216: Target Achieved | L216: 41.50 | M216: 21.12% | N216: Successful | O216: 2015-10-14
A217: 38 | B217: 2015-09-24 | D217: L&T Finance Holding | E217: Accu | F217: 65.00 | H217: 82 | I217: 82.00 | J217: Target Achieved | L217: 17.00 | M217: 26.15% | N217: Successful | O217: 2016-07-27
A218: 39 | B218: 2015-10-14 | D218: KEC International ltd | E218: Accu | F218: 144.00 | H218: 182.5 | I218: 181.00 | J218: Target Achieved | L218: 38.50 | M218: 26.74% | N218: Successful | O218: 2017-03-23
A219: 40 | B219: 2015-10-14 | D219: Gruh Finance | E219: Accu | F219: 264.00 | H219: 311 | I219: 311.00 | J219: Target Achieved | L219: 47.00 | M219: 17.80% | N219: Successful | O219: 2016-08-22
A220: 41 | B220: 2015-11-10 | D220: Pidilitind | E220: Buy | F220: 549.50 | H220: 630 | I220: 630.00 | J220: Target Achieved | L220: 80.50 | M220: 14.65% | N220: Successful | O220: 2016-02-19
A221: 42 | B221: 2015-12-04 | D221: Zensar Technology | E221: Accu | F221: 1020-1035 | I221: 1250.00 | J221: Open
A222: 43 | B222: 2015-12-29 | D222: Vinati Organics Ltd | E222: Accu | F222: 465.00 | H222: 540 | I222: 540.00 | J222: Target Achieved | L222: =H222-F222-K222 -> 75.00 | M222: =L222/F222 -> 16.13% | N222: Successful | O222: 2016-06-09
A223: 44 | B223: 2016-01-11 | D223: GSFC | E223: Buy | F223: 81.00 | H223: 110 | I223: 110.00 | J223: Target Achieved | L223: 29.00 | M223: 35.80% | N223: Successful | O223: 2017-01-10
A224: 45 | B224: 2016-01-13 | D224: SSWL | E224: Buy | F224: 417.50 | H224: 547 | I224: 535.00 | J224: Target Achieved | L224: 129.50 | M224: 31.02% | N224: Successful | O224: 2016-07-27
A225: 46 | B225: 2016-02-08 | D225: Persistent System Ltd | E225: Accu | F225: 650 | H225: 767.50 | I225: 800.00 | J225: Part profit of Rs.117.50/- | L225: 117.50 | M225: 18% | N225: Successful | O225: 2016-03-21
A226: 47 | B226: 2016-03-04 | D226: UPL | E226: Accu | F226: 437.50 | H226: 504.5 | I226: 522.00 | J226: Profit of Rs.67/- | L226: 67.00 | M226: 15.31% | N226: Successful | O226: 2016-04-20
A227: 48 | B227: 2016-03-09 | D227: Ashoka Buildcon Ltd | E227: Accu | F227: 189.50 | H227: 218 | I227: 218.00 | J227: Target Achieved | L227: 28.50 | M227: 15.04% | N227: Successful | O227: 2017-10-26
A228: 49 | B228: 2016-04-11 | D228: PTC INDIA FIN SERV LTD | E228: Accu | F228: 36-37 | I228: 60.00 | J228: Open
A229: 50 | B229: 2016-04-12 | D229: CAMLINFINE $ | E229: Accu | F229: 93.00 | H229: 149 | I229: 140.00 | J229: Profit of Rs 56/- | L229: =H229-F229-K229 -> 56.00 | M229: =L229/F229 -> 60.22% | N229: Successful | O229: 2017-01-05
A230: 51 | B230: 2016-04-12 | D230: Greaves Cotton Ltd. | E230: Accu | F230: 130.00 | H230: 150 | I230: 150-155 | J230: Target Achieved | L230: =H230-F230-K230 -> 20.00 | M230: =L230/F230 -> 15.38% | N230: Successful | O230: 2016-07-13
A231: 52 | B231: 2016-04-13 | D231: DHFL | E231: Accu | F231: 196.00 | H231: 299 | I231: 299.00 | J231: Target Achieved | L231: =H231-F231-K231 -> 103.00 | M231: =L231/F231 -> 52.55% | N231: Successful | O231: 2016-09-07
A232: 53 | B232: 2016-04-13 | D232: Magma | E232: Accu | F232: 88.00 | H232: 103 | I232: 103.00 | J232: Target Achieved | L232: =H232-F232-K232 -> 15.00 | M232: =L232/F232 -> 17.05% | N232: Successful | O232: 2016-06-09
A233: 54 | B233: 2016-05-02 | D233: KEC International ltd $ | E233: Accu | F233: 127.50 | H233: 148 | I233: 148-150 | J233: Target Achieved | L233: =H233-F233-K233 -> 20.50 | M233: =L233/F233 -> 16.08% | N233: Successful | O233: 2016-07-13
A234: 55 | B234: 2016-05-03 | D234: Mindtree | E234: Accu | F234: 670-680 | I234: 790-800 | J234: Open
A235: 56 | B235: 2016-06-01 | D235: Atulauto | E235: Accu | F235: 495-505 | I235: 565-570 | J235: Open
A236: 57 | B236: 2016-06-06 | D236: TRITURBINE | E236: Accu | F236: 110.00 | H236: 126.5 | I236: 125.00 | J236: Profit of Rs.16.50/- | L236: =H236-F236-K236 -> 16.50 | M236: =L236/F236 -> 15.00% | N236: Successful | O236: 2016-07-01
... 63 more rows

Sheet Sheet2 (hidden)
A1: SYMBOL | B1: SERIES | C1: OPEN | D1: HIGH | E1: LOW | F1: CLOSE | G1: LAST | H1: PREVCLOSE | I1: TOTTRDQTY | J1: TOTTRDVAL | K1: TIMESTAMP | L1: TOTALTRADES | M1: ISIN
A2: 20MICRONS | B2: EQ | C2: 57.45 | D2: 57.6 | E2: 56.15 | F2: 56.4 | G2: 56.5 | H2: 57.65 | I2: 102681 | J2: 5829539.05 | K2: 2018-01-25 | L2: 884 | M2: INE144J01027
A3: 3IINFOTECH | B3: EQ | C3: 6.95 | D3: 7.15 | E3: 6.7 | F3: 6.8 | G3: 6.8 | H3: 6.95 | I3: 5482803 | J3: 37935872.55 | K3: 2018-01-25 | L3: 3110 | M3: INE748C01020
A4: 3MINDIA | B4: EQ | C4: 18892 | D4: 18999 | E4: 18624.55 | F4: 18854.8 | G4: 18825 | H4: 18703 | I4: 1857 | J4: 34991156.15 | K4: 2018-01-25 | L4: 377 | M4: INE470A01017
A5: 5PAISA | B5: EQ | C5: 315 | D5: 317.95 | E5: 302.2 | F5: 307.75 | G5: 305 | H5: 311.65 | I5: 8090 | J5: 2495930.4 | K5: 2018-01-25 | L5: 248 | M5: INE618L01018
A6: 63MOONS | B6: EQ | C6: 119 | D6: 119.65 | E6: 112.1 | F6: 112.8 | G6: 112.55 | H6: 119.05 | I6: 593570 | J6: 68497932.85 | K6: 2018-01-25 | L6: 7230 | M6: INE111B01023
A7: 8KMILES | B7: EQ | C7: 807.5 | D7: 813.3 | E7: 781 | F7: 785.85 | G7: 782.4 | H7: 805.5 | I7: 120014 | J7: 95512273.15 | K7: 2018-01-25 | L7: 5188 | M7: INE650K01021
A8: A2ZINFRA | B8: EQ | C8: 39 | D8: 39.85 | E8: 38.6 | F8: 39.1 | G8: 39.35 | H8: 39.05 | I8: 884403 | J8: 34542028.55 | K8: 2018-01-25 | L8: 3796 | M8: INE619I01012
A9: AARTIDRUGS | B9: EQ | C9: 684 | D9: 696.6 | E9: 675.15 | F9: 677.6 | G9: 679 | H9: 681 | I9: 13653 | J9: 9351112.5 | K9: 2018-01-25 | L9: 1196 | M9: INE767A01016
A10: AARTIIND | B10: EQ | C10: 1106 | D10: 1134.9 | E10: 1048 | F10: 1078 | G10: 1102 | H10: 1118.9 | I10: 125876 | J10: 135924032.8 | K10: 2018-01-25 | L10: 8752 | M10: INE769A01020
A11: AARVEEDEN | B11: EQ | C11: 50.2 | D11: 51.95 | E11: 50.2 | F11: 50.75 | G11: 50.65 | H11: 51.4 | I11: 24133 | J11: 1226324.25 | K11: 2018-01-25 | L11: 150 | M11: INE273D01019
A12: ABAN | B12: EQ | C12: 237.25 | D12: 239 | E12: 229 | F12: 233.25 | G12: 233.15 | H12: 233.15 | I12: 1597329 | J12: 374562323.2 | K12: 2018-01-25 | L12: 15795 | M12: INE421A01028
A13: ABB | B13: EQ | C13: 1652 | D13: 1687 | E13: 1625 | F13: 1659.3 | G13: 1654.85 | H13: 1667.65 | I13: 82745 | J13: 137494267.1 | K13: 2018-01-25 | L13: 4954 | M13: INE117A01022
A14: ABBOTINDIA | B14: EQ | C14: 5520 | D14: 5550 | E14: 5455 | F14: 5541.05 | G14: 5539.9 | H14: 5528.55 | I14: 1623 | J14: 8936121.3 | K14: 2018-01-25 | L14: 519 | M14: INE358A01014
A15: ABCAPITAL | B15: EQ | C15: 176.8 | D15: 178.8 | E15: 175.35 | F15: 175.9 | G15: 176 | H15: 176.45 | I15: 2139090 | J15: 377938731.6 | K15: 2018-01-25 | L15: 20191 | M15: INE674K01013
A16: ABFRL | B16: EQ | C16: 165.05 | D16: 168 | E16: 164.1 | F16: 167 | G16: 167.95 | H16: 165.2 | I16: 184059 | J16: 30418682.55 | K16: 2018-01-25 | L16: 2837 | M16: INE647O01011
A17: ACC | B17: EQ | C17: 1739.9 | D17: 1753.4 | E17: 1720 | F17: 1726.4 | G17: 1733.8 | H17: 1737.5 | I17: 604042 | J17: 1049125294 | K17: 2018-01-25 | L17: 16645 | M17: INE012A01025
A18: ACCELYA | B18: EQ | C18: 1496.85 | D18: 1516 | E18: 1471.3 | F18: 1478.75 | G18: 1483.65 | H18: 1510.65 | I18: 2546 | J18: 3797486.3 | K18: 2018-01-25 | L18: 287 | M18: INE793A01012
A19: ACE | B19: EQ | C19: 172.85 | D19: 189.65 | E19: 172 | F19: 185.45 | G19: 186.05 | H19: 172.45 | I19: 5779107 | J19: 1064520567 | K19: 2018-01-25 | L19: 35522 | M19: INE731H01025
A20: ADANIENT | B20: EQ | C20: 205 | D20: 215.75 | E20: 201.8 | F20: 214.4 | G20: 214.3 | H20: 205.5 | I20: 13233590 | J20: 2782758054 | K20: 2018-01-25 | L20: 64072 | M20: INE423A01024
A21: ADANIPORTS | B21: EQ | C21: 450 | D21: 450 | E21: 434.8 | F21: 436.5 | G21: 436 | H21: 448.75 | I21: 6792843 | J21: 2995025485 | K21: 2018-01-25 | L21: 66336 | M21: INE742F01042
A22: ADANIPOWER | B22: EQ | C22: 37.5 | D22: 38.75 | E22: 36.65 | F22: 38.2 | G22: 38 | H22: 37.5 | I22: 25236607 | J22: 948984804 | K22: 2018-01-25 | L22: 41313 | M22: INE814H01011
A23: ADANITRANS | B23: EQ | C23: 221 | D23: 223.8 | E23: 215.4 | F23: 216.45 | G23: 216.3 | H23: 219.75 | I23: 813884 | J23: 178168231.2 | K23: 2018-01-25 | L23: 9086 | M23: INE931S01010
A24: ADFFOODS | B24: EQ | C24: 288.4 | D24: 290 | E24: 284.1 | F24: 286.6 | G24: 286 | H24: 286.15 | I24: 162214 | J24: 46446499.2 | K24: 2018-01-25 | L24: 3333 | M24: INE982B01019
A25: ADORWELD | B25: EQ | C25: 525 | D25: 535 | E25: 516.95 | F25: 521.4 | G25: 518.65 | H25: 525 | I25: 14846 | J25: 7816726.4 | K25: 2018-01-25 | L25: 758 | M25: INE045A01017
A26: ADVANIHOTR | B26: EQ | C26: 79.3 | D26: 80.75 | E26: 77.25 | F26: 78.05 | G26: 78.3 | H26: 79 | I26: 55155 | J26: 4345951.25 | K26: 2018-01-25 | L26: 601 | M26: INE199C01026
A27: ADVENZYMES | B27: EQ | C27: 287 | D27: 291.2 | E27: 282.1 | F27: 284.15 | G27: 284.9 | H27: 285.25 | I27: 66743 | J27: 19036525.55 | K27: 2018-01-25 | L27: 1544 | M27: INE837H01020
A28: AEGISCHEM | B28: EQ | C28: 282.6 | D28: 282.85 | E28: 278.05 | F28: 279.8 | G28: 279.05 | H28: 281.75 | I28: 75286 | J28: 21071935.05 | K28: 2018-01-25 | L28: 2206 | M28: INE208C01025
A29: AFL | B29: EQ | C29: 61.45 | D29: 62.65 | E29: 60.55 | F29: 60.95 | G29: 60.55 | H29: 62.85 | I29: 21561 | J29: 1322158.65 | K29: 2018-01-25 | L29: 60 | M29: INE020G01017
A30: AGLSL | B30: EQ | C30: 122.5 | D30: 123.55 | E30: 119 | F30: 123.05 | G30: 123.55 | H30: 121.85 | I30: 5129 | J30: 617740.05 | K30: 2018-01-25 | L30: 39 | M30: INE517U01013
A31: AGRITECH | B31: EQ | C31: 110.8 | D31: 113.7 | E31: 110 | F31: 111.1 | G31: 111.85 | H31: 110.75 | I31: 11533 | J31: 1289597 | K31: 2018-01-25 | L31: 490 | M31: INE449G01018
A32: AHLEAST | B32: EQ | C32: 404.95 | D32: 405.6 | E32: 380.1 | F32: 385.05 | G32: 380.5 | H32: 395.15 | I32: 12354 | J32: 4876460 | K32: 2018-01-25 | L32: 619 | M32: INE926K01017
A33: AHLUCONT | B33: EQ | C33: 355 | D33: 359.5 | E33: 329.55 | F33: 335.05 | G33: 329.55 | H33: 347.85 | I33: 67361 | J33: 22933071.65 | K33: 2018-01-25 | L33: 1300 | M33: INE758C01029
A34: AIAENG | B34: EQ | C34: 1599 | D34: 1615 | E34: 1587.3 | F34: 1600.45 | G34: 1598 | H34: 1584.85 | I34: 40546 | J34: 64930093.8 | K34: 2018-01-25 | L34: 3606 | M34: INE212H01026
A35: AIFL | B35: EQ | C35: 466.05 | D35: 478.5 | E35: 463 | F35: 469.3 | G35: 468.5 | H35: 470.05 | I35: 80290 | J35: 37707907.1 | K35: 2018-01-25 | L35: 1257 | M35: INE428O01016
A36: AJANTPHARM | B36: EQ | C36: 1572 | D36: 1583 | E36: 1469.15 | F36: 1493.3 | G36: 1499 | H36: 1570.25 | I36: 466530 | J36: 712273464 | K36: 2018-01-25 | L36: 17968 | M36: INE031B01049
A37: AJMERA | B37: EQ | C37: 316 | D37: 319.75 | E37: 313 | F37: 313.7 | G37: 313.1 | H37: 317.1 | I37: 66416 | J37: 21006202.05 | K37: 2018-01-25 | L37: 1415 | M37: INE298G01027
A38: AKSHARCHEM | B38: EQ | C38: 722.05 | D38: 724.95 | E38: 706 | F38: 709.7 | G38: 713 | H38: 724.15 | I38: 7125 | J38: 5089186.55 | K38: 2018-01-25 | L38: 356 | M38: INE542B01011
A39: AKZOINDIA | B39: EQ | C39: 1860 | D39: 1875 | E39: 1857.05 | F39: 1868.2 | G39: 1865.25 | H39: 1870.7 | I39: 12490 | J39: 23353278.35 | K39: 2018-01-25 | L39: 525 | M39: INE133A01011
A40: ALANKIT | B40: EQ | C40: 64.3 | D40: 64.5 | E40: 61.8 | F40: 62.7 | G40: 62.55 | H40: 64.25 | I40: 237229 | J40: 14866087.6 | K40: 2018-01-25 | L40: 1789 | M40: INE914E01040
A41: ALBK | B41: EQ | C41: 73.9 | D41: 74 | E41: 69.75 | F41: 70.1 | G41: 69.95 | H41: 73.1 | I41: 4226178 | J41: 300155958.4 | K41: 2018-01-25 | L41: 14200 | M41: INE428A01015
A42: ALEMBICLTD | B42: EQ | C42: 70 | D42: 70.2 | E42: 67.05 | F42: 67.55 | G42: 67.45 | H42: 69.9 | I42: 2897246 | J42: 196652640.3 | K42: 2018-01-25 | L42: 15012 | M42: INE426A01027
A43: ALICON | B43: EQ | C43: 654 | D43: 675 | E43: 653.45 | F43: 666.8 | G43: 666.45 | H43: 647.85 | I43: 4927 | J43: 3274812.2 | K43: 2018-01-25 | L43: 232 | M43: INE062D01024
A44: ALKALI | B44: EQ | C44: 83 | D44: 86.9 | E44: 81.6 | F44: 84.15 | G44: 84 | H44: 83.45 | I44: 19872 | J44: 1681322.45 | K44: 2018-01-25 | L44: 337 | M44: INE773I01017
A45: ALKEM | B45: EQ | C45: 2200 | D45: 2240 | E45: 2168.85 | F45: 2202.25 | G45: 2219.9 | H45: 2199.1 | I45: 64212 | J45: 140746747 | K45: 2018-01-25 | L45: 2305 | M45: INE540L01014
A46: ALKYLAMINE | B46: EQ | C46: 777.75 | D46: 789 | E46: 760.1 | F46: 767.6 | G46: 761.65 | H46: 777.75 | I46: 12300 | J46: 9521084.55 | K46: 2018-01-25 | L46: 495 | M46: INE150B01021
A47: ALLCARGO | B47: EQ | C47: 198.45 | D47: 199.7 | E47: 196.2 | F47: 198.35 | G47: 199.5 | H47: 198.65 | I47: 240254 | J47: 47480238.25 | K47: 2018-01-25 | L47: 2939 | M47: INE418H01029
A48: ALLSEC | B48: EQ | C48: 443.65 | D48: 447.5 | E48: 435 | F48: 436.9 | G48: 436.55 | H48: 438.3 | I48: 8908 | J48: 3932240.35 | K48: 2018-01-25 | L48: 328 | M48: INE835G01018
A49: ALPA | B49: EQ | C49: 41.4 | D49: 42.2 | E49: 40.55 | F49: 41.9 | G49: 41.7 | H49: 40.75 | I49: 39570 | J49: 1637387.3 | K49: 2018-01-25 | L49: 587 | M49: INE385I01010
A50: ALPHAGEO | B50: EQ | C50: 929 | D50: 942.55 | E50: 913 | F50: 918.6 | G50: 916.8 | H50: 928.45 | I50: 37432 | J50: 34542639.3 | K50: 2018-01-25 | L50: 1915 | M50: INE137C01018
A51: AMARAJABAT | B51: EQ | C51: 878.6 | D51: 892.7 | E51: 835.5 | F51: 841.8 | G51: 845 | H51: 875.6 | I51: 1465209 | J51: 1271749073 | K51: 2018-01-25 | L51: 32490 | M51: INE885A01032
A52: AMBIKCO | B52: EQ | C52: 1500 | D52: 1500 | E52: 1410 | F52: 1430.65 | G52: 1425 | H52: 1480.15 | I52: 6688 | J52: 9618615.45 | K52: 2018-01-25 | L52: 701 | M52: INE540G01014
A53: AMBUJACEM | B53: EQ | C53: 260.8 | D53: 264.5 | E53: 259.6 | F53: 263 | G53: 263.05 | H53: 260.15 | I53: 3313959 | J53: 867833408.1 | K53: 2018-01-25 | L53: 25813 | M53: INE079A01024
A54: AMDIND | B54: EQ | C54: 43.45 | D54: 43.6 | E54: 42.15 | F54: 42.7 | G54: 43 | H54: 43.8 | I54: 19958 | J54: 854460.15 | K54: 2018-01-25 | L54: 164 | M54: INE005I01014
A55: AMJLAND | B55: EQ | C55: 25.35 | D55: 26.5 | E55: 25.35 | F55: 25.75 | G55: 25.75 | H55: 25.65 | I55: 41290 | J55: 1063443.35 | K55: 2018-01-25 | L55: 126 | M55: INE606A01024
A56: AMRUTANJAN | B56: EQ | C56: 597 | D56: 605.95 | E56: 596 | F56: 601.15 | G56: 598.75 | H56: 596.5 | I56: 4364 | J56: 2621781.5 | K56: 2018-01-25 | L56: 334 | M56: INE098F01023
A57: ANANTRAJ | B57: EQ | C57: 68 | D57: 71.3 | E57: 67.75 | F57: 68.15 | G57: 67.75 | H57: 68.5 | I57: 1766739 | J57: 122224709.3 | K57: 2018-01-25 | L57: 8280 | M57: INE242C01024
A58: ANDHRABANK | B58: EQ | C58: 59.4 | D58: 59.4 | E58: 55.65 | F58: 55.9 | G58: 56.1 | H58: 58.8 | I58: 5026653 | J58: 285588988.1 | K58: 2018-01-25 | L58: 11959 | M58: INE434A01013
A59: ANDHRACEMT | B59: EQ | C59: 12.55 | D59: 12.8 | E59: 12.3 | F59: 12.35 | G59: 12.3 | H59: 12.75 | I59: 248353 | J59: 3103031 | K59: 2018-01-25 | L59: 568 | M59: INE666E01012
A60: ANDHRSUGAR | B60: EQ | C60: 681.5 | D60: 681.75 | E60: 663.1 | F60: 674.6 | G60: 672 | H60: 680 | I60: 53087 | J60: 35669661.35 | K60: 2018-01-25 | L60: 1484 | M60: INE715B01013
A61: ANIKINDS | B61: EQ | C61: 45.5 | D61: 45.5 | E61: 41.5 | F61: 42.2 | G61: 41.5 | H61: 44.1 | I61: 48196 | J61: 2099529.45 | K61: 2018-01-25 | L61: 456 | M61: INE087B01017
A62: ANSALAPI | B62: EQ | C62: 27 | D62: 28.45 | E62: 26.8 | F62: 28.4 | G62: 28.45 | H62: 27.1 | I62: 390292 | J62: 11018998.7 | K62: 2018-01-25 | L62: 730 | M62: INE436A01026
A63: ANSALHSG | B63: EQ | C63: 28 | D63: 29.35 | E63: 27.6 | F63: 28.5 | G63: 28.45 | H63: 27.75 | I63: 169082 | J63: 4845478.45 | K63: 2018-01-25 | L63: 1089 | M63: INE880B01015
A64: APARINDS | B64: EQ | C64: 804 | D64: 808.9 | E64: 789.2 | F64: 790.5 | G64: 790 | H64: 813.05 | I64: 14465 | J64: 11461657 | K64: 2018-01-25 | L64: 955 | M64: INE372A01015
A65: APCL | B65: EQ | C65: 240 | D65: 244 | E65: 236.95 | F65: 240.7 | G65: 242.6 | H65: 237.9 | I65: 2392 | J65: 570526.55 | K65: 2018-01-25 | L65: 57 | M65: INE071F01012
A66: APCOTEXIND | B66: EQ | C66: 490 | D66: 492.95 | E66: 485.05 | F66: 486.45 | G66: 486 | H66: 489.85 | I66: 3504 | J66: 1710441.25 | K66: 2018-01-25 | L66: 219 | M66: INE116A01024
A67: APEX | B67: EQ | C67: 709.6 | D67: 729 | E67: 702 | F67: 705.5 | G67: 702.25 | H67: 709.4 | I67: 187408 | J67: 133505467.4 | K67: 2018-01-25 | L67: 5109 | M67: INE346W01013
A68: APLAPOLLO | B68: EQ | C68: 2480 | D68: 2575 | E68: 2431.35 | F68: 2528.8 | G68: 2523.5 | H68: 2425.8 | I68: 32337 | J68: 81665013.95 | K68: 2018-01-25 | L68: 3694 | M68: INE702C01019
A69: APLLTD | B69: EQ | C69: 549.6 | D69: 556 | E69: 542.3 | F69: 553 | G69: 553.9 | H69: 550.7 | I69: 467450 | J69: 258893036.3 | K69: 2018-01-25 | L69: 2552 | M69: INE901L01018
A70: APOLLOHOSP | B70: EQ | C70: 1117 | D70: 1138.5 | E70: 1108 | F70: 1133.7 | G70: 1135.5 | H70: 1110.8 | I70: 327271 | J70: 369755554.4 | K70: 2018-01-25 | L70: 23965 | M70: INE437A01024
A71: APOLLOTYRE | B71: EQ | C71: 269 | D71: 269.6 | E71: 259.6 | F71: 261.05 | G71: 262.25 | H71: 267.25 | I71: 5131170 | J71: 1344506990 | K71: 2018-01-25 | L71: 21893 | M71: INE438A01022
A72: APOLSINHOT | B72: EQ | C72: 1430 | D72: 1468 | E72: 1382 | F72: 1403.55 | G72: 1400 | H72: 1442.95 | I72: 650 | J72: 917325.5 | K72: 2018-01-25 | L72: 73 | M72: INE451F01016
A73: APTECHT | B73: EQ | C73: 353 | D73: 356 | E73: 345.95 | F73: 348.55 | G73: 348.35 | H73: 352.75 | I73: 200518 | J73: 70159683.15 | K73: 2018-01-25 | L73: 3863 | M73: INE266F01018
A74: ARCHIDPLY | B74: EQ | C74: 105.5 | D74: 107.9 | E74: 105 | F74: 105.9 | G74: 105 | H74: 105.5 | I74: 43061 | J74: 4570039.7 | K74: 2018-01-25 | L74: 601 | M74: INE877I01016
A75: ARCHIES | B75: EQ | C75: 40.75 | D75: 41.85 | E75: 40.1 | F75: 40.9 | G75: 40.8 | H75: 40.65 | I75: 233445 | J75: 9570413.95 | K75: 2018-01-25 | L75: 1256 | M75: INE731A01020
A76: ARCOTECH | B76: EQ | C76: 50.05 | D76: 50.6 | E76: 49.6 | F76: 49.8 | G76: 49.7 | H76: 50 | I76: 323389 | J76: 16176921.1 | K76: 2018-01-25 | L76: 1558 | M76: INE574I01035
A77: ARIHANTSUP | B77: EQ | C77: 163.2 | D77: 167 | E77: 160 | F77: 163.7 | G77: 164.6 | H77: 165.6 | I77: 114719 | J77: 18776027.85 | K77: 2018-01-25 | L77: 1106 | M77: INE643K01018
A78: AROGRANITE | B78: EQ | C78: 72 | D78: 75.4 | E78: 71.75 | F78: 72.2 | G78: 71.95 | H78: 72.5 | I78: 110022 | J78: 8091918.75 | K78: 2018-01-25 | L78: 1227 | M78: INE210C01013
A79: ARROWGREEN | B79: EQ | C79: 492.5 | D79: 507.95 | E79: 486.55 | F79: 490.1 | G79: 490.95 | H79: 498 | I79: 6870 | J79: 3412974.3 | K79: 2018-01-25 | L79: 429 | M79: INE570D01018
A80: ARROWTEX | B80: EQ | C80: 44.3 | D80: 44.4 | E80: 43.35 | F80: 43.8 | G80: 43.9 | H80: 43.9 | I80: 7275 | J80: 318473.7 | K80: 2018-01-25 | L80: 234 | M80: INE933J01015
A81: ARSHIYA | B81: EQ | C81: 104.5 | D81: 104.9 | E81: 100.7 | F81: 102.65 | G81: 102.05 | H81: 104.4 | I81: 81194 | J81: 8337563.3 | K81: 2018-01-25 | L81: 579 | M81: INE968D01022
A82: ARVIND | B82: EQ | C82: 446 | D82: 451.65 | E82: 441.85 | F82: 444.15 | G82: 444 | H82: 445.35 | I82: 1144581 | J82: 510410273.8 | K82: 2018-01-25 | L82: 22178 | M82: INE034A01011
A83: ARVSMART | B83: EQ | C83: 213.5 | D83: 218.5 | E83: 208.55 | F83: 213.05 | G83: 212.7 | H83: 210.65 | I83: 292367 | J83: 62301703.5 | K83: 2018-01-25 | L83: 4579 | M83: INE034S01021
A84: ASAHIINDIA | B84: EQ | C84: 365.55 | D84: 369 | E84: 358.5 | F84: 361 | G84: 361.5 | H84: 361.75 | I84: 23795 | J84: 8628685.95 | K84: 2018-01-25 | L84: 835 | M84: INE439A01020
A85: ASAHISONG | B85: EQ | C85: 365.15 | D85: 377.5 | E85: 357.9 | F85: 361.2 | G85: 359 | H85: 362.75 | I85: 13332 | J85: 4923078.1 | K85: 2018-01-25 | L85: 391 | M85: INE228I01012
A86: ASAL | B86: EQ | C86: 100.65 | D86: 101.85 | E86: 97.2 | F86: 98.45 | G86: 98.25 | H86: 100.7 | I86: 15580 | J86: 1541452.5 | K86: 2018-01-25 | L86: 257 | M86: INE900C01027
A87: ASHAPURMIN | B87: EQ | C87: 91.8 | D87: 93.8 | E87: 90.2 | F87: 91.2 | G87: 91.2 | H87: 91 | I87: 229624 | J87: 21071158.5 | K87: 2018-01-25 | L87: 2231 | M87: INE348A01023
A88: ASHIANA | B88: EQ | C88: 189 | D88: 192 | E88: 183 | F88: 186.55 | G88: 186 | H88: 177.55 | I88: 530700 | J88: 99432411.8 | K88: 2018-01-25 | L88: 8442 | M88: INE365D01021
A89: ASHIMASYN | B89: EQ | C89: 31 | D89: 31.8 | E89: 30.45 | F89: 30.6 | G89: 30.5 | H89: 31.05 | I89: 270170 | J89: 8348997.95 | K89: 2018-01-25 | L89: 817 | M89: INE440A01010
A90: ASHOKA | B90: EQ | C90: 242.5 | D90: 242.5 | E90: 232.1 | F90: 234.65 | G90: 234.3 | H90: 239.05 | I90: 41744 | J90: 9801334.3 | K90: 2018-01-25 | L90: 1172 | M90: INE442H01029
A91: ASHOKLEY | B91: EQ | C91: 124.25 | D91: 124.4 | E91: 121.6 | F91: 122.3 | G91: 122.25 | H91: 123.3 | I91: 11367419 | J91: 1399937689 | K91: 2018-01-25 | L91: 64786 | M91: INE208A01029
A92: ASIANHOTNR | B92: EQ | C92: 270.2 | D92: 302.9 | E92: 270.2 | F92: 287.75 | G92: 282.5 | H92: 283.3 | I92: 24023 | J92: 7040485.2 | K92: 2018-01-25 | L92: 1134 | M92: INE363A01022
A93: ASIANPAINT | B93: EQ | C93: 1148 | D93: 1161.4 | E93: 1143.45 | F93: 1150.45 | G93: 1154 | H93: 1151.05 | I93: 1563047 | J93: 1796695182 | K93: 2018-01-25 | L93: 32565 | M93: INE021A01026
A94: ASIANTILES | B94: EQ | C94: 589.9 | D94: 591.45 | E94: 573 | F94: 576.15 | G94: 576.3 | H94: 589.65 | I94: 71785 | J94: 41588131.7 | K94: 2018-01-25 | L94: 2818 | M94: INE022I01019
A95: ASPINWALL | B95: EQ | C95: 520 | D95: 527.5 | E95: 501 | F95: 521.85 | G95: 518.9 | H95: 508.85 | I95: 5766 | J95: 2985567 | K95: 2018-01-25 | L95: 135 | M95: INE991I01015
A96: ASTEC | B96: EQ | C96: 583 | D96: 601.2 | E96: 583 | F96: 597.05 | G96: 596 | H96: 583.65 | I96: 27280 | J96: 16225550.1 | K96: 2018-01-25 | L96: 1150 | M96: INE563J01010
A97: ASTRAL | B97: EQ | C97: 819.95 | D97: 821.95 | E97: 804 | F97: 811.5 | G97: 812.7 | H97: 819.95 | I97: 19597 | J97: 15879251.95 | K97: 2018-01-25 | L97: 1552 | M97: INE006I01046
A98: ASTRAMICRO | B98: EQ | C98: 113 | D98: 113.85 | E98: 111.65 | F98: 112.2 | G98: 112.1 | H98: 112.8 | I98: 328865 | J98: 37073943.7 | K98: 2018-01-25 | L98: 2477 | M98: INE386C01029
A99: ASTRAZEN | B99: EQ | C99: 1157 | D99: 1160 | E99: 1126.05 | F99: 1150.65 | G99: 1145.2 | H99: 1147.65 | I99: 7653 | J99: 8742030.55 | K99: 2018-01-25 | L99: 765 | M99: INE203A01020
A100: ASTRON | B100: EQ | C100: 137.95 | D100: 138.05 | E100: 132.15 | F100: 134.2 | G100: 134.45 | H100: 137.1 | I100: 413067 | J100: 55597561.7 | K100: 2018-01-25 | L100: 4211 | M100: INE646X01014
A101: ATFL | B101: EQ | C101: 684.15 | D101: 690 | E101: 670 | F101: 673.35 | G101: 670.1 | H101: 684.2 | I101: 6608 | J101: 4478211.1 | K101: 2018-01-25 | L101: 530 | M101: INE209A01019
A102: ATLANTA | B102: EQ | C102: 113.6 | D102: 115.45 | E102: 112.5 | F102: 113.1 | G102: 113.3 | H102: 113.3 | I102: 196386 | J102: 22319655.85 | K102: 2018-01-25 | L102: 1924 | M102: INE285H01022
A103: ATUL | B103: EQ | C103: 2850.1 | D103: 2899.9 | E103: 2820 | F103: 2858.75 | G103: 2859.95 | H103: 2879.6 | I103: 8260 | J103: 23531159 | K103: 2018-01-25 | L103: 2075 | M103: INE100A01010
A104: ATULAUTO | B104: EQ | C104: 436.2 | D104: 438.9 | E104: 432 | F104: 435.4 | G104: 434 | H104: 436.3 | I104: 11330 | J104: 4933382.7 | K104: 2018-01-25 | L104: 662 | M104: INE951D01028
A105: AUBANK | B105: EQ | C105: 705.75 | D105: 705.75 | E105: 674.9 | F105: 684.25 | G105: 686 | H105: 699.85 | I105: 81916 | J105: 56439051.6 | K105: 2018-01-25 | L105: 4888 | M105: INE949L01017
A106: AURIONPRO | B106: EQ | C106: 234 | D106: 239.7 | E106: 230.05 | F106: 232.75 | G106: 230.7 | H106: 232.8 | I106: 27758 | J106: 6505030.25 | K106: 2018-01-25 | L106: 598 | M106: INE132H01018
A107: AUROPHARMA | B107: EQ | C107: 658.5 | D107: 660 | E107: 637.35 | F107: 639.7 | G107: 639.9 | H107: 658.45 | I107: 1723328 | J107: 1117344237 | K107: 2018-01-25 | L107: 30836 | M107: INE406A01037
A108: AUSOMENT | B108: EQ | C108: 78.5 | D108: 79.85 | E108: 77 | F108: 77.55 | G108: 77 | H108: 78.75 | I108: 9807 | J108: 771180.8 | K108: 2018-01-25 | L108: 174 | M108: INE218C01016
A109: AUTOAXLES | B109: EQ | C109: 1755 | D109: 1804.5 | E109: 1754.95 | F109: 1779.5 | G109: 1765.9 | H109: 1759.6 | I109: 21719 | J109: 38720374 | K109: 2018-01-25 | L109: 3136 | M109: INE449A01011
A110: AUTOLITIND | B110: EQ | C110: 73.2 | D110: 73.2 | E110: 69.5 | F110: 70.35 | G110: 69.5 | H110: 70.6 | I110: 17378 | J110: 1223750.4 | K110: 2018-01-25 | L110: 247 | M110: INE448A01013
A111: AVADHSUGAR | B111: EQ | C111: 714.95 | D111: 717.4 | E111: 695 | F111: 701.5 | G111: 701.8 | H111: 701.85 | I111: 28707 | J111: 20188277 | K111: 2018-01-25 | L111: 857 | M111: INE349W01017
A112: AVANTIFEED | B112: EQ | C112: 2509 | D112: 2518.7 | E112: 2430 | F112: 2438.8 | G112: 2432.15 | H112: 2474.8 | I112: 27197 | J112: 67019979.6 | K112: 2018-01-25 | L112: 3533 | M112: INE871C01020
A113: AVTNPL | B113: EQ | C113: 49.5 | D113: 50.25 | E113: 49.15 | F113: 49.45 | G113: 49.25 | H113: 49.3 | I113: 129676 | J113: 6442556.95 | K113: 2018-01-25 | L113: 772 | M113: INE488D01021
A114: AXISBANK | B114: EQ | C114: 610 | D114: 619.25 | E114: 598.6 | F114: 616.1 | G114: 614.75 | H114: 607.95 | I114: 6749846 | J114: 4144830663 | K114: 2018-01-25 | L114: 99985 | M114: INE238A01034
A115: AXISCADES | B115: EQ | C115: 197.4 | D115: 203.5 | E115: 192 | F115: 193.55 | G115: 193.45 | H115: 195.8 | I115: 177703 | J115: 35068473.8 | K115: 2018-01-25 | L115: 2309 | M115: INE555B01013
A116: AXISGOLD | B116: EQ | C116: 2635 | D116: 2712 | E116: 2635 | F116: 2677.4 | G116: 2675 | H116: 2642.05 | I116: 1325 | J116: 3563471.4 | K116: 2018-01-25 | L116: 96 | M116: INF846K01347
A117: AXISNIFTY | B117: EQ | C117: 1107 | D117: 1113 | E117: 1105.84 | F117: 1108.26 | G117: 1107.9 | H117: 1112.5 | I117: 199 | J117: 220447.69 | K117: 2018-01-25 | L117: 10 | M117: INF846K01ZL0
A118: AYMSYNTEX | B118: EQ | C118: 65.05 | D118: 65.6 | E118: 62.95 | F118: 64 | G118: 64 | H118: 65.55 | I118: 132492 | J118: 8468806.05 | K118: 2018-01-25 | L118: 561 | M118: INE193B01039
A119: BAFNAPHARM | B119: EQ | C119: 25.7 | D119: 26.3 | E119: 24.7 | F119: 25.1 | G119: 25.5 | H119: 26.1 | I119: 17784 | J119: 447203.95 | K119: 2018-01-25 | L119: 129 | M119: INE878I01014
A120: BAJAJ-AUTO | B120: EQ | C120: 3344 | D120: 3345.9 | E120: 3295 | F120: 3311.7 | G120: 3304.95 | H120: 3341.55 | I120: 246647 | J120: 816446752.9 | K120: 2018-01-25 | L120: 17797 | M120: INE917I01010
A121: BAJAJCORP | B121: EQ | C121: 491.15 | D121: 499.95 | E121: 488.25 | F121: 495.9 | G121: 495 | H121: 494.7 | I121: 42238 | J121: 20805083.85 | K121: 2018-01-25 | L121: 1749 | M121: INE933K01021
A122: BAJAJELEC | B122: EQ | C122: 530 | D122: 530 | E122: 509 | F122: 512.15 | G122: 509.55 | H122: 529.35 | I122: 124814 | J122: 64589462.15 | K122: 2018-01-25 | L122: 4574 | M122: INE193E01025
A123: BAJAJFINSV | B123: EQ | C123: 5025 | D123: 5070 | E123: 4900 | F123: 4933.05 | G123: 4903.1 | H123: 5014.45 | I123: 149077 | J123: 744550495.3 | K123: 2018-01-25 | L123: 16221 | M123: INE918I01018
A124: BAJAJHIND | B124: EQ | C124: 14.15 | D124: 14.25 | E124: 14 | F124: 14.05 | G124: 14.05 | H124: 14.1 | I124: 2604338 | J124: 36727918.95 | K124: 2018-01-25 | L124: 3354 | M124: INE306A01021
A125: BAJAJHLDNG | B125: EQ | C125: 2811.2 | D125: 2831.15 | E125: 2794.7 | F125: 2819.75 | G125: 2820 | H125: 2819.15 | I125: 25223 | J125: 71162752.1 | K125: 2018-01-25 | L125: 1380 | M125: INE118A01012
A126: BAJFINANCE | B126: EQ | C126: 1741 | D126: 1741.9 | E126: 1703.4 | F126: 1710.3 | G126: 1714 | H126: 1739.15 | I126: 880891 | J126: 1511573762 | K126: 2018-01-25 | L126: 35833 | M126: INE296A01024
A127: BALAJITELE | B127: EQ | C127: 157.15 | D127: 164 | E127: 156.75 | F127: 157.1 | G127: 157 | H127: 157.6 | I127: 729298 | J127: 116332257.2 | K127: 2018-01-25 | L127: 6547 | M127: INE794B01026
A128: BALAMINES | B128: EQ | C128: 737.9 | D128: 753.3 | E128: 730.1 | F128: 747.1 | G128: 751.9 | H128: 728.7 | I128: 208166 | J128: 154373043.9 | K128: 2018-01-25 | L128: 5837 | M128: INE050E01027
A129: BALKRISIND | B129: EQ | C129: 1144 | D129: 1144 | E129: 1117.1 | F129: 1121.05 | G129: 1128.8 | H129: 1138.35 | I129: 184000 | J129: 207491030.2 | K129: 2018-01-25 | L129: 5229 | M129: INE787D01026
A130: BALLARPUR | B130: EQ | C130: 15.7 | D130: 15.9 | E130: 15.35 | F130: 15.55 | G130: 15.6 | H130: 15.65 | I130: 1101577 | J130: 17147528.4 | K130: 2018-01-25 | L130: 1101 | M130: INE294A01037
A131: BALMLAWRIE | B131: EQ | C131: 244.9 | D131: 248.65 | E131: 242.25 | F131: 246.85 | G131: 246.9 | H131: 244.65 | I131: 90334 | J131: 22299897.8 | K131: 2018-01-25 | L131: 1535 | M131: INE164A01016
A132: BALPHARMA | B132: EQ | C132: 106.3 | D132: 108 | E132: 103.6 | F132: 104.2 | G132: 104.05 | H132: 106.75 | I132: 45004 | J132: 4715056.6 | K132: 2018-01-25 | L132: 723 | M132: INE083D01012
A133: BALRAMCHIN | B133: EQ | C133: 121.9 | D133: 125.35 | E133: 120.1 | F133: 121.75 | G133: 121.25 | H133: 121.3 | I133: 3831417 | J133: 467678391.6 | K133: 2018-01-25 | L133: 19484 | M133: INE119A01028
A134: BANARISUG | B134: EQ | C134: 1908.05 | D134: 2000 | E134: 1908.05 | F134: 1991.6 | G134: 2000 | H134: 1908.05 | I134: 394 | J134: 770943.2 | K134: 2018-01-25 | L134: 93 | M134: INE459A01010
A135: BANCOINDIA | B135: EQ | C135: 248 | D135: 248 | E135: 243.4 | F135: 243.9 | G135: 243.5 | H135: 244.5 | I135: 41499 | J135: 10182829.15 | K135: 2018-01-25 | L135: 1113 | M135: INE213C01025
A136: BANG | B136: EQ | C136: 39.95 | D136: 40.2 | E136: 36.65 | F136: 38.25 | G136: 38.5 | H136: 36.55 | I136: 19431 | J136: 757494.2 | K136: 2018-01-25 | L136: 164 | M136: INE863I01016
A137: BANKBARODA | B137: EQ | C137: 178.8 | D137: 178.8 | E137: 166.45 | F137: 167.15 | G137: 166.9 | H137: 178.35 | I137: 24579032 | J137: 4195496068 | K137: 2018-01-25 | L137: 98286 | M137: INE028A01039
A138: BANKBEES | B138: EQ | C138: 2818.8 | D138: 2818.8 | E138: 2755.22 | F138: 2779.29 | G138: 2776 | H138: 2776.15 | I138: 10391 | J138: 28859765.18 | K138: 2018-01-25 | L138: 358 | M138: INF732E01078
A139: BANKINDIA | B139: EQ | C139: 181.05 | D139: 183.25 | E139: 168.1 | F139: 169.4 | G139: 168.7 | H139: 172.45 | I139: 12825427 | J139: 2230472958 | K139: 2018-01-25 | L139: 52372 | M139: INE084A01016
A140: BANSWRAS | B140: EQ | C140: 129.6 | D140: 129.6 | E140: 126 | F140: 126.45 | G140: 126.65 | H140: 128.5 | I140: 5539 | J140: 706441.1 | K140: 2018-01-25 | L140: 133 | M140: INE629D01012
A141: BASF | B141: EQ | C141: 2213 | D141: 2213 | E141: 2170 | F141: 2183.2 | G141: 2180 | H141: 2209.5 | I141: 6895 | J141: 15066307.1 | K141: 2018-01-25 | L141: 737 | M141: INE373A01013
A142: BASML | B142: EQ | C142: 326.2 | D142: 334.9 | E142: 324.15 | F142: 325.05 | G142: 325 | H142: 329.7 | I142: 2425 | J142: 790783.6 | K142: 2018-01-25 | L142: 67 | M142: INE186H01014
A143: BATAINDIA | B143: EQ | C143: 724.05 | D143: 725.95 | E143: 702.6 | F143: 706.3 | G143: 709 | H143: 725.6 | I143: 488699 | J143: 347480473.5 | K143: 2018-01-25 | L143: 10936 | M143: INE176A01028
A144: BAYERCROP | B144: EQ | C144: 4550.1 | D144: 4700 | E144: 4550.1 | F144: 4666.35 | G144: 4664 | H144: 4564.75 | I144: 6936 | J144: 32149817.7 | K144: 2018-01-25 | L144: 1429 | M144: INE462A01022
A145: BBL | B145: EQ | C145: 1500 | D145: 1577.2 | E145: 1457.3 | F145: 1475.45 | G145: 1472 | H145: 1387.9 | I145: 479025 | J145: 726721577.3 | K145: 2018-01-25 | L145: 27731 | M145: INE464A01028
A146: BBTC | B146: EQ | C146: 1549.55 | D146: 1560 | E146: 1500 | F146: 1509.1 | G146: 1509 | H146: 1545.25 | I146: 84556 | J146: 128757237 | K146: 2018-01-25 | L146: 4402 | M146: INE050A01025
A147: BEARDSELL | B147: EQ | C147: 66 | D147: 67 | E147: 64.05 | F147: 64.55 | G147: 64.55 | H147: 66.2 | I147: 3563 | J147: 233121.6 | K147: 2018-01-25 | L147: 60 | M147: INE520H01022
A148: BEDMUTHA | B148: EQ | C148: 25.6 | D148: 27 | E148: 25.5 | F148: 26.75 | G148: 26.8 | H148: 25.95 | I148: 14374 | J148: 375846.15 | K148: 2018-01-25 | L148: 48 | M148: INE844K01012
A149: BEL | B149: EQ | C149: 178.3 | D149: 179.5 | E149: 175.4 | F149: 176.9 | G149: 178.15 | H149: 173.55 | I149: 15242684 | J149: 2703319504 | K149: 2018-01-25 | L149: 68457 | M149: INE263A01024
A150: BEML | B150: EQ | C150: 1502.05 | D150: 1512.75 | E150: 1473 | F150: 1480.55 | G150: 1484 | H150: 1507.3 | I150: 294417 | J150: 439340173.1 | K150: 2018-01-25 | L150: 11908 | M150: INE258A01016
A151: BEPL | B151: EQ | C151: 181.05 | D151: 190 | E151: 176.8 | F151: 183.65 | G151: 183.8 | H151: 182.25 | I151: 711691 | J151: 131131435.4 | K151: 2018-01-25 | L151: 8479 | M151: INE922A01025
A152: BERGEPAINT | B152: EQ | C152: 253 | D152: 255.85 | E152: 250.3 | F152: 253.15 | G152: 254.7 | H152: 252.4 | I152: 745685 | J152: 188755404.1 | K152: 2018-01-25 | L152: 12000 | M152: INE463A01038
A153: BFINVEST | B153: EQ | C153: 336.1 | D153: 337 | E153: 321.5 | F153: 324.15 | G153: 323.45 | H153: 334.75 | I153: 65601 | J153: 21579455.9 | K153: 2018-01-25 | L153: 2519 | M153: INE878K01010
A154: BFUTILITIE | B154: EQ | C154: 515.1 | D154: 518 | E154: 502 | F154: 504.85 | G154: 504.85 | H154: 514.7 | I154: 327835 | J154: 166988224.2 | K154: 2018-01-25 | L154: 7635 | M154: INE243D01012
A155: BGRENERGY | B155: EQ | C155: 139.4 | D155: 139.95 | E155: 136 | F155: 136.4 | G155: 137 | H155: 139.4 | I155: 85489 | J155: 11747273.8 | K155: 2018-01-25 | L155: 1224 | M155: INE661I01014
A156: BHAGERIA | B156: EQ | C156: 287 | D156: 294.75 | E156: 281.35 | F156: 286.25 | G156: 282.4 | H156: 286.1 | I156: 21889 | J156: 6336070.55 | K156: 2018-01-25 | L156: 672 | M156: INE354C01027
A157: BHAGYANGR | B157: EQ | C157: 45.15 | D157: 45.15 | E157: 39.5 | F157: 41.85 | G157: 41.75 | H157: 43.85 | I157: 52116 | J157: 2207639.8 | K157: 2018-01-25 | L157: 756 | M157: INE458B01036
A158: BHAGYAPROP | B158: EQ | C158: 22.25 | D158: 22.25 | E158: 21.6 | F158: 22 | G158: 22 | H158: 22.2 | I158: 5616 | J158: 123185.85 | K158: 2018-01-25 | L158: 36 | M158: INE363W01018
A159: BHARATFIN | B159: EQ | C159: 1031 | D159: 1031.95 | E159: 1015.2 | F159: 1023 | G159: 1019.15 | H159: 1030.1 | I159: 652551 | J159: 668251078.6 | K159: 2018-01-25 | L159: 17195 | M159: INE180K01011
A160: BHARATFORG | B160: EQ | C160: 744.8 | D160: 751.95 | E160: 716.3 | F160: 721.15 | G160: 721.95 | H160: 746.35 | I160: 2244964 | J160: 1638698150 | K160: 2018-01-25 | L160: 41110 | M160: INE465A01025
A161: BHARATGEAR | B161: EQ | C161: 208 | D161: 210 | E161: 204.05 | F161: 206.3 | G161: 205 | H161: 207.85 | I161: 43103 | J161: 8922302.85 | K161: 2018-01-25 | L161: 1129 | M161: INE561C01019
A162: BHARATIWIN | B162: EQ | C162: 38.86 | D162: 39.05 | E162: 38.68 | F162: 38.79 | G162: 38.8 | H162: 38.86 | I162: 1740216 | J162: 67717005.58 | K162: 2018-01-25 | L162: 2425 | M162: INF109KB15Y7
A163: BHARATRAS | B163: EQ | C163: 4448.25 | D163: 4448.25 | E163: 4310.25 | F163: 4349.85 | G163: 4343 | H163: 4396.55 | I163: 1040 | J163: 4551723.35 | K163: 2018-01-25 | L163: 181 | M163: INE838B01013
A164: BHARATWIRE | B164: EQ | C164: 136.75 | D164: 137.8 | E164: 133 | F164: 133.95 | G164: 133.2 | H164: 136.75 | I164: 112799 | J164: 15252243.1 | K164: 2018-01-25 | L164: 844 | M164: INE316L01019
A165: BHARTIARTL | B165: EQ | C165: 463.5 | D165: 463.5 | E165: 444.45 | F165: 452.7 | G165: 457 | H165: 459.5 | I165: 18548035 | J165: 8415629700 | K165: 2018-01-25 | L165: 155090 | M165: INE397D01024
A166: BHEL | B166: EQ | C166: 104 | D166: 106.5 | E166: 102.3 | F166: 103 | G166: 102.75 | H166: 104.15 | I166: 21320475 | J166: 2212842997 | K166: 2018-01-25 | L166: 43994 | M166: INE257A01026
A167: BHUSANSTL | B167: EQ | C167: 63.2 | D167: 64.4 | E167: 59.8 | F167: 60 | G167: 60 | H167: 61.75 | I167: 3121886 | J167: 191677585.2 | K167: 2018-01-25 | L167: 12007 | M167: INE824B01021
A168: BIGBLOC | B168: EQ | C168: 135 | D168: 138.4 | E168: 134.1 | F168: 135.2 | G168: 134.85 | H168: 135.05 | I168: 105148 | J168: 14225537.25 | K168: 2018-01-25 | L168: 1195 | M168: INE412U01017
A169: BIL | B169: EQ | C169: 486 | D169: 500.8 | E169: 482 | F169: 484.8 | G169: 485.45 | H169: 492.8 | I169: 7780 | J169: 3787916.35 | K169: 2018-01-25 | L169: 369 | M169: INE828A01016
A170: BILPOWER | B170: EQ | C170: 1.85 | D170: 1.85 | E170: 1.85 | F170: 1.85 | G170: 1.85 | H170: 1.85 | I170: 1465 | J170: 2710.25 | K170: 2018-01-25 | L170: 5 | M170: INE952D01018
A171: BINDALAGRO | B171: EQ | C171: 35.2 | D171: 36.45 | E171: 35.2 | F171: 35.65 | G171: 35.7 | H171: 35.65 | I171: 60981 | J171: 2184505.75 | K171: 2018-01-25 | L171: 382 | M171: INE143A01010
A172: BIOCON | B172: EQ | C172: 601 | D172: 617.5 | E172: 600.2 | F172: 607.45 | G172: 606.75 | H172: 634.55 | I172: 7737568 | J172: 4695990027 | K172: 2018-01-25 | L172: 107650 | M172: INE376G01013
A173: BIRLACORPN | B173: EQ | C173: 1159 | D173: 1180 | E173: 1138 | F173: 1157.85 | G173: 1160 | H173: 1152.55 | I173: 17630 | J173: 20390066.1 | K173: 2018-01-25 | L173: 1542 | M173: INE340A01012
A174: BIRLAMONEY | B174: EQ | C174: 87.25 | D174: 88.4 | E174: 84.6 | F174: 85.1 | G174: 84.6 | H174: 87.75 | I174: 165231 | J174: 14224665.75 | K174: 2018-01-25 | L174: 1946 | M174: INE865C01022
A175: BKMINDST | B175: EQ | C175: 36.75 | D175: 37.9 | E175: 36 | F175: 36.4 | G175: 36.25 | H175: 37.65 | I175: 53300 | J175: 1942178.65 | K175: 2018-01-25 | L175: 130 | M175: INE831Q01016
A176: BLISSGVS | B176: EQ | C176: 202.1 | D176: 208.7 | E176: 202.1 | F176: 204.45 | G176: 204.1 | H176: 204.25 | I176: 582293 | J176: 120259532.2 | K176: 2018-01-25 | L176: 2888 | M176: INE416D01022
A177: BLKASHYAP | B177: EQ | C177: 59.6 | D177: 62.25 | E177: 58.85 | F177: 59.65 | G177: 59.8 | H177: 59.95 | I177: 318471 | J177: 19278955.35 | K177: 2018-01-25 | L177: 1622 | M177: INE350H01032
A178: BLS | B178: EQ | C178: 238.45 | D178: 240 | E178: 235 | F178: 236.65 | G178: 236.6 | H178: 239.35 | I178: 162799 | J178: 38733108.2 | K178: 2018-01-25 | L178: 6460 | M178: INE153T01027
A179: BLUEBLENDS | B179: EQ | C179: 34.2 | D179: 35.7 | E179: 32.6 | F179: 34.25 | G179: 34.5 | H179: 34 | I179: 95419 | J179: 3302959.1 | K179: 2018-01-25 | L179: 397 | M179: INE113O01014
A180: BLUECOAST | B180: EQ | C180: 125.4 | D180: 125.4 | E180: 125.4 | F180: 125.4 | G180: 125.4 | H180: 132 | I180: 12 | J180: 1504.8 | K180: 2018-01-25 | L180: 1 | M180: INE472B01011
A181: BLUEDART | B181: EQ | C181: 4651 | D181: 4697 | E181: 4615.05 | F181: 4651.9 | G181: 4645 | H181: 4697.7 | I181: 2644 | J181: 12291899.5 | K181: 2018-01-25 | L181: 485 | M181: INE233B01017
A182: BLUESTARCO | B182: EQ | C182: 765.2 | D182: 769 | E182: 751 | F182: 762 | G182: 765 | H182: 764.75 | I182: 13800 | J182: 10486096.75 | K182: 2018-01-25 | L182: 1461 | M182: INE472A01039
A183: BODALCHEM | B183: EQ | C183: 163 | D183: 163.85 | E183: 160.1 | F183: 160.9 | G183: 160.45 | H183: 160.95 | I183: 176614 | J183: 28587892.4 | K183: 2018-01-25 | L183: 2601 | M183: INE338D01028
A184: BOMDYEING | B184: EQ | C184: 242.3 | D184: 245 | E184: 232.15 | F184: 233.7 | G184: 233.75 | H184: 242.3 | I184: 2332079 | J184: 557516781.3 | K184: 2018-01-25 | L184: 22483 | M184: INE032A01023
A185: BOSCHLTD | B185: EQ | C185: 19740 | D185: 19890 | E185: 19506.2 | F185: 19642.5 | G185: 19556.1 | H185: 19730.3 | I185: 14671 | J185: 288590237 | K185: 2018-01-25 | L185: 5075 | M185: INE323A01026
A186: BPCL | B186: EQ | C186: 486 | D186: 486.5 | E186: 473.6 | F186: 480.65 | G186: 480.75 | H186: 480.5 | I186: 4016765 | J186: 1926798452 | K186: 2018-01-25 | L186: 60548 | M186: INE029A01011
A187: BPL | B187: EQ | C187: 102.5 | D187: 112.3 | E187: 100 | F187: 110.55 | G187: 111.6 | H187: 102.1 | I187: 2097114 | J187: 225009830.3 | K187: 2018-01-25 | L187: 14752 | M187: INE110A01019
A188: BRFL | B188: EQ | C188: 88.25 | D188: 88.25 | E188: 81.3 | F188: 81.55 | G188: 81.5 | H188: 85.55 | I188: 372513 | J188: 30898673.8 | K188: 2018-01-25 | L188: 4289 | M188: INE589G01011
A189: BRIGADE | B189: EQ | C189: 310 | D189: 310 | E189: 292 | F189: 293.15 | G189: 292.1 | H189: 296.05 | I189: 29926 | J189: 8912717.1 | K189: 2018-01-25 | L189: 716 | M189: INE791I01019
A190: BRITANNIA | B190: EQ | C190: 4719.2 | D190: 4719.2 | E190: 4601 | F190: 4625.6 | G190: 4606.2 | H190: 4719.25 | I190: 398317 | J190: 1844782712 | K190: 2018-01-25 | L190: 23355 | M190: INE216A01022
A191: BRNL | B191: EQ | C191: 185 | D191: 188.45 | E191: 185 | F191: 186.6 | G191: 186 | H191: 186.8 | I191: 6531 | J191: 1217875.6 | K191: 2018-01-25 | L191: 203 | M191: INE727S01012
A192: BROOKS | B192: EQ | C192: 108.1 | D192: 110.8 | E192: 106.4 | F192: 106.8 | G192: 106.65 | H192: 108.15 | I192: 46413 | J192: 5034052.75 | K192: 2018-01-25 | L192: 654 | M192: INE650L01011
A193: BSE | B193: EQ | C193: 918 | D193: 918 | E193: 910 | F193: 913.7 | G193: 914 | H193: 911.2 | I193: 93907 | J193: 85803106.5 | K193: 2018-01-25 | L193: 8324 | M193: INE118H01025
A194: BSL | B194: EQ | C194: 106 | D194: 106 | E194: 99.5 | F194: 100.75 | G194: 100.6 | H194: 101.85 | I194: 20520 | J194: 2079014 | K194: 2018-01-25 | L194: 611 | M194: INE594B01012
A195: BSLGOLDETF | B195: EQ | C195: 2829.95 | D195: 2829.95 | E195: 2806.05 | F195: 2806.05 | G195: 2806.05 | H195: 2830 | I195: 20 | J195: 56192.7 | K195: 2018-01-25 | L195: 4 | M195: INF209K01HT2
A196: BSLIMITED | B196: EQ | C196: 1.5 | D196: 1.55 | E196: 1.5 | F196: 1.5 | G196: 1.5 | H196: 1.55 | I196: 440773 | J196: 663617 | K196: 2018-01-25 | L196: 121 | M196: INE043K01029
A197: BSLNIFTY | B197: EQ | C197: 109.79 | D197: 109.79 | E197: 108.12 | F197: 109.25 | G197: 109.25 | H197: 109.79 | I197: 1052 | J197: 114958.22 | K197: 2018-01-25 | L197: 11 | M197: INF209K01IR4
A198: BYKE | B198: EQ | C198: 188.95 | D198: 214.9 | E198: 185 | F198: 200.8 | G198: 200.7 | H198: 187 | I198: 804389 | J198: 164807996.5 | K198: 2018-01-25 | L198: 18017 | M198: INE319B01014
A199: CADILAHC | B199: EQ | C199: 426.95 | D199: 429.6 | E199: 415.55 | F199: 418.15 | G199: 419.8 | H199: 424.75 | I199: 643671 | J199: 271885981.7 | K199: 2018-01-25 | L199: 12289 | M199: INE010B01027
A200: CAMLINFINE | B200: EQ | C200: 129.45 | D200: 130.35 | E200: 126.35 | F200: 127 | G200: 127 | H200: 128.75 | I200: 686648 | J200: 87625878.25 | K200: 2018-01-25 | L200: 4421 | M200: INE052I01032
... 1184 more rows

Sheet Sheet1 (hidden)

Sheet Sheet3 (hidden)

Sheet Sheet4 (hidden)

Sheet Sheet5 (hidden)

Sheet Call Tracker (Currency)
A1: Master Trade High Risk
A2: Sr.no | B2: Date | C2: Company | D2: Rec | E2: Rec Price | F2: Stop Loss | G2: Call Closed At | H2: Target | I2: Remark | K2: Profit / Loss per share | L2: Gain / Loss per Lot | M2: Lot | N2: Status | O2: Closed Date
A3: 1 | B3: 2017-05-08 | C3: USDINR MAY FUT | D3: Buy | E3: 64.3935 | F3: 64.29 | G3: 64.66 | H3: 64.59 | I3: Profit of Rs.0.27/- | K3: 0.27 | L3: 266.5 | M3: 1000 | N3: Successful | O3: 2017-05-09 | R3: P
A4: 2 | B4: 2017-05-08 | C4: USDINR JUN FUT | D4: Buy | E4: 64.6535 | F4: 64.45 | G4: 64.965 | H4: 65.05 | I4: Profit of Rs 0.31/- | K4: 0.31 | L4: 311.5 | M4: 1000 | N4: Successful | O4: 2017-05-09 | R4: P
A5: 3 | B5: 2017-05-09 | C5: EUROINR MAY FUT | D5: Sell | E5: 70.65 | F5: 70.8 | G5: 70.07 | H5: 70.4 | I5: Profit of Rs 0.58/- | K5: 0.58 | L5: 580 | M5: 1000 | N5: Successful | O5: 2017-05-12 | R5: P
A6: 4 | B6: 2017-05-09 | C6: GBPINR MAY FUT | D6: Buy | E6: 83.774 | F6: 83.37 | G6: 83.37 | H6: 84.77 | I6: Loss of Rs 0.40/- | K6: -0.40 | L6: -404 | M6: 1000 | N6: Unsuccessful | O6: 2017-05-11 | R6: P
A7: 5 | B7: 2017-05-11 | C7: USDINR MAY FUT | D7: Buy | E7: 64.6555 | F7: 64.55 | G7: 64.55 | H7: 64.86 | I7: Loss of Rs.0.1055/- | K7: -0.1055 | L7: =K7*M7 -> -105.50 | M7: 1000 | N7: Unsuccessful | O7: 2017-05-11 | R7: P
A8: 6 | B8: 2017-05-15 | C8: USDINR MAY FUT | D8: Buy | E8: 64.2275 | F8: 64.08 | G8: 64.46 | H8: 64.48 | I8: Profit of Rs 0.23/- | K8: 0.23 | L8: 232.5 | M8: 1000 | N8: Successful | O8: 2017-05-18 | R8: P
A9: 7 | B9: 2017-05-19 | C9: USDINR MAY FUT | D9: Sell | E9: 64.83 | F9: 65 | G9: 65 | H9: 64.5 | I9: Loss of Rs.0.17/- | K9: -0.17 | L9: -170 | M9: 1000 | N9: Unsuccessful | O9: 2017-05-19 | R9: P
A10: 8 | B10: 2017-05-23 | C10: USDINR MAY FUT | D10: Buy | E10: 64.83 | F10: 64.62 | G10: 64.95 | H10: 65.2 | I10: Profit of Rs 0.12/- | K10: 0.12 | L10: 120 | M10: 1000 | N10: Successful | O10: 2017-05-24 | R10: P
A11: 9 | B11: 2017-05-25 | C11: USDINR MAY FUT | D11: Buy | E11: 64.57 | F11: 64.25 | G11: 64.56 | H11: 65 | I11: Loss of Rs.0.01/- | K11: -0.01 | L11: -10 | M11: 1000 | N11: Neutral | O11: 2017-05-29 | R11: P
A12: 10 | B12: 2017-05-30 | C12: USDINR JUN FUT | D12: Buy | E12: 64.9125 | F12: 64.71 | G12: 64.71 | H12: 65.31 | I12: Loss of Rs.0.20/- | K12: -0.20 | L12: -202.5 | M12: 1000 | N12: Unsuccessful | O12: 2017-05-31 | R12: P
A13: 11 | B13: 2017-06-01 | C13: USDINR JUN FUT | D13: Buy | E13: 64.655 | F13: 64.45 | G13: 64.45 | H13: 65.05 | I13: Loss of Rs.0.20/- | K13: =G13-E13 -> -0.20 | L13: =K13*M13 -> -205 | M13: 1000.00 | N13: Unsuccessful | O13: 2017-06-08 | R13: P
A14: 12 | B14: 2017-06-12 | C14: USDINR JUN FUT | D14: Buy | E14: 64.45 | F14: 64 | G14: 64.7625 | H14: 65.2 | I14: Profit of Rs 0.31/- | K14: 0.31 | L14: 312.5 | M14: 1000 | N14: Successful | O14: 2017-06-16
A15: 13 | B15: 2017-06-16 | C15: USDINR JUN FUT | D15: Buy | E15: 64.51 | F15: 64.2 | G15: 64.7 | H15: 65.11 | I15: Profit of Rs 0.19/- | K15: 0.19 | L15: 190 | M15: 1000 | N15: Successful | O15: 2017-06-21
A16: 14 | B16: 2017-06-22 | C16: USDINR JUN FUT | D16: Buy | E16: 64.56 | F16: 64.2 | G16: 64.2 | H16: 65.1 | I16: Loss of Rs.0.36/- | K16: -0.36 | L16: -360 | M16: 1000.00 | N16: Unsuccessful | O16: 2017-06-30
A17: 15 | B17: 2017-07-10 | C17: USDINR JUL FUT | D17: Buy | E17: 64.67 | F17: 64.4 | G17: 64.4 | H17: 65.15 | I17: Loss of Rs.0.27/- | K17: -0.27 | L17: -270 | M17: 1000.00 | N17: Unsuccessful | O17: 2017-07-31
A18: 16 | B18: 2017-08-02 | C18: USDINR AUG FUT | D18: Buy | E18: 64.235 | F18: 63.98 | G18: 63.98 | H18: 64.75 | I18: Loss of Rs.0.26/- | K18: -0.26 | L18: -255 | M18: 1000.00 | N18: Unsuccessful | O18: 2017-08-02
A19: 17 | B19: 2017-08-08 | C19: USDINR AUG FUT | D19: Buy | E19: 63.9425 | F19: 63.6 | G19: 64.15 | H19: 64.5 | I19: Profit of Rs 0.21/- | K19: 0.21 | L19: 207.5 | M19: 1000 | N19: Successful | O19: 2017-08-10
A20: 18 | B20: 2017-08-22 | C20: USDINR AUG FUT | D20: Buy | E20: 64.1175 | F20: 63.9 | G20: 64.01 | H20: 64.5 | I20: Loss of Rs.0.11/- | K20: =G20-E20 -> -0.11 | L20: =K20*M20 -> -107.5 | M20: 1000.00 | N20: Unsuccessful | O20: 2017-08-29
A21: 19 | B21: 2017-09-01 | C21: USDINR SEP FUT | D21: Buy | E21: 64.1 | F21: 63.8 | G21: 64.205 | H21: 64.7 | I21: Profit of Rs 0.11/- | K21: 0.11 | L21: 105 | M21: 1000 | N21: Successful | O21: 2017-09-01
A22: 20 | B22: 2017-09-04 | C22: USDINR SEP FUT | D22: Buy | E22: 64.095 | F22: 63.8 | G22: 64.195 | H22: 64.7 | I22: Profit of Rs 0.10/- | K22: 0.10 | L22: =K22*M22 -> 100 | M22: 1000 | N22: Successful | O22: 2017-09-04
A23: 21 | B23: 2017-09-05 | C23: USDINR SEP FUT | D23: Buy | E23: 64.25 | F23: 64 | G23: 64.355 | H23: 64.75 | I23: Profit of Rs 0.11/- | K23: =G23-E23 -> 0.11 | L23: =K23*M23 -> 105 | M23: 1000 | N23: Successful | O23: 2017-09-06
A24: 22 | B24: 2017-09-06 | C24: USDINR SEP FUT | D24: Sell | E24: 64.365 | F24: 64.5 | G24: 64.265 | H24: 64 | I24: Profit of Rs 0.10/- | K24: =E24-G24 -> 0.10 | L24: 100 | M24: 1000 | N24: Successful | O24: 2017-09-06
A25: 23 | B25: 2017-09-07 | C25: USDINR SEP FUT | D25: Buy | E25: 64.145 | F25: 63.9 | G25: 64.2565 | H25: 64.65 | I25: Profit of Rs 0.11/- | K25: =G25-E25 -> 0.11 | L25: =K25*M25 -> 111.5 | M25: 1000 | N25: Successful | O25: 2017-09-14
A26: 24 | B26: 2017-09-11 | C26: JPYINR SEP FUT | D26: Sell | E26: 59.0285 | F26: 59.25 | G26: 58.645 | H26: 58.5 | I26: Profit of Rs 0.38/- | K26: =E26-G26 -> 0.38 | L26: 383.5 | M26: 1000 | N26: Successful | O26: 2017-09-12
A27: 25 | B27: 2017-09-14 | C27: USDINR SEP FUT | D27: Buy | E27: 64.145 | F27: 63.95 | G27: 64.26 | H27: 64.5 | I27: Profit of Rs 0.12/- | K27: =G27-E27 -> 0.12 | L27: 115 | M27: 1000 | N27: Successful | O27: 2017-09-19
A28: 26 | B28: 2017-09-20 | C28: USDINR SEP FUT | D28: Buy | E28: 64.3515 | F28: 64.15 | G28: 64.57 | H28: 64.75 | I28: Profit of Rs 0.22/- | K28: =G28-E28 -> 0.22 | L28: =K28*M28 -> 218.5 | M28: 1000 | N28: Successful | O28: 2017-09-21
A29: 27 | B29: 2017-09-21 | C29: USDINR SEP FUT | D29: Sell | E29: 64.795 | F29: 65.05 | G29: 65.05 | H29: 64.4 | I29: Loss of Rs.0.17/- | K29: -0.17 | L29: -170 | M29: 1000.00 | N29: Unsuccessful | O29: 2017-09-22
A30: 28 | B30: 2017-09-25 | C30: USDINR SEP FUT | D30: Buy | E30: 64.77 | F30: 64.4 | G30: 64.92 | H30: 65.1 | I30: Profit of Rs 0.15/- | K30: =G30-E30 -> 0.15 | L30: =K30*M30 -> 150 | M30: 1000 | N30: Successful | O30: 2017-09-25
A31: 29 | B31: 2017-09-25 | C31: USDINR SEP FUT | D31: Sell | E31: 65.1077 | F31: 65.3 | G31: 65.3 | H31: 64.5 | I31: Loss of Rs.0.19/- | K31: -0.19 | L31: -190 | M31: 1000.00 | N31: Unsuccessful | O31: 2017-09-26
A32: 30 | B32: 2017-09-27 | C32: USDINR SEP FUT | D32: Sell | E32: 65.7225 | F32: 65.83 | G32: 65.7 | H32: 65.52 | I32: Profit of Rs 0.02/- | K32: =E32-G32 -> 0.02 | L32: =K32*M32 -> 22.5 | M32: 1000 | N32: Neutral | O32: 2017-09-27
A33: 31 | B33: 2017-09-27 | C33: USDINR OCT FUT | D33: Sell | E33: 66 | F33: 66.5 | G33: 65.895 | H33: 65 | I33: Profit of Rs 0.11/- | K33: =E33-G33 -> 0.11 | L33: 105 | M33: 1000 | N33: Successful | O33: 2017-09-27
A34: 32 | B34: 2017-09-28 | C34: USDINR OCT FUT | D34: Sell | E34: 66.075 | F34: 66.3 | G34: 65.96 | H34: 65.4 | I34: Profit of Rs 0.12/- | K34: =E34-G34 -> 0.12 | L34: =K34*M34 -> 115 | M34: 1000 | N34: Successful | O34: 2017-09-28
A35: 33 | B35: 2017-09-29 | C35: GBPINR OCT fut | D35: Buy | E35: 87.745 | F35: 87.5 | G35: 87.84 | H35: 88.25 | I35: Profit of Rs 0.09/- | K35: =G35-E35 -> 0.09 | L35: 95 | M35: 1000 | N35: Successful | O35: 2017-09-29
A36: 34 | B36: 2017-09-29 | C36: USDINR OCT FUT | D36: Buy | E36: 65.514 | F36: 65.25 | G36: 65.85 | H36: 66 | I36: Profit of Rs 0.34/- | K36: 0.34 | L36: =K36*M36 -> 336 | M36: 1000 | N36: Successful | O36: 2017-10-03
A37: 35 | B37: 2017-10-09 | C37: USDINR OCT FUT | D37: Buy | E37: 65.48 | F37: 65.23 | G37: 65.5775 | H37: 65.95 | I37: Profit of Rs 0.10/- | K37: =G37-E37 -> 0.10 | L37: =K37*M37 -> 97.5 | M37: 1000 | N37: Successful | O37: 2017-10-09
A38: 36 | B38: 2017-10-10 | C38: USDINR OCT FUT | D38: Buy | E38: 65.41 | F38: 65.15 | G38: 65.5075 | H38: 66 | I38: Profit of Rs 0.10/- | K38: 0.10 | L38: 97.5 | M38: 1000 | N38: Successful | O38: 2017-10-10
A39: 37 | B39: 2017-10-11 | C39: USDINR OCT FUT | D39: Buy | E39: 65.38 | F39: 65.13 | G39: 65.13 | H39: 65.88 | I39: Loss of Rs.0.25/- | K39: -0.25 | L39: -250 | M39: 1000.00 | N39: Unsuccessful | O39: 2017-10-13
A40: 38 | B40: 2017-10-16 | C40: USDINR OCT FUT | D40: Buy | E40: 64.7925 | F40: 64.54 | G40: 64.905 | H40: 65.3 | I40: Profit of Rs 0.11/- | K40: =G40-E40 -> 0.11 | L40: =K40*M40 -> 112.5 | M40: 1000 | N40: Successful | O40: 2017-10-17
A41: 39 | B41: 2017-10-23 | C41: USDINR OCT FUT | D41: Buy | E41: 65.115 | F41: 64.85 | G41: 65.21 | H41: 65.5 | I41: Profit of Rs 0.09/- | K41: =G41-E41 -> 0.09 | L41: =K41*M41 -> 95 | M41: 1000 | N41: Successful | O41: 2017-10-25
A42: 40 | B42: 2017-10-23 | C42: JPYINR OCT FUT | D42: Buy | E42: 57.285 | F42: 57.03 | G42: 57.38 | H42: 58.4 | I42: Profit of Rs 0.10/- | K42: =G42-E42 -> 0.10 | L42: =K42*M42 -> 95 | M42: 1000 | N42: Successful | O42: 2017-10-23
A43: 41 | B43: 2017-10-26 | C43: USDINR OCT FUT | D43: Buy | E43: 64.755 | F43: 64.5 | G43: 64.87 | H43: 65.25 | I43: Profit of Rs 0.12/- | K43: 0.12 | L43: 115 | M43: 1000 | N43: Successful | O43: 2017-10-25
A44: 42 | B44: 2017-10-30 | C44: USDINR NOV FUT | D44: Buy | E44: 65.035 | F44: 64.79 | G44: 64.79 | H44: 65.5 | I44: Loss of Rs.0.24/- | K44: -0.24 | L44: -245 | M44: 1000.00 | N44: Unsuccessful | O44: 2017-11-01
A45: 43 | B45: 2017-11-01 | C45: JPYINR NOV FUT | D45: Buy | E45: 56.9875 | F45: 56.73 | G45: 57.0959 | H45: 57.5 | I45: Profit of Rs 0.11/- | K45: =G45-E45 -> 0.11 | L45: =K45*M45 -> 108.4 | M45: 1000 | N45: Successful | O45: 2017-11-07
A46: 44 | B46: 2017-11-02 | C46: USDINR NOV FUT | D46: Buy | E46: 64.7838 | F46: 64.5 | G46: 64.89 | H46: 65.25 | I46: Profit of Rs 0.11/- | K46: =G46-E46 -> 0.11 | L46: =K46*M46 -> 106.2 | M46: 1000 | N46: Successful | O46: 2017-11-06
A47: 45 | B47: 2017-11-08 | C47: USDINR NOV FUT | D47: Buy | E47: 65.1363 | F47: 64.8375 | G47: 65.235 | H47: 65.73 | I47: Profit of Rs 0.10/- | K47: =G47-E47 -> 0.10 | L47: =K47*M47 -> 98.7 | M47: 1000 | N47: Successful | O47: 2017-11-10
A48: 46 | B48: 2017-11-08 | C48: GBPINR NOV FUT | D48: Buy | E48: 85.4983 | F48: 85.25 | G48: 85.6 | H48: 86 | I48: Profit of Rs 0.10/- | K48: =G48-E48 -> 0.10 | L48: =K48*M48 -> 101.7 | M48: 1000 | N48: Successful | O48: 2017-11-09
A49: 47 | B49: 2017-11-16 | C49: EURINR NOV FUT | D49: Buy | E49: 76.8975 | F49: 76.3975 | G49: 76.3975 | H49: 77.8975 | I49: Loss of Rs.0.50/- | K49: =G49-E49 -> -0.50 | L49: -500 | M49: 1000.00 | N49: Unsuccessful | O49: 2017-11-01
A50: 48 | B50: 2017-11-16 | C50: JPYINR NOV FUT | D50: Buy | E50: 57.6625 | F50: 57.2675 | G50: 57.8075 | H50: 58.6675 | I50: Profit of Rs 0.14/- | K50: =G50-E50 -> 0.14 | L50: =K50*M50 -> 145 | M50: 1000 | N50: Successful | O50: 2017-11-17
A51: 49 | B51: 2017-11-22 | C51: EURINR NOV FUT | D51: Buy | E51: 76.175 | F51: 75.95 | G51: 76.335 | H51: 76.6 | I51: Profit of Rs 0.16/- | K51: 0.16 | L51: =K51*M51 -> 160 | M51: 1000 | N51: Successful | O51: 2017-11-22
A52: 50 | B52: 2017-11-22 | C52: USDINR NOV FUT | D52: Buy | E52: 64.87 | F52: 64.5 | G52: 64.5 | H52: 65.5 | I52: Loss of Rs.0.37/- | K52: -0.37 | L52: -370 | M52: 1000.00 | N52: Unsuccessful | O52: 2017-11-27
A53: 51 | B53: 2017-11-28 | C53: GBPINR DEC FUT | D53: Buy | E53: 86.17 | F53: 85.85 | G53: 86.46 | H53: 87 | I53: Profit of Rs 0.29/- | K53: 0.29 | L53: =K53*M53 -> 290 | M53: 1000 | N53: Successful | O53: 2017-11-29
A54: 52 | B54: 2017-11-28 | C54: JPYINR DEC FUT | D54: Buy | E54: 58.16 | F54: 57.85 | G54: 57.85 | H54: 58.6 | I54: Loss of Rs.0.31/- | K54: -0.31 | L54: -310 | M54: 1000.00 | N54: Unsuccessful | O54: 2017-11-29
A55: 53 | B55: 2017-11-28 | C55: USDINR DEC FUT | D55: Buy | E55: 64.63 | F55: 64.13 | G55: 64.13 | H55: 65.63 | I55: Loss of Rs.0.50/- | K55: -0.50 | L55: =K55*M55 -> -500 | M55: 1000.00 | N55: Unsuccessful | O55: 2017-12-15
A56: 54 | B56: 2017-11-28 | C56: EURINR DEC FUT | D56: Buy | E56: 76.93 | F56: 76.43 | G56: 76.43 | H56: 77.93 | I56: Loss of Rs.0.50/- | K56: =G56-E56 -> -0.50 | L56: =K56*M56 -> -500 | M56: 1000.00 | N56: Unsuccessful | O56: 2017-11-29
A57: 55 | B57: 2017-12-12 | C57: EURINR DEC FUT | D57: Buy | E57: 76.105 | F57: 75.7 | G57: 76.27 | H57: 76.8 | I57: Profit of Rs 0.16/- | K57: =G57-E57 -> 0.16 | L57: 165 | M57: 1000 | N57: Successful | O57: 2017-12-14
A58: 56 | B58: 2017-12-12 | C58: JPYINR DEC FUT | D58: Buy | E58: 56.975 | F58: 56.7 | G58: 57.21 | H58: 57.6 | I58: Profit of Rs 0.23/- | K58: =G58-E58 -> 0.23 | L58: =K58*M58 -> 235 | M58: 1000 | N58: Successful | O58: 2017-12-14
